Workbook

Sheet Main
B10: 2020-05-27
B12: Sheet No. | C12: Template Name | D12: Summary
B13: 1 | C13: Future Intra | D13: For Intraday trading in F&O segment
B14: 2 | C14: Cash Intra | D14: For Intraday trading in cash market segment
B15: 3 | C15: Mid-cap Intra | D15: For Intraday trading in Mid-cap stocks
B16: 4 | C16: Bulk Deals | D16: Reveals Bulk Deals carried on NSE & BSE
B17: 5 | C17: Call Tracker
K27: `

Sheet Future Intra
M5: Back to Main Page
A6: FOR INTRA DAY TRADING | L6: =Main!B10 -> 2020-05-27
A9: Sr.no | B9: Sector | C9: Scrip | D9: CLOSE RATE | E9: Pivot Point | F9: Supports | I9: Resistances
B10: Sector | D10: Point | E10: Point | F10: S1 | G10: S2 | H10: S3 | I10: R1 | J10: R2 | K10: R3 | L10: HIGH | M10: LOW | N10: OI | O10: % Change in OI
A11: 1 | B11: Index | C11: BANKNIFTY | D11: 17445.15 | E11: 17465.58 | F11: 17241.17 | G11: 17037.18 | H11: 16812.77 | I11: 17669.57 | J11: 17893.98 | K11: 18097.97 | L11: 17690 | M11: 17261.6 | N11: 1860580 | O11: -9.74%
A12: 2 | B12: Index | C12: NIFTY | D12: 9034.00 | E12: 9057.62 | F12: 8952.68 | G12: 8871.37 | H12: 8766.43 | I12: 9138.93 | J12: 9243.87 | K12: 9325.18 | L12: 9162.55 | M12: 8976.3 | N12: 10659900 | O12: 6.83%
A13: 3 | B13: Index | C13: NIFTYIT | D13: 13552.00 | E13: 13619.00 | F13: 13398.00 | G13: 13244.00 | H13: 13023.00 | I13: 13773.00 | J13: 13994.00 | K13: 14148.00 | L13: 13840 | M13: 13465 | N13: 1200 | O13: -31.43%
A14: 4 | B14: Cement | C14: ACC | D14: 1273.45 | E14: 1260.62 | F14: 1243.23 | G14: 1213.02 | H14: 1195.63 | I14: 1290.83 | J14: 1308.22 | K14: 1338.43 | L14: 1278 | M14: 1230.4 | N14: 1699100 | O14: 2.81%
A15: 5 | B15: Others | C15: ADANIENT | D15: 139.45 | E15: 140.18 | F15: 137.27 | G15: 135.08 | H15: 132.17 | I15: 142.37 | J15: 145.28 | K15: 147.47 | L15: 143.1 | M15: 138 | N15: 19340000 | O15: -5.86%
A16: 6 | B16: Others | C16: ADANIPORTS | D16: 313.80 | E16: 314.02 | F16: 308.28 | G16: 302.77 | H16: 297.03 | I16: 319.53 | J16: 325.27 | K16: 330.78 | L16: 319.75 | M16: 308.5 | N16: 35142500 | O16: -2.85%
A17: 7 | B17: Power | C17: ADANIPOWER | D17: 36.70 | E17: 35.72 | F17: 34.33 | G17: 31.97 | H17: 30.58 | I17: 38.08 | J17: 39.47 | K17: 41.83 | L17: 37.1 | M17: 33.35 | N17: 60780000 | O17: -1.90%
A18: 8 | B18: Automobile | C18: AMARAJABAT | D18: 604.75 | E18: 602.08 | F18: 596.67 | G18: 588.58 | H18: 583.17 | I18: 610.17 | J18: 615.58 | K18: 623.67 | L18: 607.5 | M18: 594 | N18: 1442000 | O18: 4.90%
A19: 9 | B19: Cement | C19: AMBUJACEM | D19: 188.10 | E19: 187.72 | F19: 185.78 | G19: 183.47 | H19: 181.53 | I19: 190.03 | J19: 191.97 | K19: 194.28 | L19: 189.65 | M19: 185.4 | N19: 19232000 | O19: 7.61%
A20: 10 | B20: Others | C20: APOLLOHOSP | D20: 1311.60 | E20: 1304.77 | F20: 1281.53 | G20: 1251.47 | H20: 1228.23 | I20: 1334.83 | J20: 1358.07 | K20: 1388.13 | L20: 1328 | M20: 1274.7 | N20: 1043000 | O20: 0.29%
A21: 11 | B21: Automobile | C21: APOLLOTYRE | D21: 92.50 | E21: 91.83 | F21: 90.87 | G21: 89.23 | H21: 88.27 | I21: 93.47 | J21: 94.43 | K21: 96.07 | L21: 92.8 | M21: 90.2 | N21: 8829000 | O21: 11.58%
A22: 12 | B22: Automobile | C22: ASHOKLEY | D22: 43.00 | E22: 43.05 | F22: 42.05 | G22: 41.10 | H22: 40.10 | I22: 44.00 | J22: 45.00 | K22: 45.95 | L22: 44.05 | M22: 42.1 | N22: 69325000 | O22: -4.77%
A23: 13 | B23: FMCG | C23: ASIANPAINT | D23: 1619.55 | E23: 1625.18 | F23: 1605.37 | G23: 1591.18 | H23: 1571.37 | I23: 1639.37 | J23: 1659.18 | K23: 1673.37 | L23: 1645 | M23: 1611 | N23: 5816100 | O23: 8.68%
A24: 14 | B24: Pharma | C24: AUROPHARMA | D24: 714.50 | E24: 718.45 | F24: 703.10 | G24: 691.70 | H24: 676.35 | I24: 729.85 | J24: 745.20 | K24: 756.60 | L24: 733.8 | M24: 707.05 | N24: 11540000 | O24: -0.62%
A25: 15 | B25: Banking | C25: AXISBANK | D25: 341.65 | E25: 342.08 | F25: 336.07 | G25: 330.48 | H25: 324.47 | I25: 347.67 | J25: 353.68 | K25: 359.27 | L25: 348.1 | M25: 336.5 | N25: 62305200 | O25: 2.59%
A26: 16 | B26: Automobile | C26: BAJAJ-AUTO | D26: 2562.85 | E26: 2566.33 | F26: 2532.47 | G26: 2502.08 | H26: 2468.22 | I26: 2596.72 | J26: 2630.58 | K26: 2660.97 | L26: 2600.2 | M26: 2535.95 | N26: 1900750 | O26: -1.20%
A27: 17 | B27: Finance | C27: BAJAJFINSV | D27: 4097.85 | E27: 4182.27 | F27: 3976.58 | G27: 3855.32 | H27: 3649.63 | I27: 4303.53 | J27: 4509.22 | K27: 4630.48 | L27: 4387.95 | M27: 4061 | N27: 855250 | O27: 11.31%
A28: 18 | B28: Finance | C28: BAJFINANCE | D28: 1832.30 | E28: 1861.07 | F28: 1797.23 | G28: 1762.17 | H28: 1698.33 | I28: 1896.13 | J28: 1959.97 | K28: 1995.03 | L28: 1924.9 | M28: 1826 | N28: 6764250 | O28: -2.99%
A29: 19 | B29: Automobile | C29: BALKRISIND | D29: 1030.25 | E29: 1023.08 | F29: 1007.17 | G29: 984.08 | H29: 968.17 | I29: 1046.17 | J29: 1062.08 | K29: 1085.17 | L29: 1039 | M29: 1000 | N29: 1037600 | O29: -2.11%
A30: 20 | B30: Banking | C30: BANDHANBNK | D30: 201.20 | E30: 202.07 | F30: 197.53 | G30: 193.87 | H30: 189.33 | I30: 205.73 | J30: 210.27 | K30: 213.93 | L30: 206.6 | M30: 198.4 | N30: 13890000 | O30: -1.32%
A31: 21 | B31: Banking | C31: BANKBARODA | D31: 37.25 | E31: 37.40 | F31: 36.55 | G31: 35.85 | H31: 35.00 | I31: 38.10 | J31: 38.95 | K31: 39.65 | L31: 38.25 | M31: 36.7 | N31: 54544600 | O31: -0.68%
A32: 22 | B32: FMCG | C32: BATAINDIA | D32: 1283.30 | E32: 1266.72 | F32: 1234.68 | G32: 1186.07 | H32: 1154.03 | I32: 1315.33 | J32: 1347.37 | K32: 1395.98 | L32: 1298.75 | M32: 1218.1 | N32: 2170300 | O32: 39.14%
A33: 23 | B33: Capital_Goods | C33: BEL | D33: 65.00 | E33: 64.35 | F33: 63.45 | G33: 61.90 | H33: 61.00 | I33: 65.90 | J33: 66.80 | K33: 68.35 | L33: 65.25 | M33: 62.8 | N33: 30127600 | O33: -1.94%
A34: 24 | B34: FMCG | C34: BERGEPAINT | D34: 457.40 | E34: 459.95 | F34: 451.35 | G34: 445.30 | H34: 436.70 | I34: 466.00 | J34: 474.60 | K34: 480.65 | L34: 468.55 | M34: 453.9 | N34: 4750900 | O34: -0.46%
A35: 25 | B35: Automobile | C35: BHARATFORG | D35: 292.10 | E35: 291.13 | F35: 286.97 | G35: 281.83 | H35: 277.67 | I35: 296.27 | J35: 300.43 | K35: 305.57 | L35: 295.3 | M35: 286 | N35: 5366400 | O35: 1.57%
A36: 26 | B36: Telecom | C36: BHARTIARTL | D36: 558.55 | E36: 564.18 | F36: 551.47 | G36: 544.38 | H36: 531.67 | I36: 571.27 | J36: 583.98 | K36: 591.07 | L36: 576.9 | M36: 557.1 | N36: 73799370 | O36: 25.49%
A37: 27 | B37: Capital_Goods | C37: BHEL | D37: 24.85 | E37: 24.80 | F37: 24.10 | G37: 23.35 | H37: 22.65 | I37: 25.55 | J37: 26.25 | K37: 27.00 | L37: 25.5 | M37: 24.05 | N37: 58413200 | O37: -7.57%
A38: 28 | B38: Pharma | C38: BIOCON | D38: 356.85 | E38: 355.92 | F38: 352.03 | G38: 347.22 | H38: 343.33 | I38: 360.73 | J38: 364.62 | K38: 369.43 | L38: 359.8 | M38: 351.1 | N38: 16801500 | O38: 0.15%
A39: 29 | B39: Automobile | C39: BOSCHLTD | D39: 9397.90 | E39: 9367.00 | F39: 9241.00 | G39: 9084.10 | H39: 8958.10 | I39: 9523.90 | J39: 9649.90 | K39: 9806.80 | L39: 9493 | M39: 9210.1 | N39: 151680 | O39: -2.59%
A40: 30 | B40: Oil_Gas | C40: BPCL | D40: 312.65 | E40: 315.18 | F40: 308.97 | G40: 305.28 | H40: 299.07 | I40: 318.87 | J40: 325.08 | K40: 328.77 | L40: 321.4 | M40: 311.5 | N40: 22428000 | O40: 1.63%
A41: 31 | B41: FMCG | C41: BRITANNIA | D41: 3167.80 | E41: 3181.95 | F41: 3127.85 | G41: 3087.90 | H41: 3033.80 | I41: 3221.90 | J41: 3276.00 | K41: 3315.95 | L41: 3236.05 | M41: 3142 | N41: 1537000 | O41: 6.37%
A42: 32 | B42: Pharma | C42: CADILAHC | D42: 338.10 | E42: 341.02 | F42: 330.38 | G42: 322.67 | H42: 312.03 | I42: 348.73 | J42: 359.37 | K42: 367.08 | L42: 351.65 | M42: 333.3 | N42: 7590000 | O42: -8.75%
A43: 33 | B43: Banking | C43: CANBK | D43: 79.00 | E43: 78.52 | F43: 77.68 | G43: 76.37 | H43: 75.53 | I43: 79.83 | J43: 80.67 | K43: 81.98 | L43: 79.35 | M43: 77.2 | N43: 8545000 | O43: -5.40%
A44: 34 | B44: Textile | C44: CENTURYTEX | D44: 276.20 | E44: 275.28 | F44: 270.57 | G44: 264.93 | H44: 260.22 | I44: 280.92 | J44: 285.63 | K44: 291.27 | L44: 280 | M44: 269.65 | N44: 2376800 | O44: -0.58%
A45: 35 | B45: Power | C45: CESC | D45: 550.30 | E45: 546.65 | F45: 536.65 | G45: 523.00 | H45: 513.00 | I45: 560.30 | J45: 570.30 | K45: 583.95 | L45: 556.65 | M45: 533 | N45: 391200 | O45: -41.58%
A46: 36 | B46: Finance | C46: CHOLAFIN | D46: 122.30 | E46: 123.28 | F46: 119.62 | G46: 116.93 | H46: 113.27 | I46: 125.97 | J46: 129.63 | K46: 132.32 | L46: 126.95 | M46: 120.6 | N46: 8860000 | O46: -1.99%
A47: 37 | B47: Pharma | C47: CIPLA | D47: 625.85 | E47: 630.97 | F47: 617.23 | G47: 608.62 | H47: 594.88 | I47: 639.58 | J47: 653.32 | K47: 661.93 | L47: 644.7 | M47: 622.35 | N47: 15724700 | O47: -4.92%
A48: 38 | B48: Others | C48: COALINDIA | D48: 127.10 | E48: 126.77 | F48: 125.48 | G48: 123.87 | H48: 122.58 | I48: 128.38 | J48: 129.67 | K48: 131.28 | L48: 128.05 | M48: 125.15 | N48: 37099400 | O48: -0.94%
A49: 39 | B49: FMCG | C49: COLPAL | D49: 1279.35 | E49: 1292.65 | F49: 1262.80 | G49: 1246.25 | H49: 1216.40 | I49: 1309.20 | J49: 1339.05 | K49: 1355.60 | L49: 1322.5 | M49: 1276.1 | N49: 1902600 | O49: 6.34%
A50: 40 | B50: Others | C50: CONCOR | D50: 351.20 | E50: 350.23 | F50: 344.87 | G50: 338.53 | H50: 333.17 | I50: 356.57 | J50: 361.93 | K50: 368.27 | L50: 355.6 | M50: 343.9 | N50: 4960962 | O50: 3.22%
A51: 41 | B51: Capital_Goods | C51: CUMMINSIND | D51: 340.70 | E51: 337.25 | F51: 332.40 | G51: 324.10 | H51: 319.25 | I51: 345.55 | J51: 350.40 | K51: 358.70 | L51: 342.1 | M51: 328.95 | N51: 1892100 | O51: 6.65%
A52: 42 | B52: FMCG | C52: DABUR | D52: 431.35 | E52: 431.42 | F52: 426.53 | G52: 421.72 | H52: 416.83 | I52: 436.23 | J52: 441.12 | K52: 445.93 | L52: 436.3 | M52: 426.6 | N52: 13185000 | O52: -0.78%
A53: 43 | B53: Pharma | C53: DIVISLAB | D53: 2293.90 | E53: 2306.40 | F53: 2272.80 | G53: 2251.70 | H53: 2218.10 | I53: 2327.50 | J53: 2361.10 | K53: 2382.20 | L53: 2340 | M53: 2285.3 | N53: 2397600 | O53: 1.34%
A54: 44 | B54: Realty | C54: DLF | D54: 136.65 | E54: 136.20 | F54: 134.75 | G54: 132.85 | H54: 131.40 | I54: 138.10 | J54: 139.55 | K54: 141.45 | L54: 137.65 | M54: 134.3 | N54: 26073300 | O54: -0.53%
A55: 45 | B55: Pharma | C55: DRREDDY | D55: 3856.40 | E55: 3877.57 | F55: 3825.53 | G55: 3794.67 | H55: 3742.63 | I55: 3908.43 | J55: 3960.47 | K55: 3991.33 | L55: 3929.6 | M55: 3846.7 | N55: 3567250 | O55: -2.78%
A56: 46 | B56: Automobile | C56: EICHERMOT | D56: 14755.80 | E56: 14547.12 | F56: 14244.23 | G56: 13732.67 | H56: 13429.78 | I56: 15058.68 | J56: 15361.57 | K56: 15873.13 | L56: 14850 | M56: 14035.55 | N56: 308655 | O56: 2.18%
A57: 47 | B57: Finance | C57: EQUITAS | D57: 41.20 | E57: 41.13 | F57: 40.47 | G57: 39.73 | H57: 39.07 | I57: 41.87 | J57: 42.53 | K57: 43.27 | L57: 41.8 | M57: 40.4 | N57: 11335700 | O57: -19.02%
A58: 48 | B58: Automobile | C58: ESCORTS | D58: 867.90 | E58: 874.47 | F58: 853.53 | G58: 839.17 | H58: 818.23 | I58: 888.83 | J58: 909.77 | K58: 924.13 | L58: 895.4 | M58: 860.1 | N58: 2992000 | O58: -0.11%
A59: 49 | B59: Automobile | C59: EXIDEIND | D59: 158.85 | E59: 157.00 | F59: 153.80 | G59: 148.75 | H59: 145.55 | I59: 162.05 | J59: 165.25 | K59: 170.30 | L59: 160.2 | M59: 151.95 | N59: 5417800 | O59: -1.45%
A60: 50 | B60: Banking | C60: FEDERALBNK | D60: 38.60 | E60: 38.33 | F60: 37.82 | G60: 37.03 | H60: 36.52 | I60: 39.12 | J60: 39.63 | K60: 40.42 | L60: 38.85 | M60: 37.55 | N60: 62087000 | O60: -2.28%
A61: 51 | B61: Oil_Gas | C61: GAIL | D61: 88.15 | E61: 87.70 | F61: 86.70 | G61: 85.25 | H61: 84.25 | I61: 89.15 | J61: 90.15 | K61: 91.60 | L61: 88.7 | M61: 86.25 | N61: 26247110 | O61: -2.44%
A62: 52 | B62: Pharma | C62: GLENMARK | D62: 348.50 | E62: 351.15 | F62: 341.50 | G62: 334.50 | H62: 324.85 | I62: 358.15 | J62: 367.80 | K62: 374.80 | L62: 360.8 | M62: 344.15 | N62: 4068600 | O62: -8.35%
A63: 53 | B63: Infrastructure | C63: GMRINFRA | D63: 17.30 | E63: 17.23 | F63: 17.07 | G63: 16.83 | H63: 16.67 | I63: 17.47 | J63: 17.63 | K63: 17.87 | L63: 17.4 | M63: 17 | N63: 52830000 | O63: -0.42%
A64: 54 | B64: FMCG | C64: GODREJCP | D64: 573.60 | E64: 577.95 | F64: 566.95 | G64: 560.30 | H64: 549.30 | I64: 584.60 | J64: 595.60 | K64: 602.25 | L64: 588.95 | M64: 571.3 | N64: 6256800 | O64: -1.16%
A65: 55 | B65: Others | C65: GODREJPROP | D65: 600.65 | E65: 602.48 | F65: 597.37 | G65: 594.08 | H65: 588.97 | I65: 605.77 | J65: 610.88 | K65: 614.17 | L65: 607.6 | M65: 599.2 | N65: 402350 | O65: 20.19%
A66: 56 | B66: Cement | C66: GRASIM | D66: 531.65 | E66: 534.15 | F66: 524.95 | G66: 518.25 | H66: 509.05 | I66: 540.85 | J66: 550.05 | K66: 556.75 | L66: 543.35 | M66: 527.45 | N66: 20855300 | O66: 0.29%
A67: 57 | B67: Others | C67: HAVELLS | D67: 461.60 | E67: 460.97 | F67: 455.73 | G67: 449.87 | H67: 444.63 | I67: 466.83 | J67: 472.07 | K67: 477.93 | L67: 466.2 | M67: 455.1 | N67: 7131000 | O67: 6.56%
A68: 58 | B68: Technology | C68: HCLTECH | D68: 524.65 | E68: 527.65 | F68: 518.30 | G68: 511.95 | H68: 502.60 | I68: 534.00 | J68: 543.35 | K68: 549.70 | L68: 537 | M68: 521.3 | N68: 21858200 | O68: -1.61%
A69: 59 | B69: Finance | C69: HDFC | D69: 1500.20 | E69: 1515.35 | F69: 1468.10 | G69: 1436.00 | H69: 1388.75 | I69: 1547.45 | J69: 1594.70 | K69: 1626.80 | L69: 1562.6 | M69: 1483.25 | N69: 30712600 | O69: 0.76%
A70: 60 | B70: Banking | C70: HDFCBANK | D70: 853.55 | E70: 857.02 | F70: 845.13 | G70: 836.72 | H70: 824.83 | I70: 865.43 | J70: 877.32 | K70: 885.73 | L70: 868.9 | M70: 848.6 | N70: 41744450 | O70: -6.42%
A71: 61 | B71: Finance | C71: HDFCLIFE | D71: 507.05 | E71: 505.63 | F71: 496.42 | G71: 485.78 | H71: 476.57 | I71: 516.27 | J71: 525.48 | K71: 536.12 | L71: 514.85 | M71: 495 | N71: 13886700 | O71: 3.91%
A72: 62 | B72: Automobile | C72: HEROMOTOCO | D72: 2116.95 | E72: 2129.62 | F72: 2092.23 | G72: 2067.52 | H72: 2030.13 | I72: 2154.33 | J72: 2191.72 | K72: 2216.43 | L72: 2167 | M72: 2104.9 | N72: 2339200 | O72: -2.08%
A73: 63 | B73: Metals | C73: HINDALCO | D73: 128.80 | E73: 128.18 | F73: 126.17 | G73: 123.53 | H73: 121.52 | I73: 130.82 | J73: 132.83 | K73: 135.47 | L73: 130.2 | M73: 125.55 | N73: 32267800 | O73: 1.45%
A74: 64 | B74: Oil_Gas | C74: HINDPETRO | D74: 179.10 | E74: 180.68 | F74: 176.57 | G74: 174.03 | H74: 169.92 | I74: 183.22 | J74: 187.33 | K74: 189.87 | L74: 184.8 | M74: 178.15 | N74: 21420900 | O74: 9.57%
A75: 65 | B75: FMCG | C75: HINDUNILVR | D75: 1980.75 | E75: 1994.43 | F75: 1963.87 | G75: 1946.98 | H75: 1916.42 | I75: 2011.32 | J75: 2041.88 | K75: 2058.77 | L75: 2025 | M75: 1977.55 | N75: 18509700 | O75: 1.88%
A76: 66 | B76: Finance | C76: IBULHSGFIN | D76: 114.50 | E76: 114.70 | F76: 112.05 | G76: 109.60 | H76: 106.95 | I76: 117.15 | J76: 119.80 | K76: 122.25 | L76: 117.35 | M76: 112.25 | N76: 14867200 | O76: -2.17%
A77: 67 | B77: Banking | C77: ICICIBANK | D77: 293.10 | E77: 295.90 | F77: 286.90 | G77: 280.70 | H77: 271.70 | I77: 302.10 | J77: 311.10 | K77: 317.30 | L77: 304.9 | M77: 289.7 | N77: 106177500 | O77: 3.71%
A78: 68 | B78: Finance | C78: ICICIPRULI | D78: 347.95 | E78: 345.47 | F78: 340.58 | G78: 333.22 | H78: 328.33 | I78: 352.83 | J78: 357.72 | K78: 365.08 | L78: 350.35 | M78: 338.1 | N78: 9612000 | O78: 4.50%
A79: 69 | B79: Telecom | C79: IDEA | D79: 5.60 | E79: 5.62 | F79: 5.48 | G79: 5.37 | H79: 5.23 | I79: 5.73 | J79: 5.87 | K79: 5.98 | L79: 5.75 | M79: 5.5 | N79: 529592000 | O79: 0.60%
A80: 70 | B80: Banking | C80: IDFCFIRSTB | D80: 19.85 | E80: 19.80 | F80: 19.35 | G80: 18.85 | H80: 18.40 | I80: 20.30 | J80: 20.75 | K80: 21.25 | L80: 20.25 | M80: 19.3 | N80: 146499000 | O80: -17.29%
A81: 71 | B81: Oil_Gas | C81: IGL | D81: 468.10 | E81: 462.33 | F81: 454.67 | G81: 441.23 | H81: 433.57 | I81: 475.77 | J81: 483.43 | K81: 496.87 | L81: 470 | M81: 448.9 | N81: 5031125 | O81: 8.16%
A82: 72 | B82: Others | C82: INDIGO | D82: 940.95 | E82: 956.55 | F82: 919.55 | G82: 898.15 | H82: 861.15 | I82: 977.95 | J82: 1014.95 | K82: 1036.35 | L82: 993.55 | M82: 935.15 | N82: 3839900 | O82: -6.12%
A83: 73 | B83: Banking | C83: INDUSINDBK | D83: 348.70 | E83: 348.27 | F83: 342.38 | G83: 336.07 | H83: 330.18 | I83: 354.58 | J83: 360.47 | K83: 366.78 | L83: 354.15 | M83: 341.95 | N83: 21759600 | O83: -5.81%
A84: 74 | B84: Telecom | C84: INFRATEL | D84: 208.25 | E84: 208.47 | F84: 203.38 | G84: 198.52 | H84: 193.43 | I84: 213.33 | J84: 218.42 | K84: 223.28 | L84: 213.55 | M84: 203.6 | N84: 8829200 | O84: -1.17%
A85: 75 | B85: Technology | C85: INFY | D85: 681.20 | E85: 686.17 | F85: 673.03 | G85: 664.87 | H85: 651.73 | I85: 694.33 | J85: 707.47 | K85: 715.63 | L85: 699.3 | M85: 678 | N85: 54859200 | O85: 2.75%
A86: 76 | B86: Oil_Gas | C86: IOC | D86: 77.00 | E86: 76.95 | F86: 76.00 | G86: 75.00 | H86: 74.05 | I86: 77.95 | J86: 78.90 | K86: 79.90 | L86: 77.9 | M86: 75.95 | N86: 56693600 | O86: -2.96%
A87: 77 | B87: FMCG | C87: ITC | D87: 191.70 | E87: 191.78 | F87: 188.17 | G87: 184.63 | H87: 181.02 | I87: 195.32 | J87: 198.93 | K87: 202.47 | L87: 195.4 | M87: 188.25 | N87: 53827200 | O87: -0.26%
A88: 78 | B88: Metals | C88: JINDALSTEL | D88: 108.30 | E88: 105.45 | F88: 101.80 | G88: 95.30 | H88: 91.65 | I88: 111.95 | J88: 115.60 | K88: 122.10 | L88: 109.1 | M88: 98.95 | N88: 17685000 | O88: 6.12%
A89: 79 | B89: Metals | C89: JSWSTEEL | D89: 176.20 | E89: 173.93 | F89: 169.42 | G89: 162.63 | H89: 158.12 | I89: 180.72 | J89: 185.23 | K89: 192.02 | L89: 178.45 | M89: 167.15 | N89: 31917100 | O89: 10.50%
A90: 80 | B90: Others | C90: JUBLFOOD | D90: 1674.30 | E90: 1654.87 | F90: 1618.73 | G90: 1563.17 | H90: 1527.03 | I90: 1710.43 | J90: 1746.57 | K90: 1802.13 | L90: 1691 | M90: 1599.3 | N90: 2771000 | O90: 4.21%
A91: 81 | B91: Others | C91: JUSTDIAL | D91: 355.65 | E91: 355.57 | F91: 349.13 | G91: 342.62 | H91: 336.18 | I91: 362.08 | J91: 368.52 | K91: 375.03 | L91: 362 | M91: 349.05 | N91: 1799000 | O91: 6.55%
A92: 82 | B92: Banking | C92: KOTAKBANK | D92: 1154.15 | E92: 1157.97 | F92: 1141.18 | G92: 1128.22 | H92: 1111.43 | I92: 1170.93 | J92: 1187.72 | K92: 1200.68 | L92: 1174.75 | M92: 1145 | N92: 12398400 | O92: -0.10%
A93: 83 | B93: Finance | C93: L&TFH | D93: 51.25 | E93: 51.63 | F93: 50.62 | G93: 49.98 | H93: 48.97 | I93: 52.27 | J93: 53.28 | K93: 53.92 | L93: 52.65 | M93: 51 | N93: 30567200 | O93: -15.17%
A94: 84 | B94: Finance | C94: LICHSGFIN | D94: 235.00 | E94: 234.52 | F94: 227.93 | G94: 220.87 | H94: 214.28 | I94: 241.58 | J94: 248.17 | K94: 255.23 | L94: 241.1 | M94: 227.45 | N94: 10331500 | O94: -2.32%
A95: 85 | B95: Capital_Goods | C95: LT | D95: 825.60 | E95: 829.52 | F95: 816.08 | G95: 806.57 | H95: 793.13 | I95: 839.03 | J95: 852.47 | K95: 861.98 | L95: 842.95 | M95: 820 | N95: 12801625 | O95: 0.49%
A96: 86 | B96: Pharma | C96: LUPIN | D96: 902.50 | E96: 903.45 | F96: 889.50 | G96: 876.50 | H96: 862.55 | I96: 916.45 | J96: 930.40 | K96: 943.40 | L96: 917.4 | M96: 890.45 | N96: 9579100 | O96: -7.97%
A97: 87 | B97: Automobile | C97: M&M | D97: 428.85 | E97: 428.43 | F97: 422.17 | G97: 415.48 | H97: 409.22 | I97: 435.12 | J97: 441.38 | K97: 448.07 | L97: 434.7 | M97: 421.75 | N97: 15978000 | O97: 0.33%
A98: 88 | B98: Finance | C98: M&MFIN | D98: 133.00 | E98: 132.05 | F98: 129.80 | G98: 126.60 | H98: 124.35 | I98: 135.25 | J98: 137.50 | K98: 140.70 | L98: 134.3 | M98: 128.85 | N98: 17106700 | O98: -2.22%
A99: 89 | B99: Finance | C99: MANAPPURAM | D99: 114.25 | E99: 114.90 | F99: 112.80 | G99: 111.35 | H99: 109.25 | I99: 116.35 | J99: 118.45 | K99: 119.90 | L99: 117 | M99: 113.45 | N99: 16884000 | O99: 6.23%
A100: 90 | B100: FMCG | C100: MARICO | D100: 320.65 | E100: 321.23 | F100: 316.52 | G100: 312.38 | H100: 307.67 | I100: 325.37 | J100: 330.08 | K100: 334.22 | L100: 325.95 | M100: 317.1 | N100: 12125200 | O100: 4.59%
A101: 91 | B101: Automobile | C101: MARUTI | D101: 5249.30 | E101: 5224.72 | F101: 5169.53 | G101: 5089.77 | H101: 5034.58 | I101: 5304.48 | J101: 5359.67 | K101: 5439.43 | L101: 5279.9 | M101: 5144.95 | N101: 3339700 | O101: 3.01%
A102: 92 | B102: FMCG | C102: MCDOWELL-N | D102: 582.50 | E102: 585.18 | F102: 574.37 | G102: 566.23 | H102: 555.42 | I102: 593.32 | J102: 604.13 | K102: 612.27 | L102: 596 | M102: 577.05 | N102: 10207500 | O102: -3.55%
A103: 93 | B103: Finance | C103: MFSL | D103: 438.10 | E103: 434.45 | F103: 425.90 | G103: 413.70 | H103: 405.15 | I103: 446.65 | J103: 455.20 | K103: 467.40 | L103: 443 | M103: 422.25 | N103: 2276300 | O103: 12.82%
A104: 94 | B104: Oil_Gas | C104: MGL | D104: 928.70 | E104: 917.92 | F104: 903.88 | G104: 879.07 | H104: 865.03 | I104: 942.73 | J104: 956.77 | K104: 981.58 | L104: 931.95 | M104: 893.1 | N104: 1554600 | O104: 1.73%
A105: 95 | B105: Technology | C105: MINDTREE | D105: 882.20 | E105: 890.82 | F105: 870.78 | G105: 859.37 | H105: 839.33 | I105: 902.23 | J105: 922.27 | K105: 933.68 | L105: 910.85 | M105: 879.4 | N105: 817600 | O105: -3.13%
A106: 96 | B106: Automobile | C106: MOTHERSUMI | D106: 84.75 | E106: 83.18 | F106: 81.07 | G106: 77.38 | H106: 75.27 | I106: 86.87 | J106: 88.98 | K106: 92.67 | L106: 85.3 | M106: 79.5 | N106: 22103000 | O106: 16.88%
A107: 97 | B107: Automobile | C107: MRF | D107: 57745.15 | E107: 57718.38 | F107: 57176.77 | G107: 56608.38 | H107: 56066.77 | I107: 58286.77 | J107: 58828.38 | K107: 59396.77 | L107: 58260 | M107: 57150 | N107: 19890 | O107: 1.27%
A108: 98 | B108: Finance | C108: MUTHOOTFIN | D108: 803.15 | E108: 806.42 | F108: 792.08 | G108: 781.02 | H108: 766.68 | I108: 817.48 | J108: 831.82 | K108: 842.88 | L108: 820.75 | M108: 795.35 | N108: 2352000 | O108: 8.44%
A109: 99 | B109: Metals | C109: NATIONALUM | D109: 27.75 | E109: 27.63 | F109: 27.42 | G109: 27.08 | H109: 26.87 | I109: 27.97 | J109: 28.18 | K109: 28.52 | L109: 27.85 | M109: 27.3 | N109: 26752400 | O109: -10.40%
A110: 100 | B110: Others | C110: NAUKRI | D110: 2395.00 | E110: 2406.70 | F110: 2364.35 | G110: 2333.70 | H110: 2291.35 | I110: 2437.35 | J110: 2479.70 | K110: 2510.35 | L110: 2449.05 | M110: 2376.05 | N110: 767000 | O110: 0.52%
A111: 101 | B111: Infrastructure | C111: NCC | D111: 21.40 | E111: 21.55 | F111: 21.00 | G111: 20.60 | H111: 20.05 | I111: 21.95 | J111: 22.50 | K111: 22.90 | L111: 22.1 | M111: 21.15 | N111: 23685000 | O111: -3.32%
A112: 102 | B112: FMCG | C112: NESTLEIND | D112: 16601.35 | E112: 16492.78 | F112: 16311.32 | G112: 16021.28 | H112: 15839.82 | I112: 16782.82 | J112: 16964.28 | K112: 17254.32 | L112: 16674.25 | M112: 16202.75 | N112: 382850 | O112: -3.93%
A113: 103 | B113: Technology | C113: NIITTECH | D113: 1487.15 | E113: 1492.62 | F113: 1456.23 | G113: 1425.32 | H113: 1388.93 | I113: 1523.53 | J113: 1559.92 | K113: 1590.83 | L113: 1529 | M113: 1461.7 | N113: 446250 | O113: 1.10%
A114: 104 | B114: Metals | C114: NMDC | D114: 75.70 | E114: 74.87 | F114: 73.68 | G114: 71.67 | H114: 70.48 | I114: 76.88 | J114: 78.07 | K114: 80.08 | L114: 76.05 | M114: 72.85 | N114: 29218200 | O114: -6.62%
A115: 105 | B115: Power | C115: NTPC | D115: 92.95 | E115: 92.37 | F115: 91.33 | G115: 89.72 | H115: 88.68 | I115: 93.98 | J115: 95.02 | K115: 96.63 | L115: 93.4 | M115: 90.75 | N115: 49577100 | O115: -1.13%
A116: 106 | B116: Oil_Gas | C116: ONGC | D116: 77.25 | E116: 77.47 | F116: 76.53 | G116: 75.82 | H116: 74.88 | I116: 78.18 | J116: 79.12 | K116: 79.83 | L116: 78.4 | M116: 76.75 | N116: 54784300 | O116: -2.51%
A117: 107 | B117: Textile | C117: PAGEIND | D117: 18727.60 | E117: 18665.60 | F117: 18351.20 | G117: 17974.80 | H117: 17660.40 | I117: 19042.00 | J117: 19356.40 | K117: 19732.80 | L117: 18980 | M117: 18289.2 | N117: 140925 | O117: -2.31%
A118: 108 | B118: Pharma | C118: PEL | D118: 902.95 | E118: 916.15 | F118: 884.85 | G118: 866.75 | H118: 835.45 | I118: 934.25 | J118: 965.55 | K118: 983.65 | L118: 947.45 | M118: 898.05 | N118: 4650938 | O118: -2.50%
A119: 109 | B119: Oil_Gas | C119: PETRONET | D119: 233.00 | E119: 231.42 | F119: 228.78 | G119: 224.57 | H119: 221.93 | I119: 235.63 | J119: 238.27 | K119: 242.48 | L119: 234.05 | M119: 227.2 | N119: 12669000 | O119: 3.68%
A120: 110 | B120: Finance | C120: PFC | D120: 75.15 | E120: 75.22 | F120: 74.28 | G120: 73.42 | H120: 72.48 | I120: 76.08 | J120: 77.02 | K120: 77.88 | L120: 76.15 | M120: 74.35 | N120: 41918200 | O120: 0.61%
A121: 111 | B121: FMCG | C121: PIDILITIND | D121: 1412.30 | E121: 1416.13 | F121: 1395.32 | G121: 1378.33 | H121: 1357.52 | I121: 1433.12 | J121: 1453.93 | K121: 1470.92 | L121: 1436.95 | M121: 1399.15 | N121: 2659500 | O121: -1.30%
A122: 112 | B122: Banking | C122: PNB | D122: 26.75 | E122: 26.78 | F122: 26.47 | G122: 26.18 | H122: 25.87 | I122: 27.07 | J122: 27.38 | K122: 27.67 | L122: 27.1 | M122: 26.5 | N122: 50555500 | O122: 0.28%
A123: 113 | B123: Power | C123: POWERGRID | D123: 157.45 | E123: 157.37 | F123: 155.78 | G123: 154.12 | H123: 152.53 | I123: 159.03 | J123: 160.62 | K123: 162.28 | L123: 158.95 | M123: 155.7 | N123: 31496000 | O123: -1.44%
A124: 114 | B124: Media | C124: PVR | D124: 854.10 | E124: 852.53 | F124: 841.87 | G124: 829.63 | H124: 818.97 | I124: 864.77 | J124: 875.43 | K124: 887.67 | L124: 863.2 | M124: 840.3 | N124: 1882000 | O124: -2.28%
A125: 115 | B125: Cement | C125: RAMCOCEM | D125: 608.90 | E125: 599.35 | F125: 584.55 | G125: 560.20 | H125: 545.40 | I125: 623.70 | J125: 638.50 | K125: 662.85 | L125: 614.15 | M125: 575 | N125: 631200 | O125: 9.13%
A126: 116 | B126: Banking | C126: RBLBANK | D126: 110.80 | E126: 110.32 | F126: 108.78 | G126: 106.77 | H126: 105.23 | I126: 112.33 | J126: 113.87 | K126: 115.88 | L126: 111.85 | M126: 108.3 | N126: 20534500 | O126: -4.71%
A127: 117 | B127: Power | C127: RECLTD | D127: 84.25 | E127: 84.65 | F127: 83.10 | G127: 81.95 | H127: 80.40 | I127: 85.80 | J127: 87.35 | K127: 88.50 | L127: 86.2 | M127: 83.5 | N127: 23814000 | O127: 8.09%
A128: 118 | B128: Oil_Gas | C128: RELIANCE | D128: 1424.80 | E128: 1430.83 | F128: 1410.42 | G128: 1396.03 | H128: 1375.62 | I128: 1445.22 | J128: 1465.63 | K128: 1480.02 | L128: 1451.25 | M128: 1416.45 | N128: 29833885 | O128: -1.63%
A129: 119 | B129: Metals | C129: SAIL | D129: 28.40 | E129: 28.20 | F129: 27.70 | G129: 27.00 | H129: 26.50 | I129: 28.90 | J129: 29.40 | K129: 30.10 | L129: 28.7 | M129: 27.5 | N129: 45918200 | O129: -11.20%
A130: 120 | B130: Finance | C130: SBILIFE | D130: 754.75 | E130: 746.92 | F130: 737.83 | G130: 720.92 | H130: 711.83 | I130: 763.83 | J130: 772.92 | K130: 789.83 | L130: 756 | M130: 730 | N130: 2363250 | O130: -3.02%
A131: 121 | B131: Banking | C131: SBIN | D131: 151.65 | E131: 151.72 | F131: 150.08 | G131: 148.52 | H131: 146.88 | I131: 153.28 | J131: 154.92 | K131: 156.48 | L131: 153.35 | M131: 150.15 | N131: 119406000 | O131: -2.85%
A132: 122 | B132: Cement | C132: SHREECEM | D132: 20558.85 | E132: 20344.55 | F132: 20014.30 | G132: 19469.75 | H132: 19139.50 | I132: 20889.10 | J132: 21219.35 | K132: 21763.90 | L132: 20674.8 | M132: 19800 | N132: 147200 | O132: 1.38%
A133: 123 | B133: Capital_Goods | C133: SIEMENS | D133: 1021.55 | E133: 1025.52 | F133: 1010.03 | G133: 998.52 | H133: 983.03 | I133: 1037.03 | J133: 1052.52 | K133: 1064.03 | L133: 1041 | M133: 1014 | N133: 2098250 | O133: 0.98%
A134: 124 | B134: Textile | C134: SRF | D134: 3441.60 | E134: 3425.77 | F134: 3376.53 | G134: 3311.47 | H134: 3262.23 | I134: 3490.83 | J134: 3540.07 | K134: 3605.13 | L134: 3475 | M134: 3360.7 | N134: 608750 | O134: 1.88%
A135: 125 | B135: Finance | C135: SRTRANSFIN | D135: 539.20 | E135: 543.05 | F135: 527.20 | G135: 515.20 | H135: 499.35 | I135: 555.05 | J135: 570.90 | K135: 582.90 | L135: 558.9 | M135: 531.05 | N135: 3069950 | O135: -12.63%
A136: 126 | B136: Pharma | C136: SUNPHARMA | D136: 458.45 | E136: 462.95 | F136: 451.10 | G136: 443.75 | H136: 431.90 | I136: 470.30 | J136: 482.15 | K136: 489.50 | L136: 474.8 | M136: 455.6 | N136: 42408150 | O136: -1.28%
A137: 127 | B137: Media | C137: SUNTV | D137: 393.30 | E137: 392.98 | F137: 387.97 | G137: 382.63 | H137: 377.62 | I137: 398.32 | J137: 403.33 | K137: 408.67 | L137: 398 | M137: 387.65 | N137: 4321500 | O137: 12.78%
A138: 128 | B138: Fertilisers | C138: TATACHEM | D138: 299.05 | E138: 297.40 | F138: 294.90 | G138: 290.75 | H138: 288.25 | I138: 301.55 | J138: 304.05 | K138: 308.20 | L138: 299.9 | M138: 293.25 | N138: 2301500 | O138: -0.14%
A139: 129 | B139: Others | C139: TATACONSUM | D139: 369.80 | E139: 368.10 | F139: 361.25 | G139: 352.70 | H139: 345.85 | I139: 376.65 | J139: 383.50 | K139: 392.05 | L139: 374.95 | M139: 359.55 | N139: 9061200 | O139: -6.52%
A140: 130 | B140: Automobile | C140: TATAMOTORS | D140: 83.35 | E140: 83.93 | F140: 82.07 | G140: 80.78 | H140: 78.92 | I140: 85.22 | J140: 87.08 | K140: 88.37 | L140: 85.8 | M140: 82.65 | N140: 65905400 | O140: -1.02%
A141: 131 | B141: Power | C141: TATAPOWER | D141: 35.90 | E141: 35.08 | F141: 34.12 | G141: 32.33 | H141: 31.37 | I141: 36.87 | J141: 37.83 | K141: 39.62 | L141: 36.05 | M141: 33.3 | N141: 65538000 | O141: -1.40%
A142: 132 | B142: Metals | C142: TATASTEEL | D142: 280.80 | E142: 280.72 | F142: 276.68 | G142: 272.57 | H142: 268.53 | I142: 284.83 | J142: 288.87 | K142: 292.98 | L142: 284.75 | M142: 276.6 | N142: 20058200 | O142: -7.58%
A143: 133 | B143: Technology | C143: TCS | D143: 1941.65 | E143: 1963.80 | F143: 1903.15 | G143: 1864.65 | H143: 1804.00 | I143: 2002.30 | J143: 2062.95 | K143: 2101.45 | L143: 2024.45 | M143: 1925.3 | N143: 15291550 | O143: 1.15%
A144: 134 | B144: Technology | C144: TECHM | D144: 519.40 | E144: 525.77 | F144: 511.13 | G144: 502.87 | H144: 488.23 | I144: 534.03 | J144: 548.67 | K144: 556.93 | L144: 540.4 | M144: 517.5 | N144: 16423200 | O144: 2.46%
A145: 135 | B145: FMCG | C145: TITAN | D145: 889.40 | E145: 878.48 | F145: 863.12 | G145: 836.83 | H145: 821.47 | I145: 904.77 | J145: 920.13 | K145: 946.42 | L145: 893.85 | M145: 852.2 | N145: 8784750 | O145: 9.84%
A146: 136 | B146: Pharma | C146: TORNTPHARM | D146: 2565.15 | E146: 2577.48 | F146: 2532.02 | G146: 2498.88 | H146: 2453.42 | I146: 2610.62 | J146: 2656.08 | K146: 2689.22 | L146: 2622.95 | M146: 2544.35 | N146: 852000 | O146: -5.54%
A147: 137 | B147: Power | C147: TORNTPOWER | D147: 308.90 | E147: 305.65 | F147: 300.60 | G147: 292.30 | H147: 287.25 | I147: 313.95 | J147: 319.00 | K147: 327.30 | L147: 310.7 | M147: 297.35 | N147: 2709000 | O147: 8.14%
A148: 138 | B148: Automobile | C148: TVSMOTOR | D148: 321.00 | E148: 317.82 | F148: 312.18 | G148: 303.37 | H148: 297.73 | I148: 326.63 | J148: 332.27 | K148: 341.08 | L148: 323.45 | M148: 309 | N148: 4237750 | O148: 0.48%
A149: 139 | B149: FMCG | C149: UBL | D149: 928.25 | E149: 930.13 | F149: 915.42 | G149: 902.58 | H149: 887.87 | I149: 942.97 | J149: 957.68 | K149: 970.52 | L149: 944.85 | M149: 917.3 | N149: 956200 | O149: -4.01%
A150: 140 | B150: Finance | C150: UJJIVAN | D150: 150.25 | E150: 149.98 | F150: 145.97 | G150: 141.68 | H150: 137.67 | I150: 154.27 | J150: 158.28 | K150: 162.57 | L150: 154 | M150: 145.7 | N150: 5217900 | O150: -10.59%
A151: 141 | B151: Cement | C151: ULTRACEMCO | D151: 3776.05 | E151: 3755.08 | F151: 3678.12 | G151: 3580.18 | H151: 3503.22 | I151: 3853.02 | J151: 3929.98 | K151: 4027.92 | L151: 3832.05 | M151: 3657.15 | N151: 2542200 | O151: 4.27%
A152: 142 | B152: Fertilisers | C152: UPL | D152: 367.40 | E152: 373.18 | F152: 359.52 | G152: 351.63 | H152: 337.97 | I152: 381.07 | J152: 394.73 | K152: 402.62 | L152: 386.85 | M152: 365.3 | N152: 18739400 | O152: -6.03%
A153: 143 | B153: Metals | C153: VEDL | D153: 87.95 | E153: 88.67 | F153: 86.93 | G153: 85.92 | H153: 84.18 | I153: 89.68 | J153: 91.42 | K153: 92.43 | L153: 90.4 | M153: 87.65 | N153: 110627400 | O153: 0.73%
A154: 144 | B154: Capital_Goods | C154: VOLTAS | D154: 449.70 | E154: 449.93 | F154: 444.82 | G154: 439.93 | H154: 434.82 | I154: 454.82 | J154: 459.93 | K154: 464.82 | L154: 455.05 | M154: 445.05 | N154: 4503000 | O154: 10.61%
A155: 145 | B155: Technology | C155: WIPRO | D155: 189.00 | E155: 189.43 | F155: 185.47 | G155: 181.93 | H155: 177.97 | I155: 192.97 | J155: 196.93 | K155: 200.47 | L155: 193.4 | M155: 185.9 | N155: 27747200 | O155: 4.79%
A156: 146 | B156: Banking | C156: YESBANK | D156: 27.50 | E156: 27.40 | F156: 26.60 | G156: 25.70 | H156: 24.90 | I156: 28.30 | J156: 29.10 | K156: 30.00 | L156: 28.2 | M156: 26.5 | N156: 18312800 | O156: -13.58%
A157: 147 | B157: Media | C157: ZEEL | D157: 165.20 | E157: 163.63 | F157: 160.37 | G157: 155.53 | H157: 152.27 | I157: 168.47 | J157: 171.73 | K157: 176.57 | L157: 166.9 | M157: 158.8 | N157: 28100700 | O157: -3.23%
A175: Pivot Point: This is trigger point for intra day buy/sell based on the price range of the previous day
A176: As per the tool,the trader should take BUY position just above Pivot and keep the stop loss of pivot point and the first target would be Resistance 1(R1)
A177: If R1 is crossed then R2 becomes the next target with stop loss of at R1
A178: Similarly if price goes below pivot point then the trader should sell and keep a stop loss of pivot point and the first target would be S1
A179: If S1 is crossed then S2 becomes the next target with stop loss of at S1
A181: Disclaimer:
A182: This document has been prepared by the Retail Research Desk of Asit C Mehta
A183: Investment Intermediates Ltd. and is meant for use of the recipient only
A184: and is not for circulation. This document is not to be reported or
A185: copied or made available to others. It should not be considered to be
A186: taken as an offer to sell or a solicitation to buy any security. The
A187: information contained herein is from sources believed reliable. We do
A188: not represent that it is accurate or complete and it should not be
A189: relied upon as such. We may from time to time have positions in and buy
A190: and sell securities referred to herein

Sheet Cash Intra
M5: Back to Main Page
A6: FOR INTRA DAY TRADING | K6: =Main!B10 -> 2020-05-27
A8: Sr.no | B8: Scrip | C8: CLOSE RATE | D8: Pivot Point | E8: Supports | H8: Resistances
C9: Point | E9: S1 | F9: S2 | G9: S3 | H9: R1 | I9: R2 | J9: R3 | K9: HIGH | L9: LOW | M9: Total Trade Quanity in Lakhs
A10: 1 | B10: Nifty 50 | C10: 9029.05 | D10: 9062.45 | E10: 8963.25 | F10: 8897.45 | G10: 8798.25 | H10: 9128.25 | I10: 9227.45 | J10: 9293.25 | K10: 9161.65 | L10: 8996.65
A11: 2 | B11: Nifty Bank | C11: 17440.35 | D11: 17477.77 | E11: 17273.83 | F11: 17107.32 | G11: 16903.38 | H11: 17644.28 | I11: 17848.22 | J11: 18014.73 | K11: 17681.7 | L11: 17311.25
A12: 3 | B12: Nifty CPSE | C12: 1331.7 | D12: 1327.83 | E12: 1319.97 | F12: 1308.23 | G12: 1300.37 | H12: 1339.57 | I12: 1347.43 | J12: 1359.17 | K12: 1335.7 | L12: 1316.1
A13: 4 | B13: Nifty Infra | C13: 2724.45 | D13: 2727.90 | E13: 2713.75 | F13: 2703.05 | G13: 2688.90 | H13: 2738.60 | I13: 2752.75 | J13: 2763.45 | K13: 2742.05 | L13: 2717.2
A14: 5 | B14: Nifty IT | C14: 13574.95 | D14: 13676.25 | E14: 13421.65 | F14: 13268.35 | G14: 13013.75 | H14: 13829.55 | I14: 14084.15 | J14: 14237.45 | K14: 13930.85 | L14: 13522.95
A15: 6 | B15: Nifty PSE | C15: 2233.3 | D15: 2231.70 | E15: 2217.35 | F15: 2201.40 | G15: 2187.05 | H15: 2247.65 | I15: 2262.00 | J15: 2277.95 | K15: 2246.05 | L15: 2215.75
A16: 7 | B16: Nifty Midcap 50 | C16: 3567.2 | D16: 3551.07 | E16: 3528.53 | F16: 3489.87 | G16: 3467.33 | H16: 3589.73 | I16: 3612.27 | J16: 3650.93 | K16: 3573.6 | L16: 3512.4
A17: 8 | B17: ACC | C17: 1277.45 | D17: 1265.42 | E17: 1248.03 | F17: 1218.62 | G17: 1201.23 | H17: 1294.83 | I17: 1312.22 | J17: 1341.63 | K17: 1282.8 | L17: 1236 | M17: 25.62407
A18: 9 | B18: AUBANK | C18: 383 | D18: 385.93 | E18: 377.07 | F18: 371.13 | G18: 362.27 | H18: 391.87 | I18: 400.73 | J18: 406.67 | K18: 394.8 | L18: 380 | M18: 4.00872
A19: 10 | B19: ADANIPORTS | C19: 315.6 | D19: 315.25 | E19: 309.95 | F19: 304.30 | G19: 299.00 | H19: 320.90 | I19: 326.20 | J19: 331.85 | K19: 320.55 | L19: 309.6 | M19: 40.31218
A20: 11 | B20: ADANIPOWER | C20: 36.7 | D20: 35.77 | E20: 34.33 | F20: 31.97 | G20: 30.53 | H20: 38.13 | I20: 39.57 | J20: 41.93 | K20: 37.2 | L20: 33.4 | M20: 524.81588
A21: 12 | B21: ABCAPITAL | C21: 45.1 | D21: 44.12 | E21: 42.53 | F21: 39.97 | G21: 38.38 | H21: 46.68 | I21: 48.27 | J21: 50.83 | K21: 45.7 | L21: 41.55 | M21: 161.84187
A22: 13 | B22: ABFRL | C22: 108.75 | D22: 109.67 | E22: 106.43 | F22: 104.12 | G22: 100.88 | H22: 111.98 | I22: 115.22 | J22: 117.53 | K22: 112.9 | L22: 107.35 | M22: 16.29138
A23: 14 | B23: AJANTPHARM | C23: 1498.3 | D23: 1501.77 | E23: 1478.53 | F23: 1458.77 | G23: 1435.53 | H23: 1521.53 | I23: 1544.77 | J23: 1564.53 | K23: 1525 | L23: 1482 | M23: 1.25713
A24: 15 | B24: ALKEM | C24: 2411.85 | D24: 2442.95 | E24: 2371.90 | F24: 2331.95 | G24: 2260.90 | H24: 2482.90 | I24: 2553.95 | J24: 2593.90 | K24: 2514 | L24: 2403 | M24: 0.81091
A25: 16 | B25: AMARAJABAT | C25: 605.3 | D25: 602.28 | E25: 595.57 | F25: 585.83 | G25: 579.12 | H25: 612.02 | I25: 618.73 | J25: 628.47 | K25: 609 | L25: 592.55 | M25: 14.28639
A26: 17 | B26: AMBUJACEM | C26: 188.55 | D26: 188.03 | E26: 186.07 | F26: 183.58 | G26: 181.62 | H26: 190.52 | I26: 192.48 | J26: 194.97 | K26: 190 | L26: 185.55 | M26: 58.00498
A27: 18 | B27: APOLLOHOSP | C27: 1321.75 | D27: 1315.55 | E27: 1292.30 | F27: 1262.85 | G27: 1239.60 | H27: 1345.00 | I27: 1368.25 | J27: 1397.70 | K27: 1338.8 | L27: 1286.1 | M27: 11.45344
A28: 19 | B28: APOLLOTYRE | C28: 92.35 | D28: 91.95 | E28: 90.90 | F28: 89.45 | G28: 88.40 | H28: 93.40 | I28: 94.45 | J28: 95.90 | K28: 93 | L28: 90.5 | M28: 57.90752
A29: 20 | B29: ASHOKLEY | C29: 43.55 | D29: 43.73 | E29: 42.92 | F29: 42.28 | G29: 41.47 | H29: 44.37 | I29: 45.18 | J29: 45.82 | K29: 44.55 | L29: 43.1 | M29: 259.75801
A30: 21 | B30: ASIANPAINT | C30: 1629.85 | D30: 1635.60 | E30: 1614.25 | F30: 1598.65 | G30: 1577.30 | H30: 1651.20 | I30: 1672.55 | J30: 1688.15 | K30: 1656.95 | L30: 1620 | M30: 35.52863
A31: 22 | B31: AUROPHARMA | C31: 714.95 | D31: 719.63 | E31: 704.47 | F31: 693.98 | G31: 678.82 | H31: 730.12 | I31: 745.28 | J31: 755.77 | K31: 734.8 | L31: 709.15 | M31: 37.23219
A32: 23 | B32: DMART | C32: 2283.25 | D32: 2300.55 | E32: 2261.10 | F32: 2238.95 | G32: 2199.50 | H32: 2322.70 | I32: 2362.15 | J32: 2384.30 | K32: 2340 | L32: 2278.4 | M32: 7.73061
A33: 24 | B33: AXISBANK | C33: 341.3 | D33: 341.78 | E33: 335.87 | F33: 330.43 | G33: 324.52 | H33: 347.22 | I33: 353.13 | J33: 358.57 | K33: 347.7 | L33: 336.35 | M33: 306.93404
A34: 25 | B34: BAJAJ-AUTO | C34: 2564.85 | D34: 2565.47 | E34: 2532.98 | F34: 2501.12 | G34: 2468.63 | H34: 2597.33 | I34: 2629.82 | J34: 2661.68 | K34: 2597.95 | L34: 2533.6 | M34: 6.86476
A35: 26 | B35: BAJFINANCE | C35: 1829 | D35: 1861.43 | E35: 1789.12 | F35: 1749.23 | G35: 1676.92 | H35: 1901.32 | I35: 1973.63 | J35: 2013.52 | K35: 1933.75 | L35: 1821.55 | M35: 98.69545
A36: 27 | B36: BAJAJFINSV | C36: 4097.25 | D36: 4183.02 | E36: 3966.03 | F36: 3834.82 | G36: 3617.83 | H36: 4314.23 | I36: 4531.22 | J36: 4662.43 | K36: 4400 | L36: 4051.8 | M36: 15.7582
A37: 28 | B37: BAJAJHLDNG | C37: 1992.1 | D37: 1989.70 | E37: 1969.40 | F37: 1946.70 | G37: 1926.40 | H37: 2012.40 | I37: 2032.70 | J37: 2055.40 | K37: 2010 | L37: 1967 | M37: 0.1586
A38: 29 | B38: BALKRISIND | C38: 1037.6 | D38: 1027.20 | E38: 1010.40 | F38: 983.20 | G38: 966.40 | H38: 1054.40 | I38: 1071.20 | J38: 1098.40 | K38: 1044 | L38: 1000 | M38: 12.53175
A39: 30 | B39: BANDHANBNK | C39: 202.15 | D39: 203.88 | E39: 199.27 | F39: 196.38 | G39: 191.77 | H39: 206.77 | I39: 211.38 | J39: 214.27 | K39: 208.5 | L39: 201 | M39: 79.15168
A40: 31 | B40: BANKBARODA | C40: 37.1 | D40: 37.38 | E40: 36.42 | F40: 35.73 | G40: 34.77 | H40: 38.07 | I40: 39.03 | J40: 39.72 | K40: 38.35 | L40: 36.7 | M40: 335.32219
A41: 32 | B41: BANKINDIA | C41: 31.4 | D41: 31.52 | E41: 31.08 | F41: 30.77 | G41: 30.33 | H41: 31.83 | I41: 32.27 | J41: 32.58 | K41: 31.95 | L41: 31.2 | M41: 10.04592
A42: 33 | B42: BATAINDIA | C42: 1286.55 | D42: 1271.85 | E42: 1244.70 | F42: 1202.85 | G42: 1175.70 | H42: 1313.70 | I42: 1340.85 | J42: 1382.70 | K42: 1299 | L42: 1230 | M42: 22.97683
A43: 34 | B43: BERGEPAINT | C43: 457.4 | D43: 459.63 | E43: 450.77 | F43: 444.13 | G43: 435.27 | H43: 466.27 | I43: 475.13 | J43: 481.77 | K43: 468.5 | L43: 453 | M43: 13.89807
A44: 35 | B44: BEL | C44: 65 | D44: 64.55 | E44: 63.80 | F44: 62.60 | G44: 61.85 | H44: 65.75 | I44: 66.50 | J44: 67.70 | K44: 65.3 | L44: 63.35 | M44: 108.05516
A45: 36 | B45: BHARATFORG | C45: 291.7 | D45: 291.10 | E45: 287.30 | F45: 282.90 | G45: 279.10 | H45: 295.50 | I45: 299.30 | J45: 303.70 | K45: 294.9 | L45: 286.7 | M45: 19.13305
A46: 37 | B46: BHEL | C46: 24.85 | D46: 24.88 | E46: 24.32 | F46: 23.78 | G46: 23.22 | H46: 25.42 | I46: 25.98 | J46: 26.52 | K46: 25.45 | L46: 24.35 | M46: 412.19769
A47: 38 | B47: BPCL | C47: 313.15 | D47: 315.37 | E47: 309.83 | F47: 306.52 | G47: 300.98 | H47: 318.68 | I47: 324.22 | J47: 327.53 | K47: 320.9 | L47: 312.05 | M47: 61.06561
A48: 39 | B48: BHARTIARTL | C48: 559.25 | D48: 564.42 | E48: 552.38 | F48: 545.52 | G48: 533.48 | H48: 571.28 | I48: 583.32 | J48: 590.18 | K48: 576.45 | L48: 557.55 | M48: 764.9732
A49: 40 | B49: INFRATEL | C49: 208.15 | D49: 208.47 | E49: 202.93 | F49: 197.72 | G49: 192.18 | H49: 213.68 | I49: 219.22 | J49: 224.43 | K49: 214 | L49: 203.25 | M49: 94.68767
A50: 41 | B50: BIOCON | C50: 358.3 | D50: 356.83 | E50: 352.67 | F50: 347.03 | G50: 342.87 | H50: 362.47 | I50: 366.63 | J50: 372.27 | K50: 361 | L50: 351.2 | M50: 88.74192
A51: 42 | B51: BBTC | C51: 819.1 | D51: 823.30 | E51: 808.80 | F51: 798.50 | G51: 784.00 | H51: 833.60 | I51: 848.10 | J51: 858.40 | K51: 837.8 | L51: 813 | M51: 0.23717
A52: 43 | B52: BOSCHLTD | C52: 9391.85 | D52: 9404.65 | E52: 9237.25 | F52: 9082.65 | G52: 8915.25 | H52: 9559.25 | I52: 9726.65 | J52: 9881.25 | K52: 9572.05 | L52: 9250.05 | M52: 0.40025
A53: 44 | B53: BRITANNIA | C53: 3163.85 | D53: 3182.95 | E53: 3121.90 | F53: 3079.95 | G53: 3018.90 | H53: 3224.90 | I53: 3285.95 | J53: 3327.90 | K53: 3244 | L53: 3141 | M53: 7.18134
A54: 45 | B54: CESC | C54: 552.2 | D54: 547.60 | E54: 538.20 | F54: 524.20 | G54: 514.80 | H54: 561.60 | I54: 571.00 | J54: 585.00 | K54: 557 | L54: 533.6 | M54: 9.48228
A55: 46 | B55: CADILAHC | C55: 338.3 | D55: 341.47 | E55: 331.08 | F55: 323.87 | G55: 313.48 | H55: 348.68 | I55: 359.07 | J55: 366.28 | K55: 351.85 | L55: 334.25 | M55: 40.6378
A56: 47 | B56: CANBK | C56: 78.8 | D56: 78.43 | E56: 77.62 | F56: 76.43 | G56: 75.62 | H56: 79.62 | I56: 80.43 | J56: 81.62 | K56: 79.25 | L56: 77.25 | M56: 70.43735
A57: 48 | B57: CASTROLIND | C57: 114.75 | D57: 114.95 | E57: 110.90 | F57: 107.05 | G57: 103.00 | H57: 118.80 | I57: 122.85 | J57: 126.70 | K57: 119 | L57: 111.1 | M57: 24.31829
A58: 49 | B58: CHOLAFIN | C58: 122.1 | D58: 123.17 | E58: 119.43 | F58: 116.77 | G58: 113.03 | H58: 125.83 | I58: 129.57 | J58: 132.23 | K58: 126.9 | L58: 120.5 | M58: 108.9413
A59: 50 | B59: CIPLA | C59: 627.7 | D59: 632.88 | E59: 618.87 | F59: 610.03 | G59: 596.02 | H59: 641.72 | I59: 655.73 | J59: 664.57 | K59: 646.9 | L59: 624.05 | M59: 88.59499
A60: 51 | B60: CUB | C60: 122.85 | D60: 124.47 | E60: 120.38 | F60: 117.92 | G60: 113.83 | H60: 126.93 | I60: 131.02 | J60: 133.48 | K60: 128.55 | L60: 122 | M60: 7.54056
A61: 52 | B61: COALINDIA | C61: 127.25 | D61: 126.75 | E61: 125.50 | F61: 123.75 | G61: 122.50 | H61: 128.50 | I61: 129.75 | J61: 131.50 | K61: 128 | L61: 125 | M61: 61.83
A62: 53 | B62: COLPAL | C62: 1278.25 | D62: 1291.78 | E62: 1261.47 | F62: 1244.68 | G62: 1214.37 | H62: 1308.57 | I62: 1338.88 | J62: 1355.67 | K62: 1322.1 | L62: 1275 | M62: 22.48358
A63: 54 | B63: CONCOR | C63: 351.2 | D63: 349.85 | E63: 343.90 | F63: 336.60 | G63: 330.65 | H63: 357.15 | I63: 363.10 | J63: 370.40 | K63: 355.8 | L63: 342.55 | M63: 7.55153
A64: 55 | B64: COROMANDEL | C64: 650.25 | D64: 645.80 | E64: 626.80 | F64: 603.35 | G64: 584.35 | H64: 669.25 | I64: 688.25 | J64: 711.70 | K64: 664.8 | L64: 622.35 | M64: 5.37903
A65: 56 | B65: CROMPTON | C65: 215.2 | D65: 214.30 | E65: 211.00 | F65: 206.80 | G65: 203.50 | H65: 218.50 | I65: 221.80 | J65: 226.00 | K65: 217.6 | L65: 210.1 | M65: 15.70657
A66: 57 | B66: CUMMINSIND | C66: 340.75 | D66: 337.75 | E66: 333.00 | F66: 325.25 | G66: 320.50 | H66: 345.50 | I66: 350.25 | J66: 358.00 | K66: 342.5 | L66: 330 | M66: 8.07861
A67: 58 | B67: DLF | C67: 136.75 | D67: 136.38 | E67: 134.92 | F67: 133.08 | G67: 131.62 | H67: 138.22 | I67: 139.68 | J67: 141.52 | K67: 137.85 | L67: 134.55 | M67: 45.95672
A68: 59 | B68: DABUR | C68: 433.1 | D68: 432.23 | E68: 428.27 | F68: 423.43 | G68: 419.47 | H68: 437.07 | I68: 441.03 | J68: 445.87 | K68: 436.2 | L68: 427.4 | M68: 33.34582
A69: 60 | B69: DALBHARAT | C69: 507.2 | D69: 507.55 | E69: 489.65 | F69: 472.10 | G69: 454.20 | H69: 525.10 | I69: 543.00 | J69: 560.55 | K69: 525.45 | L69: 490 | M69: 15.12876
A70: 61 | B70: DIVISLAB | C70: 2295.7 | D70: 2309.33 | E70: 2273.77 | F70: 2251.83 | G70: 2216.27 | H70: 2331.27 | I70: 2366.83 | J70: 2388.77 | K70: 2344.9 | L70: 2287.4 | M70: 4.04978
A71: 62 | B71: DRREDDY | C71: 3864.3 | D71: 3885.58 | E71: 3832.17 | F71: 3800.03 | G71: 3746.62 | H71: 3917.72 | I71: 3971.13 | J71: 4003.27 | K71: 3939 | L71: 3853.45 | M71: 8.27396
A72: 63 | B72: EDELWEISS | C72: 44.6 | D72: 43.67 | E72: 42.73 | F72: 40.87 | G72: 39.93 | H72: 45.53 | I72: 46.47 | J72: 48.33 | K72: 44.6 | L72: 41.8 | M72: 15.03219
A73: 64 | B73: EICHERMOT | C73: 14805.1 | D73: 14581.70 | E73: 14288.40 | F73: 13771.70 | G73: 13478.40 | H73: 15098.40 | I73: 15391.70 | J73: 15908.40 | K73: 14875 | L73: 14065 | M73: 3.19135
A74: 65 | B74: EMAMILTD | C74: 206.4 | D74: 208.10 | E74: 202.20 | F74: 198.00 | G74: 192.10 | H74: 212.30 | I74: 218.20 | J74: 222.40 | K74: 214 | L74: 203.9 | M74: 4.14471
A75: 66 | B75: ENDURANCE | C75: 653.35 | D75: 652.07 | E75: 646.13 | F75: 638.92 | G75: 632.98 | H75: 659.28 | I75: 665.22 | J75: 672.43 | K75: 658 | L75: 644.85 | M75: 0.5772
A76: 67 | B76: ENGINERSIN | C76: 61.2 | D76: 61.52 | E76: 60.73 | F76: 60.27 | G76: 59.48 | H76: 61.98 | I76: 62.77 | J76: 63.23 | K76: 62.3 | L76: 61.05 | M76: 4.58116
A77: 68 | B77: ESCORTS | C77: 869.1 | D77: 880.68 | E77: 851.72 | F77: 834.33 | G77: 805.37 | H77: 898.07 | I77: 927.03 | J77: 944.42 | K77: 909.65 | L77: 863.3 | M77: 25.57007
A78: 69 | B78: EXIDEIND | C78: 159.5 | D78: 157.45 | E78: 154.30 | F78: 149.10 | G78: 145.95 | H78: 162.65 | I78: 165.80 | J78: 171.00 | K78: 160.6 | L78: 152.25 | M78: 34.80523
A79: 70 | B79: FEDERALBNK | C79: 38.45 | D79: 38.25 | E79: 37.75 | F79: 37.05 | G79: 36.55 | H79: 38.95 | I79: 39.45 | J79: 40.15 | K79: 38.75 | L79: 37.55 | M79: 247.6654
A80: 71 | B80: FORTIS | C80: 114.9 | D80: 114.48 | E80: 113.52 | F80: 112.13 | G80: 111.17 | H80: 115.87 | I80: 116.83 | J80: 118.22 | K80: 115.45 | L80: 113.1 | M80: 6.1038
A81: 72 | B81: FCONSUMER | C81: 7.8 | D81: 7.67 | E81: 7.53 | F81: 7.27 | G81: 7.13 | H81: 7.93 | I81: 8.07 | J81: 8.33 | K81: 7.8 | L81: 7.4 | M81: 28.10755
A82: 73 | B82: FRETAIL | C82: 73.4 | D82: 72.30 | E82: 71.20 | F82: 69.00 | G82: 67.90 | H82: 74.50 | I82: 75.60 | J82: 77.80 | K82: 73.4 | L82: 70.1 | M82: 20.25461
A83: 74 | B83: GAIL | C83: 88.15 | D83: 87.63 | E83: 86.67 | F83: 85.18 | G83: 84.22 | H83: 89.12 | I83: 90.08 | J83: 91.57 | K83: 88.6 | L83: 86.15 | M83: 97.32127
A84: 75 | B84: GMRINFRA | C84: 17.25 | D84: 17.22 | E84: 17.03 | F84: 16.82 | G84: 16.63 | H84: 17.43 | I84: 17.62 | J84: 17.83 | K84: 17.4 | L84: 17 | M84: 51.67392
A85: 76 | B85: GICRE | C85: 121.7 | D85: 122.35 | E85: 119.95 | F85: 118.20 | G85: 115.80 | H85: 124.10 | I85: 126.50 | J85: 128.25 | K85: 124.75 | L85: 120.6 | M85: 0.61919
A86: 77 | B86: GLENMARK | C86: 348.2 | D86: 351.23 | E86: 341.97 | F86: 335.73 | G86: 326.47 | H86: 357.47 | I86: 366.73 | J86: 372.97 | K86: 360.5 | L86: 345 | M86: 51.83869
A87: 78 | B87: GODREJAGRO | C87: 364.6 | D87: 365.62 | E87: 361.28 | F87: 357.97 | G87: 353.63 | H87: 368.93 | I87: 373.27 | J87: 376.58 | K87: 369.95 | L87: 362.3 | M87: 1.11223
A88: 79 | B88: GODREJCP | C88: 574.95 | D88: 577.65 | E88: 567.30 | F88: 559.65 | G88: 549.30 | H88: 585.30 | I88: 595.65 | J88: 603.30 | K88: 588 | L88: 570 | M88: 14.15962
A89: 80 | B89: GODREJIND | C89: 287.9 | D89: 278.55 | E89: 264.40 | F89: 240.90 | G89: 226.75 | H89: 302.05 | I89: 316.20 | J89: 339.70 | K89: 292.7 | L89: 255.05 | M89: 25.88495
A90: 81 | B90: GODREJPROP | C90: 602.35 | D90: 603.33 | E90: 598.67 | F90: 594.98 | G90: 590.32 | H90: 607.02 | I90: 611.68 | J90: 615.37 | K90: 608 | L90: 599.65 | M90: 2.85056
A91: 82 | B91: GRAPHITE | C91: 178.65 | D91: 179.42 | E91: 177.23 | F91: 175.82 | G91: 173.63 | H91: 180.83 | I91: 183.02 | J91: 184.43 | K91: 181.6 | L91: 178 | M91: 1.22222
A92: 83 | B92: GRASIM | C92: 532.65 | D92: 534.97 | E92: 525.53 | F92: 518.42 | G92: 508.98 | H92: 542.08 | I92: 551.52 | J92: 558.63 | K92: 544.4 | L92: 527.85 | M92: 39.88184
A93: 84 | B93: GSPL | C93: 188.5 | D93: 188.83 | E93: 185.32 | F93: 182.13 | G93: 178.62 | H93: 192.02 | I93: 195.53 | J93: 198.72 | K93: 192.35 | L93: 185.65 | M93: 4.6231
A94: 85 | B94: HEG | C94: 726.7 | D94: 734.00 | E94: 717.50 | F94: 708.30 | G94: 691.80 | H94: 743.20 | I94: 759.70 | J94: 768.90 | K94: 750.5 | L94: 724.8 | M94: 0.8654
A95: 86 | B95: HCLTECH | C95: 524 | D95: 526.92 | E95: 517.33 | F95: 510.67 | G95: 501.08 | H95: 533.58 | I95: 543.17 | J95: 549.83 | K95: 536.5 | L95: 520.25 | M95: 40.55697
A96: 87 | B96: HDFCAMC | C96: 2441.4 | D96: 2448.33 | E96: 2425.07 | F96: 2408.73 | G96: 2385.47 | H96: 2464.67 | I96: 2487.93 | J96: 2504.27 | K96: 2471.6 | L96: 2432 | M96: 0.98366
A97: 88 | B97: HDFCBANK | C97: 852.4 | D97: 857.63 | E97: 843.52 | F97: 834.63 | G97: 820.52 | H97: 866.52 | I97: 880.63 | J97: 889.52 | K97: 871.75 | L97: 848.75 | M97: 190.02589
A98: 89 | B98: HDFCLIFE | C98: 507.45 | D98: 506.45 | E98: 498.00 | F98: 488.55 | G98: 480.10 | H98: 515.90 | I98: 524.35 | J98: 533.80 | K98: 514.9 | L98: 497 | M98: 42.1564
A99: 90 | B99: HAVELLS | C99: 460.7 | D99: 460.55 | E99: 454.30 | F99: 447.90 | G99: 441.65 | H99: 466.95 | I99: 473.20 | J99: 479.60 | K99: 466.8 | L99: 454.15 | M99: 22.49584
A100: 91 | B100: HEROMOTOCO | C100: 2113.65 | D100: 2128.18 | E100: 2086.47 | F100: 2059.28 | G100: 2017.57 | H100: 2155.37 | I100: 2197.08 | J100: 2224.27 | K100: 2169.9 | L100: 2101 | M100: 15.13569
A101: 92 | B101: HEXAWARE | C101: 237.05 | D101: 237.38 | E101: 234.77 | F101: 232.48 | G101: 229.87 | H101: 239.67 | I101: 242.28 | J101: 244.57 | K101: 240 | L101: 235.1 | M101: 2.47975
A102: 93 | B102: HINDALCO | C102: 129.1 | D102: 128.35 | E102: 126.25 | F102: 123.40 | G102: 121.30 | H102: 131.20 | I102: 133.30 | J102: 136.15 | K102: 130.45 | L102: 125.5 | M102: 187.86955
A103: 94 | B103: HINDPETRO | C103: 179.3 | D103: 180.80 | E103: 176.80 | F103: 174.30 | G103: 170.30 | H103: 183.30 | I103: 187.30 | J103: 189.80 | K103: 184.8 | L103: 178.3 | M103: 44.72319
A104: 95 | B104: HINDUNILVR | C104: 1977.8 | D104: 1990.93 | E104: 1961.87 | F104: 1945.93 | G104: 1916.87 | H104: 2006.87 | I104: 2035.93 | J104: 2051.87 | K104: 2020 | L104: 1975 | M104: 46.29114
A105: 96 | B105: HINDZINC | C105: 166.65 | D105: 166.98 | E105: 164.97 | F105: 163.28 | G105: 161.27 | H105: 168.67 | I105: 170.68 | J105: 172.37 | K105: 169 | L105: 165.3 | M105: 5.25611
A106: 97 | B106: HUDCO | C106: 21.95 | D106: 22.00 | E106: 21.65 | F106: 21.35 | G106: 21.00 | H106: 22.30 | I106: 22.65 | J106: 22.95 | K106: 22.35 | L106: 21.7 | M106: 9.82384
A107: 98 | B107: HDFC | C107: 1502.15 | D107: 1518.77 | E107: 1469.38 | F107: 1436.62 | G107: 1387.23 | H107: 1551.53 | I107: 1600.92 | J107: 1633.68 | K107: 1568.15 | L107: 1486 | M107: 127.5251
A108: 99 | B108: ICICIBANK | C108: 292.7 | D108: 293.53 | E108: 289.17 | F108: 285.63 | G108: 281.27 | H108: 297.07 | I108: 301.43 | J108: 304.97 | K108: 297.9 | L108: 290 | M108: 466.84636
A109: 100 | B109: ICICIGI | C109: 1233.35 | D109: 1239.78 | E109: 1221.57 | F109: 1209.78 | G109: 1191.57 | H109: 1251.57 | I109: 1269.78 | J109: 1281.57 | K109: 1258 | L109: 1228 | M109: 3.03068
A110: 101 | B110: ICICIPRULI | C110: 347.35 | D110: 344.95 | E110: 339.90 | F110: 332.45 | G110: 327.40 | H110: 352.40 | I110: 357.45 | J110: 364.90 | K110: 350 | L110: 337.5 | M110: 45.02179
A111: 102 | B111: IDBI | C111: 19.65 | D111: 19.73 | E111: 19.47 | F111: 19.28 | G111: 19.02 | H111: 19.92 | I111: 20.18 | J111: 20.37 | K111: 20 | L111: 19.55 | M111: 8.73434
A112: 103 | B112: IDFCFIRSTB | C112: 19.85 | D112: 19.87 | E112: 19.53 | F112: 19.22 | G112: 18.88 | H112: 20.18 | I112: 20.52 | J112: 20.83 | K112: 20.2 | L112: 19.55 | M112: 669.5108
A113: 104 | B113: ITC | C113: 191.7 | D113: 191.48 | E113: 188.02 | F113: 184.33 | G113: 180.87 | H113: 195.17 | I113: 198.63 | J113: 202.32 | K113: 194.95 | L113: 187.8 | M113: 532.35758
A114: 105 | B114: IBULHSGFIN | C114: 115.2 | D114: 115.82 | E114: 113.18 | F114: 111.17 | G114: 108.53 | H114: 117.83 | I114: 120.47 | J114: 122.48 | K114: 118.45 | L114: 113.8 | M114: 109.97051
A115: 106 | B115: IBVENTURES | C115: 66.35 | D115: 67.37 | E115: 65.23 | F115: 64.12 | G115: 61.98 | H115: 68.48 | I115: 70.62 | J115: 71.73 | K115: 69.5 | L115: 66.25 | M115: 14.52926
A116: 107 | B116: INDIANB | C116: 44.15 | D116: 44.33 | E116: 43.77 | F116: 43.38 | G116: 42.82 | H116: 44.72 | I116: 45.28 | J116: 45.67 | K116: 44.9 | L116: 43.95 | M116: 5.59071
A117: 108 | B117: INDHOTEL | C117: 67.75 | D117: 68.67 | E117: 66.43 | F117: 65.12 | G117: 62.88 | H117: 69.98 | I117: 72.22 | J117: 73.53 | K117: 70.9 | L117: 67.35 | M117: 9.28952
A118: 109 | B118: IOC | C118: 77.15 | D118: 77.05 | E118: 76.25 | F118: 75.35 | G118: 74.55 | H118: 77.95 | I118: 78.75 | J118: 79.65 | K118: 77.85 | L118: 76.15 | M118: 154.86146
A119: 110 | B119: IGL | C119: 470 | D119: 464.43 | E119: 456.67 | F119: 443.33 | G119: 435.57 | H119: 477.77 | I119: 485.53 | J119: 498.87 | K119: 472.2 | L119: 451.1 | M119: 36.52826
A120: 111 | B120: INDUSINDBK | C120: 348.2 | D120: 348.05 | E120: 342.15 | F120: 336.10 | G120: 330.20 | H120: 354.10 | I120: 360.00 | J120: 366.05 | K120: 353.95 | L120: 342 | M120: 199.33264
A121: 112 | B121: NAUKRI | C121: 2395.1 | D121: 2409.68 | E121: 2362.42 | F121: 2329.73 | G121: 2282.47 | H121: 2442.37 | I121: 2489.63 | J121: 2522.32 | K121: 2456.95 | L121: 2377 | M121: 2.41083
A122: 113 | B122: INFY | C122: 680.55 | D122: 686.33 | E122: 673.22 | F122: 665.88 | G122: 652.77 | H122: 693.67 | I122: 706.78 | J122: 714.12 | K122: 699.45 | L122: 679 | M122: 70.99719
A123: 114 | B123: INDIGO | C123: 942 | D123: 957.98 | E123: 920.92 | F123: 899.83 | G123: 862.77 | H123: 979.07 | I123: 1016.13 | J123: 1037.22 | K123: 995.05 | L123: 936.9 | M123: 28.05294
A124: 115 | B124: IPCALAB | C124: 1618.95 | D124: 1611.60 | E124: 1584.20 | F124: 1549.45 | G124: 1522.05 | H124: 1646.35 | I124: 1673.75 | J124: 1708.50 | K124: 1639 | L124: 1576.85 | M124: 3.16401
A125: 116 | B125: JSWENERGY | C125: 39.2 | D125: 39.42 | E125: 38.88 | F125: 38.57 | G125: 38.03 | H125: 39.73 | I125: 40.27 | J125: 40.58 | K125: 39.95 | L125: 39.1 | M125: 8.16548
A126: 117 | B126: JSWSTEEL | C126: 176.25 | D126: 174.17 | E126: 170.08 | F126: 163.92 | G126: 159.83 | H126: 180.33 | I126: 184.42 | J126: 190.58 | K126: 178.25 | L126: 168 | M126: 303.83793
A127: 118 | B127: JINDALSTEL | C127: 109.15 | D127: 106.37 | E127: 101.88 | F127: 94.62 | G127: 90.13 | H127: 113.63 | I127: 118.12 | J127: 125.38 | K127: 110.85 | L127: 99.1 | M127: 575.13757
A128: 119 | B128: JUBLFOOD | C128: 1704.05 | D128: 1687.72 | E128: 1638.58 | F128: 1573.12 | G128: 1523.98 | H128: 1753.18 | I128: 1802.32 | J128: 1867.78 | K128: 1736.85 | L128: 1622.25 | M128: 26.07363
A129: 120 | B129: JUBILANT | C129: 444.1 | D129: 449.70 | E129: 434.40 | F129: 424.70 | G129: 409.40 | H129: 459.40 | I129: 474.70 | J129: 484.40 | K129: 465 | L129: 440 | M129: 1.58365
A130: 121 | B130: KOTAKBANK | C130: 1153.2 | D130: 1157.58 | E130: 1140.17 | F130: 1127.13 | G130: 1109.72 | H130: 1170.62 | I130: 1188.03 | J130: 1201.07 | K130: 1175 | L130: 1144.55 | M130: 54.70825
A131: 122 | B131: L&TFH | C131: 51.1 | D131: 51.60 | E131: 50.50 | F131: 49.90 | G131: 48.80 | H131: 52.20 | I131: 53.30 | J131: 53.90 | K131: 52.7 | L131: 51 | M131: 165.03276
A132: 123 | B132: LTTS | C132: 1137.55 | D132: 1135.85 | E132: 1125.70 | F132: 1113.85 | G132: 1103.70 | H132: 1147.70 | I132: 1157.85 | J132: 1169.70 | K132: 1146 | L132: 1124 | M132: 0.58622
A133: 124 | B133: LICHSGFIN | C133: 239.6 | D133: 238.72 | E133: 233.48 | F133: 227.37 | G133: 222.13 | H133: 244.83 | I133: 250.07 | J133: 256.18 | K133: 243.95 | L133: 232.6 | M133: 52.33253
A134: 125 | B134: LTI | C134: 1787.25 | D134: 1787.98 | E134: 1766.32 | F134: 1745.38 | G134: 1723.72 | H134: 1808.92 | I134: 1830.58 | J134: 1851.52 | K134: 1809.65 | L134: 1767.05 | M134: 0.82065
A135: 126 | B135: LT | C135: 825.55 | D135: 829.75 | E135: 816.80 | F135: 808.05 | G135: 795.10 | H135: 838.50 | I135: 851.45 | J135: 860.20 | K135: 842.7 | L135: 821 | M135: 43.3543
A136: 127 | B136: LUPIN | C136: 905.95 | D136: 906.05 | E136: 892.90 | F136: 879.85 | G136: 866.70 | H136: 919.10 | I136: 932.25 | J136: 945.30 | K136: 919.2 | L136: 893 | M136: 54.37214
A137: 128 | B137: MRF | C137: 57726.1 | D137: 57707.07 | E137: 57214.18 | F137: 56702.27 | G137: 56209.38 | H137: 58218.98 | I137: 58711.87 | J137: 59223.78 | K137: 58199.95 | L137: 57195.15 | M137: 0.06257
A138: 129 | B138: MGL | C138: 930.4 | D138: 920.00 | E138: 905.00 | F138: 879.60 | G138: 864.60 | H138: 945.40 | I138: 960.40 | J138: 985.80 | K138: 935 | L138: 894.6 | M138: 7.04497
A139: 130 | B139: M&MFIN | C139: 132.8 | D139: 131.90 | E139: 129.90 | F139: 127.00 | G139: 125.00 | H139: 134.80 | I139: 136.80 | J139: 139.70 | K139: 133.9 | L139: 129 | M139: 95.97793
A140: 131 | B140: M&M | C140: 429.15 | D140: 428.67 | E140: 422.13 | F140: 415.12 | G140: 408.58 | H140: 435.68 | I140: 442.22 | J140: 449.23 | K140: 435.2 | L140: 421.65 | M140: 58.95379
A141: 132 | B141: MANAPPURAM | C141: 114.2 | D141: 114.97 | E141: 112.83 | F141: 111.47 | G141: 109.33 | H141: 116.33 | I141: 118.47 | J141: 119.83 | K141: 117.1 | L141: 113.6 | M141: 64.77047
A142: 133 | B142: MRPL | C142: 26.9 | D142: 26.92 | E142: 26.63 | F142: 26.37 | G142: 26.08 | H142: 27.18 | I142: 27.47 | J142: 27.73 | K142: 27.2 | L142: 26.65 | M142: 1.92645
A143: 134 | B143: MARICO | C143: 321.7 | D143: 321.57 | E143: 317.43 | F143: 313.17 | G143: 309.03 | H143: 325.83 | I143: 329.97 | J143: 334.23 | K143: 325.7 | L143: 317.3 | M143: 47.46694
A144: 135 | B144: MARUTI | C144: 5246.15 | D144: 5230.87 | E144: 5175.93 | F144: 5105.72 | G144: 5050.78 | H144: 5301.08 | I144: 5356.02 | J144: 5426.23 | K144: 5285.8 | L144: 5160.65 | M144: 15.08804
A145: 136 | B145: MFSL | C145: 438.2 | D145: 434.48 | E145: 425.07 | F145: 411.93 | G145: 402.52 | H145: 447.62 | I145: 457.03 | J145: 470.17 | K145: 443.9 | L145: 421.35 | M145: 9.87573
A146: 137 | B146: MINDTREE | C146: 881.8 | D146: 890.18 | E146: 870.37 | F146: 858.93 | G146: 839.12 | H146: 901.62 | I146: 921.43 | J146: 932.87 | K146: 910 | L146: 878.75 | M146: 8.82171
A147: 138 | B147: MOTHERSUMI | C147: 84.6 | D147: 83.20 | E147: 81.10 | F147: 77.60 | G147: 75.50 | H147: 86.70 | I147: 88.80 | J147: 92.30 | K147: 85.3 | L147: 79.7 | M147: 226.55645
A148: 139 | B148: MPHASIS | C148: 865.1 | D148: 859.05 | E148: 848.45 | F148: 831.80 | G148: 821.20 | H148: 875.70 | I148: 886.30 | J148: 902.95 | K148: 869.65 | L148: 842.4 | M148: 6.92191
A149: 140 | B149: MUTHOOTFIN | C149: 803.65 | D149: 807.02 | E149: 791.03 | F149: 778.42 | G149: 762.43 | H149: 819.63 | I149: 835.62 | J149: 848.23 | K149: 823 | L149: 794.4 | M149: 9.92012
A150: 141 | B150: NATCOPHARM | C150: 590.6 | D150: 592.88 | E150: 585.87 | F150: 581.13 | G150: 574.12 | H150: 597.62 | I150: 604.63 | J150: 609.37 | K150: 599.9 | L150: 588.15 | M150: 3.60921
A151: 142 | B151: NBCC | C151: 17.05 | D151: 17.08 | E151: 16.92 | F151: 16.78 | G151: 16.62 | H151: 17.22 | I151: 17.38 | J151: 17.52 | K151: 17.25 | L151: 16.95 | M151: 26.58754
A152: 143 | B152: NHPC | C152: 19.8 | D152: 19.82 | E152: 19.68 | F152: 19.57 | G152: 19.43 | H152: 19.93 | I152: 20.07 | J152: 20.18 | K152: 19.95 | L152: 19.7 | M152: 9.5686
A153: 144 | B153: NMDC | C153: 75.8 | D153: 75.02 | E153: 73.68 | F153: 71.57 | G153: 70.23 | H153: 77.13 | I153: 78.47 | J153: 80.58 | K153: 76.35 | L153: 72.9 | M153: 63.06187
A154: 145 | B154: NTPC | C154: 93 | D154: 92.18 | E154: 90.97 | F154: 88.93 | G154: 87.72 | H154: 94.22 | I154: 95.43 | J154: 97.47 | K154: 93.4 | L154: 90.15 | M154: 123.50762
A155: 146 | B155: NATIONALUM | C155: 27.65 | D155: 27.57 | E155: 27.33 | F155: 27.02 | G155: 26.78 | H155: 27.88 | I155: 28.12 | J155: 28.43 | K155: 27.8 | L155: 27.25 | M155: 61.32089
A156: 147 | B156: NESTLEIND | C156: 16655.15 | D156: 16576.52 | E156: 16403.03 | F156: 16150.92 | G156: 15977.43 | H156: 16828.63 | I156: 17002.12 | J156: 17254.23 | K156: 16750 | L156: 16324.4 | M156: 1.98692
A157: 148 | B157: NAM-INDIA | C157: 234.55 | D157: 236.55 | E157: 231.75 | F157: 228.95 | G157: 224.15 | H157: 239.35 | I157: 244.15 | J157: 246.95 | K157: 241.35 | L157: 233.75 | M157: 5.56991
A158: 149 | B158: OBEROIRLTY | C158: 302 | D158: 300.92 | E158: 294.83 | F158: 287.67 | G158: 281.58 | H158: 308.08 | I158: 314.17 | J158: 321.33 | K158: 307 | L158: 293.75 | M158: 2.13084
A159: 150 | B159: ONGC | C159: 77 | D159: 77.27 | E159: 76.33 | F159: 75.67 | G159: 74.73 | H159: 77.93 | I159: 78.87 | J159: 79.53 | K159: 78.2 | L159: 76.6 | M159: 118.40048
A160: 151 | B160: OIL | C160: 83.1 | D160: 83.88 | E160: 81.87 | F160: 80.63 | G160: 78.62 | H160: 85.12 | I160: 87.13 | J160: 88.37 | K160: 85.9 | L160: 82.65 | M160: 11.97452
A161: 152 | B161: OFSS | C161: 2356.5 | D161: 2360.98 | E161: 2335.52 | F161: 2314.53 | G161: 2289.07 | H161: 2381.97 | I161: 2407.43 | J161: 2428.42 | K161: 2386.45 | L161: 2340 | M161: 0.14164
A162: 153 | B162: PIIND | C162: 1578.85 | D162: 1562.78 | E162: 1528.57 | F162: 1478.28 | G162: 1444.07 | H162: 1613.07 | I162: 1647.28 | J162: 1697.57 | K162: 1597 | L162: 1512.5 | M162: 2.88732
A163: 154 | B163: PNBHOUSING | C163: 167.95 | D163: 168.93 | E163: 165.92 | F163: 163.88 | G163: 160.87 | H163: 170.97 | I163: 173.98 | J163: 176.02 | K163: 171.95 | L163: 166.9 | M163: 0.87166
A164: 155 | B164: PAGEIND | C164: 18706.25 | D164: 18603.78 | E164: 18287.57 | F164: 17868.88 | G164: 17552.67 | H164: 19022.47 | I164: 19338.68 | J164: 19757.37 | K164: 18920 | L164: 18185.1 | M164: 0.70649
A165: 156 | B165: PETRONET | C165: 233 | D165: 231.67 | E165: 228.53 | F165: 224.07 | G165: 220.93 | H165: 236.13 | I165: 239.27 | J165: 243.73 | K165: 234.8 | L165: 227.2 | M165: 19.28643
A166: 157 | B166: PFIZER | C166: 4208.9 | D166: 4211.52 | E166: 4153.93 | F166: 4098.97 | G166: 4041.38 | H166: 4266.48 | I166: 4324.07 | J166: 4379.03 | K166: 4269.1 | L166: 4156.55 | M166: 0.68619
A167: 158 | B167: PIDILITIND | C167: 1412.45 | D167: 1417.32 | E167: 1395.63 | F167: 1378.82 | G167: 1357.13 | H167: 1434.13 | I167: 1455.82 | J167: 1472.63 | K167: 1439 | L167: 1400.5 | M167: 7.93658
A168: 159 | B168: PEL | C168: 906.25 | D168: 922.90 | E168: 883.40 | F168: 860.55 | G168: 821.05 | H168: 945.75 | I168: 985.25 | J168: 1008.10 | K168: 962.4 | L168: 900.05 | M168: 15.03188
A169: 160 | B169: PFC | C169: 75.1 | D169: 75.28 | E169: 74.37 | F169: 73.63 | G169: 72.72 | H169: 76.02 | I169: 76.93 | J169: 77.67 | K169: 76.2 | L169: 74.55 | M169: 37.94176
A170: 161 | B170: POWERGRID | C170: 157.35 | D170: 157.18 | E170: 155.67 | F170: 153.98 | G170: 152.47 | H170: 158.87 | I170: 160.38 | J170: 162.07 | K170: 158.7 | L170: 155.5 | M170: 104.13408
A171: 162 | B171: PRESTIGE | C171: 136.9 | D171: 138.42 | E171: 135.23 | F171: 133.57 | G171: 130.38 | H171: 140.08 | I171: 143.27 | J171: 144.93 | K171: 141.6 | L171: 136.75 | M171: 4.54263
A172: 163 | B172: PGHH | C172: 10020.7 | D172: 9973.93 | E172: 9897.87 | F172: 9775.03 | G172: 9698.97 | H172: 10096.77 | I172: 10172.83 | J172: 10295.67 | K172: 10050 | L172: 9851.1 | M172: 0.02021
A173: 164 | B173: PNB | C173: 26.7 | D173: 26.73 | E173: 26.42 | F173: 26.13 | G173: 25.82 | H173: 27.02 | I173: 27.33 | J173: 27.62 | K173: 27.05 | L173: 26.45 | M173: 172.87019
A174: 165 | B174: QUESS | C174: 201.75 | D174: 198.83 | E174: 195.92 | F174: 190.08 | G174: 187.17 | H174: 204.67 | I174: 207.58 | J174: 213.42 | K174: 201.75 | L174: 193 | M174: 4.59096
A175: 166 | B175: RBLBANK | C175: 110.55 | D175: 110.13 | E175: 108.72 | F175: 106.88 | G175: 105.47 | H175: 111.97 | I175: 113.38 | J175: 115.22 | K175: 111.55 | L175: 108.3 | M175: 162.40256
A176: 167 | B176: RECLTD | C176: 84.2 | D176: 84.73 | E176: 83.12 | F176: 82.03 | G176: 80.42 | H176: 85.82 | I176: 87.43 | J176: 88.52 | K176: 86.35 | L176: 83.65 | M176: 61.93573
A177: 168 | B177: RAJESHEXPO | C177: 508 | D177: 509.43 | E177: 505.57 | F177: 503.13 | G177: 499.27 | H177: 511.87 | I177: 515.73 | J177: 518.17 | K177: 513.3 | L177: 507 | M177: 0.33484
A178: 169 | B178: RELIANCE | C178: 1424.05 | D178: 1430.02 | E178: 1410.33 | F178: 1396.62 | G178: 1376.93 | H178: 1443.73 | I178: 1463.42 | J178: 1477.13 | K178: 1449.7 | L178: 1416.3 | M178: 153.30793
A179: 170 | B179: SBILIFE | C179: 754.45 | D179: 747.28 | E179: 738.57 | F179: 722.68 | G179: 713.97 | H179: 763.17 | I179: 771.88 | J179: 787.77 | K179: 756 | L179: 731.4 | M179: 11.1099
A180: 171 | B180: SRF | C180: 3452.45 | D180: 3433.88 | E180: 3386.57 | F180: 3320.68 | G180: 3273.37 | H180: 3499.77 | I180: 3547.08 | J180: 3612.97 | K180: 3481.2 | L180: 3368 | M180: 1.50024
A181: 172 | B181: SHREECEM | C181: 20667.3 | D181: 20375.75 | E181: 19991.55 | F181: 19315.80 | G181: 18931.60 | H181: 21051.50 | I181: 21435.70 | J181: 22111.45 | K181: 20759.95 | L181: 19700 | M181: 1.15383
A182: 173 | B182: SRTRANSFIN | C182: 538 | D182: 542.93 | E182: 527.07 | F182: 516.13 | G182: 500.27 | H182: 553.87 | I182: 569.73 | J182: 580.67 | K182: 558.8 | L182: 532 | M182: 42.00368
A183: 174 | B183: SIEMENS | C183: 1021.95 | D183: 1025.32 | E183: 1011.63 | F183: 1001.32 | G183: 987.63 | H183: 1035.63 | I183: 1049.32 | J183: 1059.63 | K183: 1039 | L183: 1015 | M183: 4.90069
A184: 175 | B184: SBIN | C184: 151.4 | D184: 151.60 | E184: 150.00 | F184: 148.60 | G184: 147.00 | H184: 153.00 | I184: 154.60 | J184: 156.00 | K184: 153.2 | L184: 150.2 | M184: 482.81208
A185: 176 | B185: SAIL | C185: 28.3 | D185: 28.13 | E185: 27.67 | F185: 27.03 | G185: 26.57 | H185: 28.77 | I185: 29.23 | J185: 29.87 | K185: 28.6 | L185: 27.5 | M185: 270.73395
A186: 177 | B186: STRTECH | C186: 95.55 | D186: 96.65 | E186: 94.00 | F186: 92.45 | G186: 89.80 | H186: 98.20 | I186: 100.85 | J186: 102.40 | K186: 99.3 | L186: 95.1 | M186: 6.4133
A187: 178 | B187: SUNPHARMA | C187: 459.15 | D187: 463.88 | E187: 452.27 | F187: 445.38 | G187: 433.77 | H187: 470.77 | I187: 482.38 | J187: 489.27 | K187: 475.5 | L187: 457 | M187: 98.01065
A188: 179 | B188: SUNTV | C188: 393.05 | D188: 392.85 | E188: 387.70 | F188: 382.35 | G188: 377.20 | H188: 398.20 | I188: 403.35 | J188: 408.70 | K188: 398 | L188: 387.5 | M188: 14.47925
A189: 180 | B189: SYNGENE | C189: 352.2 | D189: 355.38 | E189: 343.82 | F189: 335.43 | G189: 323.87 | H189: 363.77 | I189: 375.33 | J189: 383.72 | K189: 366.95 | L189: 347 | M189: 2.71574
A190: 181 | B190: TVSMOTOR | C190: 322.5 | D190: 319.20 | E190: 313.60 | F190: 304.70 | G190: 299.10 | H190: 328.10 | I190: 333.70 | J190: 342.60 | K190: 324.8 | L190: 310.3 | M190: 31.76296
A191: 182 | B191: TCS | C191: 1943 | D191: 1964.00 | E191: 1904.00 | F191: 1865.00 | G191: 1805.00 | H191: 2003.00 | I191: 2063.00 | J191: 2102.00 | K191: 2024 | L191: 1925 | M191: 45.75512
A192: 183 | B192: TATACONSUM | C192: 371.95 | D192: 369.47 | E192: 362.48 | F192: 353.02 | G192: 346.03 | H192: 378.93 | I192: 385.92 | J192: 395.38 | K192: 376.45 | L192: 360 | M192: 77.28762
A193: 184 | B193: TATAMTRDVR | C193: 34.85 | D193: 35.08 | E193: 34.47 | F193: 34.08 | G193: 33.47 | H193: 35.47 | I193: 36.08 | J193: 36.47 | K193: 35.7 | L193: 34.7 | M193: 22.54501
A194: 185 | B194: TATAMOTORS | C194: 83.1 | D194: 83.80 | E194: 81.90 | F194: 80.70 | G194: 78.80 | H194: 85.00 | I194: 86.90 | J194: 88.10 | K194: 85.7 | L194: 82.6 | M194: 380.18351
A195: 186 | B195: TATAPOWER | C195: 35.75 | D195: 35.12 | E195: 34.23 | F195: 32.72 | G195: 31.83 | H195: 36.63 | I195: 37.52 | J195: 39.03 | K195: 36 | L195: 33.6 | M195: 510.53714
A196: 187 | B196: TATASTEEL | C196: 280.45 | D196: 280.62 | E196: 276.83 | F196: 273.22 | G196: 269.43 | H196: 284.23 | I196: 288.02 | J196: 291.63 | K196: 284.4 | L196: 277 | M196: 121.0874
A197: 188 | B197: TECHM | C197: 520.45 | D197: 526.68 | E197: 512.62 | F197: 504.78 | G197: 490.72 | H197: 534.52 | I197: 548.58 | J197: 556.42 | K197: 540.75 | L197: 518.85 | M197: 27.19798
A198: 189 | B198: NIACL | C198: 114.65 | D198: 115.20 | E198: 113.55 | F198: 112.45 | G198: 110.80 | H198: 116.30 | I198: 117.95 | J198: 119.05 | K198: 116.85 | L198: 114.1 | M198: 0.65295
A199: 190 | B199: RAMCOCEM | C199: 612.45 | D199: 600.65 | E199: 583.80 | F199: 555.15 | G199: 538.30 | H199: 629.30 | I199: 646.15 | J199: 674.80 | K199: 617.5 | L199: 572 | M199: 18.55687
A200: 191 | B200: TITAN | C200: 892.75 | D200: 881.62 | E200: 866.28 | F200: 839.82 | G200: 824.48 | H200: 908.08 | I200: 923.42 | J200: 949.88 | K200: 896.95 | L200: 855.15 | M200: 56.25238
A201: 192 | B201: TORNTPHARM | C201: 2581.55 | D201: 2589.20 | E201: 2547.40 | F201: 2513.25 | G201: 2471.45 | H201: 2623.35 | I201: 2665.15 | J201: 2699.30 | K201: 2631 | L201: 2555.05 | M201: 10.16734
A202: 193 | B202: TORNTPOWER | C202: 311.5 | D202: 308.20 | E202: 300.80 | F202: 290.10 | G202: 282.70 | H202: 318.90 | I202: 326.30 | J202: 337.00 | K202: 315.6 | L202: 297.5 | M202: 21.84858
A203: 194 | B203: UPL | C203: 367.05 | D203: 373.05 | E203: 359.65 | F203: 352.25 | G203: 338.85 | H203: 380.45 | I203: 393.85 | J203: 401.25 | K203: 386.45 | L203: 365.65 | M203: 149.07868
A204: 195 | B204: ULTRACEMCO | C204: 3786 | D204: 3763.47 | E204: 3679.93 | F204: 3573.87 | G204: 3490.33 | H204: 3869.53 | I204: 3953.07 | J204: 4059.13 | K204: 3847 | L204: 3657.4 | M204: 14.09108
A205: 196 | B205: UNIONBANK | C205: 22.9 | D205: 23.00 | E205: 22.75 | F205: 22.60 | G205: 22.35 | H205: 23.15 | I205: 23.40 | J205: 23.55 | K205: 23.25 | L205: 22.85 | M205: 14.95197
... 30 more rows

Sheet MidCap Intra
L5: Back To Main Page
A6: FOR INTRA DAY TRADING | K6: =Main!B10 -> 2020-05-27
A9: Sr.no | B9: Scrip | C9: CLOSE RATE | D9: Pivot Point | E9: Supports | H9: Resistances
C10: Point | E10: S1 | F10: S2 | G10: S3 | H10: R1 | I10: R2 | J10: R3 | K10: HIGH | L10: LOW | M10: Total Trade Quanity in Lakhs
A11: 1 | B11: 3MINDIA | C11: 17520.65 | D11: 17490.22 | E11: 17330.43 | F11: 17140.22 | G11: 16980.43 | H11: 17680.43 | I11: 17840.22 | J11: 18030.43 | K11: 17650 | L11: 17300 | M11: 0.0197
A12: 2 | B12: AARTIIND | C12: 1009.85 | D12: 1009.28 | E12: 991.57 | F12: 973.28 | G12: 955.57 | H12: 1027.57 | I12: 1045.28 | J12: 1063.57 | K12: 1027 | L12: 991 | M12: 4.92917
A13: 3 | B13: AAVAS | C13: 1037.1 | D13: 1055.02 | E13: 1018.78 | F13: 1000.47 | G13: 964.23 | H13: 1073.33 | I13: 1109.57 | J13: 1127.88 | K13: 1091.25 | L13: 1036.7 | M13: 0.18615
A14: 4 | B14: ABBOTINDIA | C14: 16802 | D14: 16705.92 | E14: 16516.08 | F14: 16230.17 | G14: 16040.33 | H14: 16991.83 | I14: 17181.67 | J14: 17467.58 | K14: 16895.75 | L14: 16420 | M14: 0.17637
A15: 5 | B15: ABCAPITAL | C15: 45.1 | D15: 44.12 | E15: 42.53 | F15: 39.97 | G15: 38.38 | H15: 46.68 | I15: 48.27 | J15: 50.83 | K15: 45.7 | L15: 41.55 | M15: 161.84187
A16: 6 | B16: ABFRL | C16: 108.75 | D16: 109.67 | E16: 106.43 | F16: 104.12 | G16: 100.88 | H16: 111.98 | I16: 115.22 | J16: 117.53 | K16: 112.9 | L16: 107.35 | M16: 16.29138
A17: 7 | B17: ACC | C17: 1277.45 | D17: 1265.42 | E17: 1248.03 | F17: 1218.62 | G17: 1201.23 | H17: 1294.83 | I17: 1312.22 | J17: 1341.63 | K17: 1282.8 | L17: 1236 | M17: 25.62407
A18: 8 | B18: ADANIGAS | C18: 114.65 | D18: 115.82 | E18: 112.43 | F18: 110.22 | G18: 106.83 | H18: 118.03 | I18: 121.42 | J18: 123.63 | K18: 119.2 | L18: 113.6 | M18: 24.7845
A19: 9 | B19: ADANIGREEN | C19: 239.9 | D19: 240.12 | E19: 236.28 | F19: 232.67 | G19: 228.83 | H19: 243.73 | I19: 247.57 | J19: 251.18 | K19: 243.95 | L19: 236.5 | M19: 2.81221
A20: 10 | B20: ADANIPORTS | C20: 315.6 | D20: 315.25 | E20: 309.95 | F20: 304.30 | G20: 299.00 | H20: 320.90 | I20: 326.20 | J20: 331.85 | K20: 320.55 | L20: 309.6 | M20: 40.31218
A21: 11 | B21: ADANIPOWER | C21: 36.7 | D21: 35.77 | E21: 34.33 | F21: 31.97 | G21: 30.53 | H21: 38.13 | I21: 39.57 | J21: 41.93 | K21: 37.2 | L21: 33.4 | M21: 524.81588
A22: 12 | B22: ADANITRANS | C22: 178.3 | D22: 179.58 | E22: 174.77 | F22: 171.23 | G22: 166.42 | H22: 183.12 | I22: 187.93 | J22: 191.47 | K22: 184.4 | L22: 176.05 | M22: 2.46971
A23: 13 | B23: ADVENZYMES | C23: 153.4 | D23: 154.48 | E23: 151.97 | F23: 150.53 | G23: 148.02 | H23: 155.92 | I23: 158.43 | J23: 159.87 | K23: 157 | L23: 153.05 | M23: 0.57644
A24: 14 | B24: AEGISCHEM | C24: 170.1 | D24: 170.60 | E24: 168.30 | F24: 166.50 | G24: 164.20 | H24: 172.40 | I24: 174.70 | J24: 176.50 | K24: 172.9 | L24: 168.8 | M24: 1.99196
A25: 15 | B25: AFFLE | C25: 1627.5 | D25: 1603.67 | E25: 1579.83 | F25: 1532.17 | G25: 1508.33 | H25: 1651.33 | I25: 1675.17 | J25: 1722.83 | K25: 1627.5 | L25: 1556 | M25: 0.70616
A26: 16 | B26: AIAENG | C26: 1647.25 | D26: 1659.28 | E26: 1622.12 | F26: 1596.98 | G26: 1559.82 | H26: 1684.42 | I26: 1721.58 | J26: 1746.72 | K26: 1696.45 | L26: 1634.15 | M26: 0.17726
A27: 17 | B27: AJANTPHARM | C27: 1498.3 | D27: 1501.77 | E27: 1478.53 | F27: 1458.77 | G27: 1435.53 | H27: 1521.53 | I27: 1544.77 | J27: 1564.53 | K27: 1525 | L27: 1482 | M27: 1.25713
A28: 18 | B28: AKZOINDIA | C28: 1796 | D28: 1803.98 | E28: 1782.02 | F28: 1768.03 | G28: 1746.07 | H28: 1817.97 | I28: 1839.93 | J28: 1853.92 | K28: 1825.95 | L28: 1790 | M28: 0.03584
A29: 19 | B29: ALKEM | C29: 2411.85 | D29: 2442.95 | E29: 2371.90 | F29: 2331.95 | G29: 2260.90 | H29: 2482.90 | I29: 2553.95 | J29: 2593.90 | K29: 2514 | L29: 2403 | M29: 0.81091
A30: 20 | B30: ALLCARGO | C30: 66.6 | D30: 67.00 | E30: 65.60 | F30: 64.60 | G30: 63.20 | H30: 68.00 | I30: 69.40 | J30: 70.40 | K30: 68.4 | L30: 66 | M30: 0.46424
A31: 21 | B31: AMARAJABAT | C31: 605.3 | D31: 602.28 | E31: 595.57 | F31: 585.83 | G31: 579.12 | H31: 612.02 | I31: 618.73 | J31: 628.47 | K31: 609 | L31: 592.55 | M31: 14.28639
A32: 22 | B32: AMBER | C32: 1204.45 | D32: 1206.68 | E32: 1189.37 | F32: 1174.28 | G32: 1156.97 | H32: 1221.77 | I32: 1239.08 | J32: 1254.17 | K32: 1224 | L32: 1191.6 | M32: 0.49183
A33: 23 | B33: AMBUJACEM | C33: 188.55 | D33: 188.03 | E33: 186.07 | F33: 183.58 | G33: 181.62 | H33: 190.52 | I33: 192.48 | J33: 194.97 | K33: 190 | L33: 185.55 | M33: 58.00498
A34: 24 | B34: APLAPOLLO | C34: 1385.65 | D34: 1392.65 | E34: 1368.00 | F34: 1350.35 | G34: 1325.70 | H34: 1410.30 | I34: 1434.95 | J34: 1452.60 | K34: 1417.3 | L34: 1375 | M34: 0.26239
A35: 25 | B35: APLLTD | C35: 865.75 | D35: 876.32 | E35: 841.63 | F35: 817.52 | G35: 782.83 | H35: 900.43 | I35: 935.12 | J35: 959.23 | K35: 911 | L35: 852.2 | M35: 5.36031
A36: 26 | B36: APOLLOHOSP | C36: 1321.75 | D36: 1315.55 | E36: 1292.30 | F36: 1262.85 | G36: 1239.60 | H36: 1345.00 | I36: 1368.25 | J36: 1397.70 | K36: 1338.8 | L36: 1286.1 | M36: 11.45344
A37: 27 | B37: APOLLOTYRE | C37: 92.35 | D37: 91.95 | E37: 90.90 | F37: 89.45 | G37: 88.40 | H37: 93.40 | I37: 94.45 | J37: 95.90 | K37: 93 | L37: 90.5 | M37: 57.90752
A38: 28 | B38: ARVINDFASN | C38: 120.85 | D38: 120.77 | E38: 118.08 | F38: 115.32 | G38: 112.63 | H38: 123.53 | I38: 126.22 | J38: 128.98 | K38: 123.45 | L38: 118 | M38: 0.66892
A39: 29 | B39: ASAHIINDIA | C39: 146.15 | D39: 144.95 | E39: 140.00 | F39: 133.85 | G39: 128.90 | H39: 151.10 | I39: 156.05 | J39: 162.20 | K39: 149.9 | L39: 138.8 | M39: 0.1191
A40: 30 | B40: ASHOKA | C40: 50.95 | D40: 51.43 | E40: 50.32 | F40: 49.68 | G40: 48.57 | H40: 52.07 | I40: 53.18 | J40: 53.82 | K40: 52.55 | L40: 50.8 | M40: 1.60004
A41: 31 | B41: ASHOKLEY | C41: 43.55 | D41: 43.73 | E41: 42.92 | F41: 42.28 | G41: 41.47 | H41: 44.37 | I41: 45.18 | J41: 45.82 | K41: 44.55 | L41: 43.1 | M41: 259.75801
A42: 32 | B42: ASIANPAINT | C42: 1629.85 | D42: 1635.60 | E42: 1614.25 | F42: 1598.65 | G42: 1577.30 | H42: 1651.20 | I42: 1672.55 | J42: 1688.15 | K42: 1656.95 | L42: 1620 | M42: 35.52863
A43: 33 | B43: ASTERDM | C43: 90.7 | D43: 90.90 | E43: 86.80 | F43: 82.90 | G43: 78.80 | H43: 94.80 | I43: 98.90 | J43: 102.80 | K43: 95 | L43: 87 | M43: 2.68268
A44: 34 | B44: ASTRAL | C44: 812.2 | D44: 814.75 | E44: 789.50 | F44: 766.80 | G44: 741.55 | H44: 837.45 | I44: 862.70 | J44: 885.40 | K44: 840 | L44: 792.05 | M44: 1.74713
A45: 35 | B45: ASTRAZEN | C45: 3074.85 | D45: 3106.28 | E45: 3017.57 | F45: 2960.28 | G45: 2871.57 | H45: 3163.57 | I45: 3252.28 | J45: 3309.57 | K45: 3195 | L45: 3049 | M45: 0.59622
A46: 36 | B46: ATUL | C46: 4314.3 | D46: 4290.77 | E46: 4224.53 | F46: 4134.77 | G46: 4068.53 | H46: 4380.53 | I46: 4446.77 | J46: 4536.53 | K46: 4357 | L46: 4201 | M46: 0.26297
A47: 37 | B47: AUBANK | C47: 383 | D47: 385.93 | E47: 377.07 | F47: 371.13 | G47: 362.27 | H47: 391.87 | I47: 400.73 | J47: 406.67 | K47: 394.8 | L47: 380 | M47: 4.00872
A48: 38 | B48: AUROPHARMA | C48: 714.95 | D48: 719.63 | E48: 704.47 | F48: 693.98 | G48: 678.82 | H48: 730.12 | I48: 745.28 | J48: 755.77 | K48: 734.8 | L48: 709.15 | M48: 37.23219
A49: 39 | B49: AVANTIFEED | C49: 404.9 | D49: 404.53 | E49: 399.37 | F49: 393.83 | G49: 388.67 | H49: 410.07 | I49: 415.23 | J49: 420.77 | K49: 409.7 | L49: 399 | M49: 3.43872
A50: 40 | B50: AXISBANK | C50: 341.3 | D50: 341.78 | E50: 335.87 | F50: 330.43 | G50: 324.52 | H50: 347.22 | I50: 353.13 | J50: 358.57 | K50: 347.7 | L50: 336.35 | M50: 306.93404
A51: 41 | B51: BAJAJ-AUTO | C51: 2564.85 | D51: 2565.47 | E51: 2532.98 | F51: 2501.12 | G51: 2468.63 | H51: 2597.33 | I51: 2629.82 | J51: 2661.68 | K51: 2597.95 | L51: 2533.6 | M51: 6.86476
A52: 42 | B52: BAJAJCON | C52: 130.05 | D52: 130.55 | E52: 128.60 | F52: 127.15 | G52: 125.20 | H52: 132.00 | I52: 133.95 | J52: 135.40 | K52: 132.5 | L52: 129.1 | M52: 2.75864
A53: 43 | B53: BAJAJELEC | C53: 353.35 | D53: 355.47 | E53: 346.98 | F53: 340.62 | G53: 332.13 | H53: 361.83 | I53: 370.32 | J53: 376.68 | K53: 363.95 | L53: 349.1 | M53: 2.53466
A54: 44 | B54: BAJAJFINSV | C54: 4097.25 | D54: 4183.02 | E54: 3966.03 | F54: 3834.82 | G54: 3617.83 | H54: 4314.23 | I54: 4531.22 | J54: 4662.43 | K54: 4400 | L54: 4051.8 | M54: 15.7582
A55: 45 | B55: BAJAJHLDNG | C55: 1992.1 | D55: 1989.70 | E55: 1969.40 | F55: 1946.70 | G55: 1926.40 | H55: 2012.40 | I55: 2032.70 | J55: 2055.40 | K55: 2010 | L55: 1967 | M55: 0.1586
A56: 46 | B56: BAJFINANCE | C56: 1829 | D56: 1861.43 | E56: 1789.12 | F56: 1749.23 | G56: 1676.92 | H56: 1901.32 | I56: 1973.63 | J56: 2013.52 | K56: 1933.75 | L56: 1821.55 | M56: 98.69545
A57: 47 | B57: BALKRISIND | C57: 1037.6 | D57: 1027.20 | E57: 1010.40 | F57: 983.20 | G57: 966.40 | H57: 1054.40 | I57: 1071.20 | J57: 1098.40 | K57: 1044 | L57: 1000 | M57: 12.53175
A58: 48 | B58: BALMLAWRIE | C58: 96 | D58: 96.35 | E58: 95.20 | F58: 94.40 | G58: 93.25 | H58: 97.15 | I58: 98.30 | J58: 99.10 | K58: 97.5 | L58: 95.55 | M58: 0.43121
A59: 49 | B59: BALRAMCHIN | C59: 94.9 | D59: 94.92 | E59: 92.48 | F59: 90.07 | G59: 87.63 | H59: 97.33 | I59: 99.77 | J59: 102.18 | K59: 97.35 | L59: 92.5 | M59: 5.90705
A60: 50 | B60: BANDHANBNK | C60: 202.15 | D60: 203.88 | E60: 199.27 | F60: 196.38 | G60: 191.77 | H60: 206.77 | I60: 211.38 | J60: 214.27 | K60: 208.5 | L60: 201 | M60: 79.15168
A61: 51 | B61: BANKBARODA | C61: 37.1 | D61: 37.38 | E61: 36.42 | F61: 35.73 | G61: 34.77 | H61: 38.07 | I61: 39.03 | J61: 39.72 | K61: 38.35 | L61: 36.7 | M61: 335.32219
A62: 52 | B62: BANKINDIA | C62: 31.4 | D62: 31.52 | E62: 31.08 | F62: 30.77 | G62: 30.33 | H62: 31.83 | I62: 32.27 | J62: 32.58 | K62: 31.95 | L62: 31.2 | M62: 10.04592
A63: 53 | B63: BASF | C63: 1083.05 | D63: 1092.55 | E63: 1056.20 | F63: 1029.35 | G63: 993.00 | H63: 1119.40 | I63: 1155.75 | J63: 1182.60 | K63: 1128.9 | L63: 1065.7 | M63: 0.69827
A64: 54 | B64: BATAINDIA | C64: 1286.55 | D64: 1271.85 | E64: 1244.70 | F64: 1202.85 | G64: 1175.70 | H64: 1313.70 | I64: 1340.85 | J64: 1382.70 | K64: 1299 | L64: 1230 | M64: 22.97683
A65: 55 | B65: BAYERCROP | C65: 4988.75 | D65: 4895.58 | E65: 4743.17 | F65: 4497.58 | G65: 4345.17 | H65: 5141.17 | I65: 5293.58 | J65: 5539.17 | K65: 5048 | L65: 4650 | M65: 1.88276
A66: 56 | B66: BBTC | C66: 819.1 | D66: 823.30 | E66: 808.80 | F66: 798.50 | G66: 784.00 | H66: 833.60 | I66: 848.10 | J66: 858.40 | K66: 837.8 | L66: 813 | M66: 0.23717
A67: 57 | B67: BDL | C67: 223.25 | D67: 224.75 | E67: 220.60 | F67: 217.95 | G67: 213.80 | H67: 227.40 | I67: 231.55 | J67: 234.20 | K67: 228.9 | L67: 222.1 | M67: 0.27481
A68: 58 | B68: BEL | C68: 65 | D68: 64.55 | E68: 63.80 | F68: 62.60 | G68: 61.85 | H68: 65.75 | I68: 66.50 | J68: 67.70 | K68: 65.3 | L68: 63.35 | M68: 108.05516
A69: 59 | B69: BEML | C69: 571.55 | D69: 574.17 | E69: 563.53 | F69: 555.52 | G69: 544.88 | H69: 582.18 | I69: 592.82 | J69: 600.83 | K69: 584.8 | L69: 566.15 | M69: 3.46485
A70: 60 | B70: BERGEPAINT | C70: 457.4 | D70: 459.63 | E70: 450.77 | F70: 444.13 | G70: 435.27 | H70: 466.27 | I70: 475.13 | J70: 481.77 | K70: 468.5 | L70: 453 | M70: 13.89807
A71: 61 | B71: BHARATFORG | C71: 291.7 | D71: 291.10 | E71: 287.30 | F71: 282.90 | G71: 279.10 | H71: 295.50 | I71: 299.30 | J71: 303.70 | K71: 294.9 | L71: 286.7 | M71: 19.13305
A72: 62 | B72: BHARTIARTL | C72: 559.25 | D72: 564.42 | E72: 552.38 | F72: 545.52 | G72: 533.48 | H72: 571.28 | I72: 583.32 | J72: 590.18 | K72: 576.45 | L72: 557.55 | M72: 764.9732
A73: 63 | B73: BHEL | C73: 24.85 | D73: 24.88 | E73: 24.32 | F73: 23.78 | G73: 23.22 | H73: 25.42 | I73: 25.98 | J73: 26.52 | K73: 25.45 | L73: 24.35 | M73: 412.19769
A74: 64 | B74: BIOCON | C74: 358.3 | D74: 356.83 | E74: 352.67 | F74: 347.03 | G74: 342.87 | H74: 362.47 | I74: 366.63 | J74: 372.27 | K74: 361 | L74: 351.2 | M74: 88.74192
A75: 65 | B75: BIRLACORPN | C75: 487.8 | D75: 466.87 | E75: 445.93 | F75: 404.07 | G75: 383.13 | H75: 508.73 | I75: 529.67 | J75: 571.53 | K75: 487.8 | L75: 425 | M75: 29.43342
A76: 66 | B76: BLISSGVS | C76: 94.35 | D76: 94.40 | E76: 93.00 | F76: 91.65 | G76: 90.25 | H76: 95.75 | I76: 97.15 | J76: 98.50 | K76: 95.8 | L76: 93.05 | M76: 0.73252
A77: 67 | B77: BLUEDART | C77: 2028.8 | D77: 2036.37 | E77: 2012.03 | F77: 1995.27 | G77: 1970.93 | H77: 2053.13 | I77: 2077.47 | J77: 2094.23 | K77: 2060.7 | L77: 2019.6 | M77: 0.05601
A78: 68 | B78: BLUESTARCO | C78: 464 | D78: 466.00 | E78: 458.00 | F78: 452.00 | G78: 444.00 | H78: 472.00 | I78: 480.00 | J78: 486.00 | K78: 474 | L78: 460 | M78: 0.50697
A79: 69 | B79: BOMDYEING | C79: 44.95 | D79: 45.35 | E79: 44.40 | F79: 43.85 | G79: 42.90 | H79: 45.90 | I79: 46.85 | J79: 47.40 | K79: 46.3 | L79: 44.8 | M79: 2.61494
A80: 70 | B80: BOSCHLTD | C80: 9391.85 | D80: 9404.65 | E80: 9237.25 | F80: 9082.65 | G80: 8915.25 | H80: 9559.25 | I80: 9726.65 | J80: 9881.25 | K80: 9572.05 | L80: 9250.05 | M80: 0.40025
A81: 71 | B81: BPCL | C81: 313.15 | D81: 315.37 | E81: 309.83 | F81: 306.52 | G81: 300.98 | H81: 318.68 | I81: 324.22 | J81: 327.53 | K81: 320.9 | L81: 312.05 | M81: 61.06561
A82: 72 | B82: BRIGADE | C82: 97.1 | D82: 96.12 | E82: 94.73 | F82: 92.37 | G82: 90.98 | H82: 98.48 | I82: 99.87 | J82: 102.23 | K82: 97.5 | L82: 93.75 | M82: 0.98633
A83: 73 | B83: BRITANNIA | C83: 3163.85 | D83: 3182.95 | E83: 3121.90 | F83: 3079.95 | G83: 3018.90 | H83: 3224.90 | I83: 3285.95 | J83: 3327.90 | K83: 3244 | L83: 3141 | M83: 7.18134
A84: 74 | B84: BSE | C84: 387.5 | D84: 390.35 | E84: 382.20 | F84: 376.90 | G84: 368.75 | H84: 395.65 | I84: 403.80 | J84: 409.10 | K84: 398.5 | L84: 385.05 | M84: 1.78954
A85: 75 | B85: BSOFT | C85: 72.95 | D85: 73.10 | E85: 70.95 | F85: 68.95 | G85: 66.80 | H85: 75.10 | I85: 77.25 | J85: 79.25 | K85: 75.25 | L85: 71.1 | M85: 14.54893
A86: 76 | B86: CADILAHC | C86: 338.3 | D86: 341.47 | E86: 331.08 | F86: 323.87 | G86: 313.48 | H86: 348.68 | I86: 359.07 | J86: 366.28 | K86: 351.85 | L86: 334.25 | M86: 40.6378
A87: 77 | B87: CANBK | C87: 78.8 | D87: 78.43 | E87: 77.62 | F87: 76.43 | G87: 75.62 | H87: 79.62 | I87: 80.43 | J87: 81.62 | K87: 79.25 | L87: 77.25 | M87: 70.43735
A88: 78 | B88: CANFINHOME | C88: 271.35 | D88: 273.83 | E88: 267.82 | F88: 264.28 | G88: 258.27 | H88: 277.37 | I88: 283.38 | J88: 286.92 | K88: 279.85 | L88: 270.3 | M88: 1.76079
A89: 79 | B89: CAPLIPOINT | C89: 318.6 | D89: 320.37 | E89: 316.23 | F89: 313.87 | G89: 309.73 | H89: 322.73 | I89: 326.87 | J89: 329.23 | K89: 324.5 | L89: 318 | M89: 0.48759
A90: 80 | B90: CARBORUNIV | C90: 205.8 | D90: 206.00 | E90: 204.45 | F90: 203.10 | G90: 201.55 | H90: 207.35 | I90: 208.90 | J90: 210.25 | K90: 207.55 | L90: 204.65 | M90: 0.09019
A91: 81 | B91: CARERATING | C91: 364.9 | D91: 365.63 | E91: 359.27 | F91: 353.63 | G91: 347.27 | H91: 371.27 | I91: 377.63 | J91: 383.27 | K91: 372 | L91: 360 | M91: 0.5554
A92: 82 | B92: CASTROLIND | C92: 114.75 | D92: 114.95 | E92: 110.90 | F92: 107.05 | G92: 103.00 | H92: 118.80 | I92: 122.85 | J92: 126.70 | K92: 119 | L92: 111.1 | M92: 24.31829
A93: 83 | B93: CCL | C93: 175.5 | D93: 176.82 | E93: 172.93 | F93: 170.37 | G93: 166.48 | H93: 179.38 | I93: 183.27 | J93: 185.83 | K93: 180.7 | L93: 174.25 | M93: 0.42908
A94: 84 | B94: CDSL | C94: 240.25 | D94: 240.55 | E94: 235.75 | F94: 231.25 | G94: 226.45 | H94: 245.05 | I94: 249.85 | J94: 254.35 | K94: 245.35 | L94: 236.05 | M94: 4.9065
A95: 85 | B95: CEATLTD | C95: 758.7 | D95: 758.23 | E95: 751.97 | F95: 745.23 | G95: 738.97 | H95: 764.97 | I95: 771.23 | J95: 777.97 | K95: 764.5 | L95: 751.5 | M95: 1.04648
A96: 86 | B96: CENTRALBK | C96: 13.15 | D96: 13.25 | E96: 12.90 | F96: 12.65 | G96: 12.30 | H96: 13.50 | I96: 13.85 | J96: 14.10 | K96: 13.6 | L96: 13 | M96: 7.44624
A97: 87 | B97: CENTURYPLY | C97: 103.05 | D97: 103.47 | E97: 102.08 | F97: 101.12 | G97: 99.73 | H97: 104.43 | I97: 105.82 | J97: 106.78 | K97: 104.85 | L97: 102.5 | M97: 1.05664
A98: 88 | B98: CERA | C98: 2222.15 | D98: 2206.70 | E98: 2175.40 | F98: 2128.65 | G98: 2097.35 | H98: 2253.45 | I98: 2284.75 | J98: 2331.50 | K98: 2238 | L98: 2159.95 | M98: 0.0491
A99: 89 | B99: CESC | C99: 552.2 | D99: 547.60 | E99: 538.20 | F99: 524.20 | G99: 514.80 | H99: 561.60 | I99: 571.00 | J99: 585.00 | K99: 557 | L99: 533.6 | M99: 9.48228
A100: 90 | B100: CGCL | C100: 146.05 | D100: 147.72 | E100: 143.43 | F100: 140.82 | G100: 136.53 | H100: 150.33 | I100: 154.62 | J100: 157.23 | K100: 152 | L100: 145.1 | M100: 1.49723
A101: 91 | B101: CHALET | C101: 101.55 | D101: 102.85 | E101: 99.70 | F101: 97.85 | G101: 94.70 | H101: 104.70 | I101: 107.85 | J101: 109.70 | K101: 106 | L101: 101 | M101: 0.51796
A102: 92 | B102: CHAMBLFERT | C102: 133 | D102: 134.78 | E102: 130.37 | F102: 127.73 | G102: 123.32 | H102: 137.42 | I102: 141.83 | J102: 144.47 | K102: 139.2 | L102: 132.15 | M102: 7.2592
A103: 93 | B103: CHENNPETRO | C103: 49.15 | D103: 49.28 | E103: 48.42 | F103: 47.68 | G103: 46.82 | H103: 50.02 | I103: 50.88 | J103: 51.62 | K103: 50.15 | L103: 48.55 | M103: 3.43582
A104: 94 | B104: CHOLAFIN | C104: 122.1 | D104: 123.17 | E104: 119.43 | F104: 116.77 | G104: 113.03 | H104: 125.83 | I104: 129.57 | J104: 132.23 | K104: 126.9 | L104: 120.5 | M104: 108.9413
A105: 95 | B105: CHOLAHLDNG | C105: 229.85 | D105: 228.73 | E105: 223.47 | F105: 217.08 | G105: 211.82 | H105: 235.12 | I105: 240.38 | J105: 246.77 | K105: 234 | L105: 222.35 | M105: 0.26697
A106: 96 | B106: CIPLA | C106: 627.7 | D106: 632.88 | E106: 618.87 | F106: 610.03 | G106: 596.02 | H106: 641.72 | I106: 655.73 | J106: 664.57 | K106: 646.9 | L106: 624.05 | M106: 88.59499
A107: 97 | B107: COALINDIA | C107: 127.25 | D107: 126.75 | E107: 125.50 | F107: 123.75 | G107: 122.50 | H107: 128.50 | I107: 129.75 | J107: 131.50 | K107: 128 | L107: 125 | M107: 61.83
A108: 98 | B108: COCHINSHIP | C108: 219.75 | D108: 222.28 | E108: 216.57 | F108: 213.38 | G108: 207.67 | H108: 225.47 | I108: 231.18 | J108: 234.37 | K108: 228 | L108: 219.1 | M108: 2.91241
A109: 99 | B109: COLPAL | C109: 1278.25 | D109: 1291.78 | E109: 1261.47 | F109: 1244.68 | G109: 1214.37 | H109: 1308.57 | I109: 1338.88 | J109: 1355.67 | K109: 1322.1 | L109: 1275 | M109: 22.48358
A110: 100 | B110: CONCOR | C110: 351.2 | D110: 349.85 | E110: 343.90 | F110: 336.60 | G110: 330.65 | H110: 357.15 | I110: 363.10 | J110: 370.40 | K110: 355.8 | L110: 342.55 | M110: 7.55153
A111: 101 | B111: COROMANDEL | C111: 650.25 | D111: 645.80 | E111: 626.80 | F111: 603.35 | G111: 584.35 | H111: 669.25 | I111: 688.25 | J111: 711.70 | K111: 664.8 | L111: 622.35 | M111: 5.37903
A112: 102 | B112: CREDITACC | C112: 376.7 | D112: 383.13 | E112: 370.27 | F112: 363.83 | G112: 350.97 | H112: 389.57 | I112: 402.43 | J112: 408.87 | K112: 396 | L112: 376.7 | M112: 0.88352
A113: 103 | B113: CRISIL | C113: 1444.75 | D113: 1446.07 | E113: 1428.13 | F113: 1411.52 | G113: 1393.58 | H113: 1462.68 | I113: 1480.62 | J113: 1497.23 | K113: 1464 | L113: 1429.45 | M113: 0.04485
A114: 104 | B114: CROMPTON | C114: 215.2 | D114: 214.30 | E114: 211.00 | F114: 206.80 | G114: 203.50 | H114: 218.50 | I114: 221.80 | J114: 226.00 | K114: 217.6 | L114: 210.1 | M114: 15.70657
A115: 105 | B115: CUB | C115: 122.85 | D115: 124.47 | E115: 120.38 | F115: 117.92 | G115: 113.83 | H115: 126.93 | I115: 131.02 | J115: 133.48 | K115: 128.55 | L115: 122 | M115: 7.54056
A116: 106 | B116: CUMMINSIND | C116: 340.75 | D116: 337.75 | E116: 333.00 | F116: 325.25 | G116: 320.50 | H116: 345.50 | I116: 350.25 | J116: 358.00 | K116: 342.5 | L116: 330 | M116: 8.07861
A117: 107 | B117: CYIENT | C117: 193.15 | D117: 192.88 | E117: 190.77 | F117: 188.38 | G117: 186.27 | H117: 195.27 | I117: 197.38 | J117: 199.77 | K117: 195 | L117: 190.5 | M117: 1.74588
A118: 108 | B118: DABUR | C118: 433.1 | D118: 432.23 | E118: 428.27 | F118: 423.43 | G118: 419.47 | H118: 437.07 | I118: 441.03 | J118: 445.87 | K118: 436.2 | L118: 427.4 | M118: 33.34582
A119: 109 | B119: DALBHARAT | C119: 507.2 | D119: 507.55 | E119: 489.65 | F119: 472.10 | G119: 454.20 | H119: 525.10 | I119: 543.00 | J119: 560.55 | K119: 525.45 | L119: 490 | M119: 15.12876
A120: 110 | B120: DBCORP | C120: 59.4 | D120: 59.43 | E120: 57.97 | F120: 56.53 | G120: 55.07 | H120: 60.87 | I120: 62.33 | J120: 63.77 | K120: 60.9 | L120: 58 | M120: 0.61406
A121: 111 | B121: DBL | C121: 253.3 | D121: 254.32 | E121: 249.13 | F121: 244.97 | G121: 239.78 | H121: 258.48 | I121: 263.67 | J121: 267.83 | K121: 259.5 | L121: 250.15 | M121: 1.37341
A122: 112 | B122: DCAL | C122: 69.95 | D122: 71.60 | E122: 68.30 | F122: 66.65 | G122: 63.35 | H122: 73.25 | I122: 76.55 | J122: 78.20 | K122: 74.9 | L122: 69.95 | M122: 2.22471
A123: 113 | B123: DCBBANK | C123: 62.8 | D123: 61.40 | E123: 59.40 | F123: 56.00 | G123: 54.00 | H123: 64.80 | I123: 66.80 | J123: 70.20 | K123: 63.4 | L123: 58 | M123: 72.77036
A124: 114 | B124: DCMSHRIRAM | C124: 266.65 | D124: 261.90 | E124: 254.80 | F124: 242.95 | G124: 235.85 | H124: 273.75 | I124: 280.85 | J124: 292.70 | K124: 269 | L124: 250.05 | M124: 3.21285
A125: 115 | B125: DEEPAKNTR | C125: 501.15 | D125: 501.72 | E125: 495.43 | F125: 489.72 | G125: 483.43 | H125: 507.43 | I125: 513.72 | J125: 519.43 | K125: 508 | L125: 496 | M125: 7.26829
A126: 116 | B126: DELTACORP | C126: 78.1 | D126: 77.45 | E126: 76.80 | F126: 75.50 | G126: 74.85 | H126: 78.75 | I126: 79.40 | J126: 80.70 | K126: 78.1 | L126: 76.15 | M126: 5.92721
A127: 117 | B127: DHFL | C127: 11.35 | D127: 11.45 | E127: 11.20 | F127: 11.05 | G127: 10.80 | H127: 11.60 | I127: 11.85 | J127: 12.00 | K127: 11.7 | L127: 11.3 | M127: 5.38135
A128: 118 | B128: DISHTV | C128: 4.5 | D128: 4.53 | E128: 4.42 | F128: 4.33 | G128: 4.22 | H128: 4.62 | I128: 4.73 | J128: 4.82 | K128: 4.65 | L128: 4.45 | M128: 26.38818
A129: 119 | B129: DIVISLAB | C129: 2295.7 | D129: 2309.33 | E129: 2273.77 | F129: 2251.83 | G129: 2216.27 | H129: 2331.27 | I129: 2366.83 | J129: 2388.77 | K129: 2344.9 | L129: 2287.4 | M129: 4.04978
A130: 120 | B130: DIXON | C130: 4499.95 | D130: 4449.32 | E130: 4358.68 | F130: 4217.42 | G130: 4126.78 | H130: 4590.58 | I130: 4681.22 | J130: 4822.48 | K130: 4539.95 | L130: 4308.05 | M130: 0.4631
A131: 121 | B131: DLF | C131: 136.75 | D131: 136.38 | E131: 134.92 | F131: 133.08 | G131: 131.62 | H131: 138.22 | I131: 139.68 | J131: 141.52 | K131: 137.85 | L131: 134.55 | M131: 45.95672
A132: 122 | B132: DMART | C132: 2283.25 | D132: 2300.55 | E132: 2261.10 | F132: 2238.95 | G132: 2199.50 | H132: 2322.70 | I132: 2362.15 | J132: 2384.30 | K132: 2340 | L132: 2278.4 | M132: 7.73061
A133: 123 | B133: DRREDDY | C133: 3864.3 | D133: 3885.58 | E133: 3832.17 | F133: 3800.03 | G133: 3746.62 | H133: 3917.72 | I133: 3971.13 | J133: 4003.27 | K133: 3939 | L133: 3853.45 | M133: 8.27396
A134: 124 | B134: ECLERX | C134: 404.5 | D134: 402.82 | E134: 390.68 | F134: 376.87 | G134: 364.73 | H134: 416.63 | I134: 428.77 | J134: 442.58 | K134: 414.95 | L134: 389 | M134: 0.4854
A135: 125 | B135: EDELWEISS | C135: 44.6 | D135: 43.67 | E135: 42.73 | F135: 40.87 | G135: 39.93 | H135: 45.53 | I135: 46.47 | J135: 48.33 | K135: 44.6 | L135: 41.8 | M135: 15.03219
A136: 126 | B136: EICHERMOT | C136: 14805.1 | D136: 14581.70 | E136: 14288.40 | F136: 13771.70 | G136: 13478.40 | H136: 15098.40 | I136: 15391.70 | J136: 15908.40 | K136: 14875 | L136: 14065 | M136: 3.19135
A137: 127 | B137: EIDPARRY | C137: 159.6 | D137: 159.92 | E137: 155.93 | F137: 152.27 | G137: 148.28 | H137: 163.58 | I137: 167.57 | J137: 171.23 | K137: 163.9 | L137: 156.25 | M137: 1.52469
A138: 128 | B138: EIHOTEL | C138: 57.75 | D138: 57.82 | E138: 55.33 | F138: 52.92 | G138: 50.43 | H138: 60.23 | I138: 62.72 | J138: 65.13 | K138: 60.3 | L138: 55.4 | M138: 1.55664
A139: 129 | B139: ELGIEQUIP | C139: 129.9 | D139: 130.45 | E139: 128.55 | F139: 127.20 | G139: 125.30 | H139: 131.80 | I139: 133.70 | J139: 135.05 | K139: 132.35 | L139: 129.1 | M139: 0.0507
A140: 130 | B140: EMAMILTD | C140: 206.4 | D140: 208.10 | E140: 202.20 | F140: 198.00 | G140: 192.10 | H140: 212.30 | I140: 218.20 | J140: 222.40 | K140: 214 | L140: 203.9 | M140: 4.14471
A141: 131 | B141: ENDURANCE | C141: 653.35 | D141: 652.07 | E141: 646.13 | F141: 638.92 | G141: 632.98 | H141: 659.28 | I141: 665.22 | J141: 672.43 | K141: 658 | L141: 644.85 | M141: 0.5772
A142: 132 | B142: ENGINERSIN | C142: 61.2 | D142: 61.52 | E142: 60.73 | F142: 60.27 | G142: 59.48 | H142: 61.98 | I142: 62.77 | J142: 63.23 | K142: 62.3 | L142: 61.05 | M142: 4.58116
A143: 133 | B143: EQUITAS | C143: 41.35 | D143: 41.60 | E143: 40.75 | F143: 40.15 | G143: 39.30 | H143: 42.20 | I143: 43.05 | J143: 43.65 | K143: 42.45 | L143: 41 | M143: 80.01304
A144: 134 | B144: ERIS | C144: 479.15 | D144: 485.38 | E144: 468.82 | F144: 458.48 | G144: 441.92 | H144: 495.72 | I144: 512.28 | J144: 522.62 | K144: 501.95 | L144: 475.05 | M144: 0.24433
A145: 135 | B145: ESCORTS | C145: 869.1 | D145: 880.68 | E145: 851.72 | F145: 834.33 | G145: 805.37 | H145: 898.07 | I145: 927.03 | J145: 944.42 | K145: 909.65 | L145: 863.3 | M145: 25.57007
A146: 136 | B146: ESSELPACK | C146: 173.1 | D146: 173.02 | E146: 170.08 | F146: 167.07 | G146: 164.13 | H146: 176.03 | I146: 178.97 | J146: 181.98 | K146: 175.95 | L146: 170 | M146: 1.33094
A147: 137 | B147: EXIDEIND | C147: 159.5 | D147: 157.45 | E147: 154.30 | F147: 149.10 | G147: 145.95 | H147: 162.65 | I147: 165.80 | J147: 171.00 | K147: 160.6 | L147: 152.25 | M147: 34.80523
A148: 138 | B148: FCONSUMER | C148: 7.8 | D148: 7.67 | E148: 7.53 | F148: 7.27 | G148: 7.13 | H148: 7.93 | I148: 8.07 | J148: 8.33 | K148: 7.8 | L148: 7.4 | M148: 28.10755
A149: 139 | B149: FDC | C149: 243.1 | D149: 243.40 | E149: 239.80 | F149: 236.50 | G149: 232.90 | H149: 246.70 | I149: 250.30 | J149: 253.60 | K149: 247 | L149: 240.1 | M149: 0.77159
A150: 140 | B150: FEDERALBNK | C150: 38.45 | D150: 38.25 | E150: 37.75 | F150: 37.05 | G150: 36.55 | H150: 38.95 | I150: 39.45 | J150: 40.15 | K150: 38.75 | L150: 37.55 | M150: 247.6654
A151: 141 | B151: FINCABLES | C151: 197.35 | D151: 198.30 | E151: 193.10 | F151: 188.85 | G151: 183.65 | H151: 202.55 | I151: 207.75 | J151: 212.00 | K151: 203.5 | L151: 194.05 | M151: 0.53685
A152: 142 | B152: FINEORG | C152: 1926.25 | D152: 1941.65 | E152: 1904.60 | F152: 1882.95 | G152: 1845.90 | H152: 1963.30 | I152: 2000.35 | J152: 2022.00 | K152: 1978.7 | L152: 1920 | M152: 0.06973
A153: 143 | B153: FINPIPE | C153: 408.25 | D153: 406.95 | E153: 404.90 | F153: 401.55 | G153: 399.50 | H153: 410.30 | I153: 412.35 | J153: 415.70 | K153: 409 | L153: 403.6 | M153: 0.25717
A154: 144 | B154: FLFL | C154: 139.7 | D154: 137.00 | E154: 131.60 | F154: 123.50 | G154: 118.10 | H154: 145.10 | I154: 150.50 | J154: 158.60 | K154: 142.4 | L154: 128.9 | M154: 1.50887
A155: 145 | B155: FMGOETZE | C155: 350.45 | D155: 347.48 | E155: 335.02 | F155: 319.58 | G155: 307.12 | H155: 362.92 | I155: 375.38 | J155: 390.82 | K155: 359.95 | L155: 332.05 | M155: 0.0035
A156: 146 | B156: FORTIS | C156: 114.9 | D156: 114.48 | E156: 113.52 | F156: 112.13 | G156: 111.17 | H156: 115.87 | I156: 116.83 | J156: 118.22 | K156: 115.45 | L156: 113.1 | M156: 6.1038
A157: 147 | B157: FRETAIL | C157: 73.4 | D157: 72.30 | E157: 71.20 | F157: 69.00 | G157: 67.90 | H157: 74.50 | I157: 75.60 | J157: 77.80 | K157: 73.4 | L157: 70.1 | M157: 20.25461
A158: 148 | B158: FSL | C158: 30 | D158: 30.10 | E158: 29.25 | F158: 28.50 | G158: 27.65 | H158: 30.85 | I158: 31.70 | J158: 32.45 | K158: 30.95 | L158: 29.35 | M158: 36.19102
A159: 149 | B159: GAIL | C159: 88.15 | D159: 87.63 | E159: 86.67 | F159: 85.18 | G159: 84.22 | H159: 89.12 | I159: 90.08 | J159: 91.57 | K159: 88.6 | L159: 86.15 | M159: 97.32127
A160: 150 | B160: GALAXYSURF | C160: 1314.95 | D160: 1306.85 | E160: 1293.80 | F160: 1272.65 | G160: 1259.60 | H160: 1328.00 | I160: 1341.05 | J160: 1362.20 | K160: 1319.9 | L160: 1285.7 | M160: 0.11183
A161: 151 | B161: GARFIBRES | C161: 1280.85 | D161: 1283.63 | E161: 1267.27 | F161: 1253.68 | G161: 1237.32 | H161: 1297.22 | I161: 1313.58 | J161: 1327.17 | K161: 1300 | L161: 1270.05 | M161: 0.22475
A162: 152 | B162: GAYAPROJ | C162: 13 | D162: 13.10 | E162: 12.40 | F162: 11.80 | G162: 11.10 | H162: 13.70 | I162: 14.40 | J162: 15.00 | K162: 13.8 | L162: 12.5 | M162: 2.64286
A163: 153 | B163: GEPIL | C163: 377.9 | D163: 377.37 | E163: 370.73 | F163: 363.57 | G163: 356.93 | H163: 384.53 | I163: 391.17 | J163: 398.33 | K163: 384 | L163: 370.2 | M163: 0.19553
A164: 154 | B164: GESHIP | C164: 195.4 | D164: 198.10 | E164: 192.30 | F164: 189.20 | G164: 183.40 | H164: 201.20 | I164: 207.00 | J164: 210.10 | K164: 203.9 | L164: 195 | M164: 0.24907
A165: 155 | B165: GET&D | C165: 61.1 | D165: 60.62 | E165: 59.43 | F165: 57.77 | G165: 56.58 | H165: 62.28 | I165: 63.47 | J165: 65.13 | K165: 61.8 | L165: 58.95 | M165: 1.10834
A166: 156 | B166: GHCL | C166: 100.8 | D166: 100.95 | E166: 99.95 | F166: 99.10 | G166: 98.10 | H166: 101.80 | I166: 102.80 | J166: 103.65 | K166: 101.95 | L166: 100.1 | M166: 0.75139
A167: 157 | B167: GICRE | C167: 121.7 | D167: 122.35 | E167: 119.95 | F167: 118.20 | G167: 115.80 | H167: 124.10 | I167: 126.50 | J167: 128.25 | K167: 124.75 | L167: 120.6 | M167: 0.61919
A168: 158 | B168: GILLETTE | C168: 4790.95 | D168: 4800.80 | E168: 4765.15 | F168: 4739.35 | G168: 4703.70 | H168: 4826.60 | I168: 4862.25 | J168: 4888.05 | K168: 4836.45 | L168: 4775 | M168: 0.02065
A169: 159 | B169: GLAXO | C169: 1372.45 | D169: 1379.95 | E169: 1357.90 | F169: 1343.35 | G169: 1321.30 | H169: 1394.50 | I169: 1416.55 | J169: 1431.10 | K169: 1402 | L169: 1365.4 | M169: 0.23014
A170: 160 | B170: GLENMARK | C170: 348.2 | D170: 351.23 | E170: 341.97 | F170: 335.73 | G170: 326.47 | H170: 357.47 | I170: 366.73 | J170: 372.97 | K170: 360.5 | L170: 345 | M170: 51.83869
A171: 161 | B171: GMDCLTD | C171: 35.5 | D171: 35.50 | E171: 34.75 | F171: 34.00 | G171: 33.25 | H171: 36.25 | I171: 37.00 | J171: 37.75 | K171: 36.25 | L171: 34.75 | M171: 1.83404
A172: 162 | B172: GMRINFRA | C172: 17.25 | D172: 17.22 | E172: 17.03 | F172: 16.82 | G172: 16.63 | H172: 17.43 | I172: 17.62 | J172: 17.83 | K172: 17.4 | L172: 17 | M172: 51.67392
A173: 163 | B173: GNFC | C173: 126.5 | D173: 127.52 | E173: 125.03 | F173: 123.57 | G173: 121.08 | H173: 128.98 | I173: 131.47 | J173: 132.93 | K173: 130 | L173: 126.05 | M173: 4.35101
A174: 164 | B174: GODFRYPHLP | C174: 981.5 | D174: 973.17 | E174: 959.33 | F174: 937.17 | G174: 923.33 | H174: 995.33 | I174: 1009.17 | J174: 1031.33 | K174: 987 | L174: 951 | M174: 0.84017
A175: 165 | B175: GODREJAGRO | C175: 364.6 | D175: 365.62 | E175: 361.28 | F175: 357.97 | G175: 353.63 | H175: 368.93 | I175: 373.27 | J175: 376.58 | K175: 369.95 | L175: 362.3 | M175: 1.11223
A176: 166 | B176: GODREJCP | C176: 574.95 | D176: 577.65 | E176: 567.30 | F176: 559.65 | G176: 549.30 | H176: 585.30 | I176: 595.65 | J176: 603.30 | K176: 588 | L176: 570 | M176: 14.15962
A177: 167 | B177: GODREJIND | C177: 287.9 | D177: 278.55 | E177: 264.40 | F177: 240.90 | G177: 226.75 | H177: 302.05 | I177: 316.20 | J177: 339.70 | K177: 292.7 | L177: 255.05 | M177: 25.88495
A178: 168 | B178: GODREJPROP | C178: 602.35 | D178: 603.33 | E178: 598.67 | F178: 594.98 | G178: 590.32 | H178: 607.02 | I178: 611.68 | J178: 615.37 | K178: 608 | L178: 599.65 | M178: 2.85056
A179: 169 | B179: GPPL | C179: 62.55 | D179: 63.18 | E179: 61.37 | F179: 60.18 | G179: 58.37 | H179: 64.37 | I179: 66.18 | J179: 67.37 | K179: 65 | L179: 62 | M179: 2.47094
A180: 170 | B180: GRANULES | C180: 167.45 | D180: 168.02 | E180: 165.43 | F180: 163.42 | G180: 160.83 | H180: 170.03 | I180: 172.62 | J180: 174.63 | K180: 170.6 | L180: 166 | M180: 9.13505
A181: 171 | B181: GRAPHITE | C181: 178.65 | D181: 179.42 | E181: 177.23 | F181: 175.82 | G181: 173.63 | H181: 180.83 | I181: 183.02 | J181: 184.43 | K181: 181.6 | L181: 178 | M181: 1.22222
A182: 172 | B182: GRASIM | C182: 532.65 | D182: 534.97 | E182: 525.53 | F182: 518.42 | G182: 508.98 | H182: 542.08 | I182: 551.52 | J182: 558.63 | K182: 544.4 | L182: 527.85 | M182: 39.88184
A183: 173 | B183: GREAVESCOT | C183: 69.4 | D183: 70.28 | E183: 68.32 | F183: 67.23 | G183: 65.27 | H183: 71.37 | I183: 73.33 | J183: 74.42 | K183: 72.25 | L183: 69.2 | M183: 2.11824
A184: 174 | B184: GRINDWELL | C184: 524.25 | D184: 516.40 | E184: 497.85 | F184: 471.45 | G184: 452.90 | H184: 542.80 | I184: 561.35 | J184: 587.75 | K184: 534.95 | L184: 490 | M184: 0.28204
A185: 175 | B185: GSFC | C185: 40.4 | D185: 40.67 | E185: 40.08 | F185: 39.77 | G185: 39.18 | H185: 40.98 | I185: 41.57 | J185: 41.88 | K185: 41.25 | L185: 40.35 | M185: 1.6841
A186: 176 | B186: GSPL | C186: 188.5 | D186: 188.83 | E186: 185.32 | F186: 182.13 | G186: 178.62 | H186: 192.02 | I186: 195.53 | J186: 198.72 | K186: 192.35 | L186: 185.65 | M186: 4.6231
A187: 177 | B187: GUJALKALI | C187: 315.05 | D187: 315.77 | E187: 311.78 | F187: 308.52 | G187: 304.53 | H187: 319.03 | I187: 323.02 | J187: 326.28 | K187: 319.75 | L187: 312.5 | M187: 0.32066
A188: 178 | B188: GUJGASLTD | C188: 240.4 | D188: 242.47 | E188: 236.03 | F188: 231.67 | G188: 225.23 | H188: 246.83 | I188: 253.27 | J188: 257.63 | K188: 248.9 | L188: 238.1 | M188: 3.11569
A189: 179 | B189: GULFOILLUB | C189: 568.6 | D189: 569.03 | E189: 563.62 | F189: 558.63 | G189: 553.22 | H189: 574.02 | I189: 579.43 | J189: 584.42 | K189: 574.45 | L189: 564.05 | M189: 0.01371
A190: 180 | B190: HAL | C190: 531.1 | D190: 533.53 | E190: 527.07 | F190: 523.03 | G190: 516.57 | H190: 537.57 | I190: 544.03 | J190: 548.07 | K190: 540 | L190: 529.5 | M190: 0.18915
A191: 181 | B191: HATSUN | C191: 525.8 | D191: 528.53 | E191: 517.27 | F191: 508.73 | G191: 497.47 | H191: 537.07 | I191: 548.33 | J191: 556.87 | K191: 539.8 | L191: 520 | M191: 0.0436
A192: 182 | B192: HAVELLS | C192: 460.7 | D192: 460.55 | E192: 454.30 | F192: 447.90 | G192: 441.65 | H192: 466.95 | I192: 473.20 | J192: 479.60 | K192: 466.8 | L192: 454.15 | M192: 22.49584
A193: 183 | B193: HCLTECH | C193: 524 | D193: 526.92 | E193: 517.33 | F193: 510.67 | G193: 501.08 | H193: 533.58 | I193: 543.17 | J193: 549.83 | K193: 536.5 | L193: 520.25 | M193: 40.55697
A194: 184 | B194: HDFC | C194: 1502.15 | D194: 1518.77 | E194: 1469.38 | F194: 1436.62 | G194: 1387.23 | H194: 1551.53 | I194: 1600.92 | J194: 1633.68 | K194: 1568.15 | L194: 1486 | M194: 127.5251
A195: 185 | B195: HDFCAMC | C195: 2441.4 | D195: 2448.33 | E195: 2425.07 | F195: 2408.73 | G195: 2385.47 | H195: 2464.67 | I195: 2487.93 | J195: 2504.27 | K195: 2471.6 | L195: 2432 | M195: 0.98366
A196: 186 | B196: HDFCBANK | C196: 852.4 | D196: 857.63 | E196: 843.52 | F196: 834.63 | G196: 820.52 | H196: 866.52 | I196: 880.63 | J196: 889.52 | K196: 871.75 | L196: 848.75 | M196: 190.02589
A197: 187 | B197: HDFCLIFE | C197: 507.45 | D197: 506.45 | E197: 498.00 | F197: 488.55 | G197: 480.10 | H197: 515.90 | I197: 524.35 | J197: 533.80 | K197: 514.9 | L197: 497 | M197: 42.1564
A198: 188 | B198: HEG | C198: 726.7 | D198: 734.00 | E198: 717.50 | F198: 708.30 | G198: 691.80 | H198: 743.20 | I198: 759.70 | J198: 768.90 | K198: 750.5 | L198: 724.8 | M198: 0.8654
A199: 189 | B199: HEIDELBERG | C199: 157.75 | D199: 156.80 | E199: 153.60 | F199: 149.45 | G199: 146.25 | H199: 160.95 | I199: 164.15 | J199: 168.30 | K199: 160 | L199: 152.65 | M199: 23.79504
A200: 190 | B200: HERITGFOOD | C200: 234.3 | D200: 235.77 | E200: 229.78 | F200: 225.27 | G200: 219.28 | H200: 240.28 | I200: 246.27 | J200: 250.78 | K200: 241.75 | L200: 231.25 | M200: 0.1157
A201: 191 | B201: HEROMOTOCO | C201: 2113.65 | D201: 2128.18 | E201: 2086.47 | F201: 2059.28 | G201: 2017.57 | H201: 2155.37 | I201: 2197.08 | J201: 2224.27 | K201: 2169.9 | L201: 2101 | M201: 15.13569
A202: 192 | B202: HEXAWARE | C202: 237.05 | D202: 237.38 | E202: 234.77 | F202: 232.48 | G202: 229.87 | H202: 239.67 | I202: 242.28 | J202: 244.57 | K202: 240 | L202: 235.1 | M202: 2.47975
A203: 193 | B203: HFCL | C203: 8.8 | D203: 8.92 | E203: 8.58 | F203: 8.37 | G203: 8.03 | H203: 9.13 | I203: 9.47 | J203: 9.68 | K203: 9.25 | L203: 8.7 | M203: 25.34247
A204: 194 | B204: HIMATSEIDE | C204: 46 | D204: 46.07 | E204: 45.43 | F204: 44.87 | G204: 44.23 | H204: 46.63 | I204: 47.27 | J204: 47.83 | K204: 46.7 | L204: 45.5 | M204: 1.9781
A205: 195 | B205: HINDALCO | C205: 129.1 | D205: 128.35 | E205: 126.25 | F205: 123.40 | G205: 121.30 | H205: 131.20 | I205: 133.30 | J205: 136.15 | K205: 130.45 | L205: 125.5 | M205: 187.86955
A206: 196 | B206: HINDCOPPER | C206: 24.75 | D206: 24.65 | E206: 24.30 | F206: 23.85 | G206: 23.50 | H206: 25.10 | I206: 25.45 | J206: 25.90 | K206: 25 | L206: 24.2 | M206: 2.26869
... 321 more rows

Sheet Bulk Deals
E6: Back To Main Page
A7: Subject : | B7: BULK DEAL | D7: =Main!B10 -> 2020-05-27
A9: Date | B9: Scrip code | C9: Scrip Name | D9: Client Name | E9: Buy / Sell | F9: Quantity Traded | G9: Trade Price / Wt.Avg.trade price | H9: Exchange
A10: 2020-05-26 | B10: 532454 | C10: BHARTIARTL | D10: BHARTI TELECOM LIMITED | E10: SELL | F10: 150,000,000 | G10: 562.22 | H10: BSE
A11: 2020-05-26 | B11: 532454 | C11: BHARTIARTL | D11: SOCIETE GENERALE | E11: BUY | F11: 35,310,000 | G11: 561.1 | H11: BSE
A12: 2020-05-26 | B12: 540614 | C12: GGENG | D12: YATIN B SHAH | E12: BUY | F12: 175,000 | G12: 40.9 | H12: BSE
A13: 2020-05-26 | B13: 540614 | C13: GGENG | D13: SHAH JIGNASA RAJESH | E13: SELL | F13: 175,000 | G13: 40.9 | H13: BSE
A14: 2020-05-26 | B14: 542935 | C14: ICLORGANIC | D14: MOHAMMAD TASLEEM | E14: SELL | F14: 36,000 | G14: 20.74 | H14: BSE
A15: 2020-05-26 | B15: 542935 | C15: ICLORGANIC | D15: VIKAS KUMAR GOLA | E15: SELL | F15: 42,000 | G15: 20.74 | H15: BSE
A16: 2020-05-26 | B16: 500346 | C16: PUNJCOMMU | D16: FORBES EMF | E16: BUY | F16: 575,000 | G16: 11.59 | H16: BSE
A17: 2020-05-26 | B17: 500346 | C17: PUNJCOMMU | D17: ORANGE MAURITIUS INVESTMENTS LIMITED | E17: SELL | F17: 575,000 | G17: 11.59 | H17: BSE
A18: 2020-05-26 | B18: 539402 | C18: VAL | D18: RAKESH GHEWARCHAND JAIN | E18: SELL | F18: 60,000 | G18: 17.5 | H18: BSE
A19: 2020-05-26 | B19: 539402 | C19: VAL | D19: BINA PARESH SHAH | E19: BUY | F19: 40,000 | G19: 17.5 | H19: BSE
A20: 2020-05-26 | B20: ASLIND | C20: ASL Industries Limited | D20: AMBROSE COMMERCIAL PRIVATE LIMITED | E20: BUY | F20: 88,000 | G20: 6 | H20: NSE
A21: 2020-05-26 | B21: DYNPRO | C21: Dynemic Products Limited | D21: YOGESH KUMAR GAWANDE | E21: BUY | F21: 81,489 | G21: 118.09 | H21: NSE
A22: 2020-05-26 | B22: JMCPROJECT | C22: JMC Projects (I) Ltd. | D22: QUEST INV. ADVISORS PVT. LTD. | E22: BUY | F22: 925,660 | G22: 38.4 | H22: NSE
A23: 2020-05-26 | B23: KARDA | C23: Karda Constructions Ltd | D23: VAIBHAV RAJENDRA DOSHI | E23: BUY | F23: 100,000 | G23: 160 | H23: NSE
A24: 2020-05-26 | B24: KARDA | C24: Karda Constructions Ltd | D24: MARFATIA NISHIL SURENDRA | E24: BUY | F24: 186,917 | G24: 170.58 | H24: NSE
A25: 2020-05-26 | B25: STAN | C25: Standard Chartered PLC | D25: MORGAN STANLEY ASIA (SINGAPORE) PTE. - ODI | E25: BUY | F25: 54,683 | G25: 31.82 | H25: NSE
A26: 2020-05-26 | B26: DYNPRO | C26: Dynemic Products Limited | D26: YOGESH KUMAR GAWANDE | E26: SELL | F26: 81,489 | G26: 120.54 | H26: NSE
A27: 2020-05-26 | B27: IEX | C27: Indian Energy Exc Ltd | D27: WESTBRIDGE CROSSOVER FUND LLC | E27: SELL | F27: 1,865,329 | G27: 165 | H27: NSE
A28: 2020-05-26 | B28: KARDA | C28: Karda Constructions Ltd | D28: MARFATIA NISHIL SURENDRA | E28: SELL | F28: 186,917 | G28: 171.14 | H28: NSE
A29: 2020-05-26 | B29: KARDA | C29: Karda Constructions Ltd | D29: YATIN B SHAH | E29: SELL | F29: 78,000 | G29: 165.42 | H29: NSE
A30: 2020-05-26 | B30: STAN | C30: Standard Chartered PLC | D30: SHREYANSH SINGHVI | E30: SELL | F30: 50,300 | G30: 31.5 | H30: NSE

Sheet Call Tracker (Equity & F&O)
M5: Back To Main Page
A6: Retail Research Technical Calls & Fundamental Performance Report for the month of May-2020
M7: =Main!B10 -> 2020-05-27
B8: Positional Call
A9: Sr.no | B9: Date | D9: Company | E9: Rec | F9: Rec Price | G9: Stop Loss*** | H9: Call Closed At | I9: Target | J9: Remark | K9: Profit / Loss per Share | L9: Gain / Loss % | M9: Status | N9: Closed Date | O9: NSE Closed Price
A10: 1 | B10: 2020-04-17 | D10: MCDOWELL-N | E10: Buy | F10: 547 | G10: 515 | H10: 510 | I10: 600-620 | J10: Loss of Rs.37/- | K10: =H10-F10 -> -37 | L10: =K10/F10 -> -6.76% | M10: Unsuccessful | N10: 2020-05-05 | R10: H
A11: 2 | B11: 2020-04-17 | D11: SBIN | E11: Buy | F11: 190 | G11: 177 | H11: 176.5 | I11: 210-215 | J11: Loss of Rs.13.5/- | K11: -13.5 | L11: -7.11% | M11: Unsuccessful | N11: 2020-05-05 | R11: H
A12: 3 | B12: 2020-04-30 | D12: DRREDDY | E12: Buy | F12: 4000 | G12: 3780 | H12: 3780 | I12: 4400 | J12: Loss of Rs.220/- | K12: =H12-F12 -> -220 | L12: =K12/F12 -> -5.50% | M12: Unsuccessful | N12: 2020-05-12 | R12: N
A13: 4 | B13: 2020-05-04 | D13: TVSMOTOR | E13: Buy | F13: 310 | G13: 290 | H13: 321.5 | I13: 350 | J13: Profit of Rs.11.50/- | K13: =H13-F13 -> 11.5 | L13: =K13/F13 -> 3.71% | M13: Successful | N13: 2020-05-06 | R13: N
A14: 5 | B14: 2020-05-05 | D14: CROMPTON | E14: Buy | F14: 214.5 | G14: 200 | H14: 223.5 | I14: 235-240 | J14: Profit of Rs.9/- | K14: =H14-F14 -> 9 | L14: 4.20% | M14: Successful | N14: 2020-05-13 | R14: N
A15: 6 | B15: 2020-05-05 | D15: VOLTAS | E15: Buy | F15: 470 | G15: 444 | H15: 444 | I15: 520-530 | J15: Loss of Rs.26/- | K15: =H15-F15 -> -26 | L15: =K15/F15 -> -5.53% | M15: Unsuccessful | N15: 2020-05-05 | R15: H
A16: 7 | B16: 2020-05-05 | D16: GNFC | E16: Buy | F16: 138.5 | G16: 130.5 | H16: 146.5 | I16: 152-155 | J16: Profit of Rs.8/- | K16: =H16-F16 -> 8 | L16: 5.78% | M16: Successful | N16: 2020-05-06 | R16: N
A17: 8 | B17: 2020-05-05 | D17: ICICIBANK | E17: Buy{} | F17: 338 | G17: 315 | H17: =(348+314)/2 -> 331 | I17: 375-385 | J17: Loss of Rs.7/- | K17: =H17-F17 -> -7 | L17: -2.07% | M17: Unsuccessful | N17: 2020-05-12 | R17: H
A18: 9 | B18: 2020-05-06 | D18: HDFC | E18: Buy | F18: 1690 | G18: 1550 | H18: 1750 | I18: 1900-2000 | J18: Profit of Rs.60/- | K18: =H18-F18 -> 60 | L18: =K18/F18 -> 3.55% | M18: Successful | N18: 2020-05-06 | R18: H
A19: 10 | B19: 2020-05-06 | D19: TCS | E19: Buy | F19: 1910 | G19: 1780 | H19: 2000 | I19: 2100-2150 | J19: Profit of Rs.90/- | K19: =H19-F19 -> 90 | L19: 4.71% | M19: Successful | N19: 2020-05-13 | R19: H
A20: 11 | B20: 2020-05-06 | D20: HDFC | E20: Buy | F20: 1705 | G20: 1580 | H20: 1575 | I20: 1950-2000 | J20: Loss of Rs.130/- | K20: =H20-F20 -> -130 | L20: -7.62% | M20: Unsuccessful | N20: 2020-05-18 | R20: H
A21: 12 | B21: 2020-05-06 | D21: LT | E21: Buy | F21: 830 | G21: 780 | H21: 860 | I21: 900-930 | J21: Profit of Rs.30/- | K21: =H21-F21 -> 30 | L21: =K21/F21 -> 3.61% | M21: Successful | N21: 2020-05-13 | R21: N
A22: 13 | B22: 2020-05-07 | D22: HINDUNILVR | E22: Buy | F22: 1945 | G22: 1790 | H22: 2075 | I22: 2200-2250 | J22: Profit of Rs.130/- | K22: 130 | L22: =K22/F22 -> 6.68% | M22: Successful | N22: 2020-05-08 | R22: H
A23: 14 | B23: 2020-05-07 | D23: BRITANNIA | E23: Buy | F23: 2895 | G23: 2690 | H23: 3005 | I23: 3150-3250 | J23: Profit of Rs.110/- | K23: 110 | L23: =K23/F23 -> 3.80% | M23: Successful | N23: 2020-05-08 | R23: H
A24: 15 | B24: 2020-05-08 | D24: CADILAHC | E24: Buy | F24: 322 | G24: 302 | H24: 337.5 | I24: 350-360 | J24: Profit of Rs.15.5/- | K24: 15.5 | L24: 4.81% | M24: Successful | N24: 2020-05-14 | R24: N
A25: 16 | B25: 2020-05-08 | D25: GNFC | E25: Buy | F25: 137.5 | G25: 129 | H25: 143.5 | I25: 152-155 | J25: Profit of Rs.6/- | K25: 6 | L25: =K25/F25 -> 4.36% | M25: Successful | N25: 2020-05-13 | R25: N
A26: 17 | B26: 2020-05-12 | D26: SIEMENS | E26: Buy | F26: 1007.5 | G26: 940 | H26: 1045 | I26: 1100-1150 | J26: Profit of Rs.37.5/- | K26: 37.5 | L26: =K26/F26 -> 3.72% | M26: Successful | N26: 2020-05-13 | R26: H
A27: 18 | B27: 2020-05-14 | D27: LT | E27: Buy | F27: 847.5 | G27: 795 | H27: 880 | I27: 930-940 | J27: Profit of Rs.32.5/- | K27: =H27-F27 -> 32.5 | L27: =K27/F27 -> 3.83% | M27: Successful | N27: 2020-05-15 | R27: N
A28: 19 | B28: 2020-05-15 | D28: COLPAL | E28: Buy | F28: 1350-1355 | G28: 1275 | I28: 1450-1500 | J28: Open | R28: N
A29: 20 | B29: 2020-05-15 | D29: TCS | E29: Buy | F29: 1870 | G29: 1770 | H29: 1960 | I29: 2000-2050 | J29: Profit of Rs.90/- | K29: =H29-F29 -> 90 | L29: =K29/F29 -> 4.81% | M29: Successful | N29: 2020-05-19 | R29: H
A30: 21 | B30: 2020-05-15 | D30: GNFC | E30: Buy | F30: 138.5 | G30: 130 | H30: 130 | I30: 152-155 | J30: Loss of Rs.8.5/- | K30: =H30-F30 -> -8.5 | L30: -6.14% | M30: Unsuccessful | N30: 2020-05-22 | R30: N
A31: 22 | B31: 2020-05-18 | D31: LT | E31: Buy | F31: 840-845 | G31: 790 | I31: 930-940 | J31: Open | R31: N
A32: 23 | B32: 2020-05-18 | D32: INFY | E32: Buy | F32: 660 | G32: 620 | H32: 695 | I32: 720-740 | J32: Profit of Rs.35/- | K32: =H32-F32 -> 35 | L32: =K32/F32 -> 5.30% | M32: Successful | N32: 2020-05-22 | R32: A
A33: 24 | B33: 2020-05-18 | D33: MARICO | E33: Buy | F33: 313.5 | G33: 297 | H33: 324.00 | I33: 340-350 | J33: Part Profit of Rs.10.5/- | K33: =H33-F33 -> 10.5 | L33: =K33/F33 -> 3.35% | M33: Successful | N33: 2020-05-26 | R33: H
A34: 25 | B34: 2020-05-19 | D34: ADANIPORTS | E34: Sell | F34: 301 | G34: 316 | H34: 316 | I34: 280-270 | J34: Loss of Rs.15/- | K34: =F34-H34 -> -15 | L34: =K34/F34 -> -4.98% | M34: Unsuccessful | N34: 2020-05-19 | R34: H
A35: 26 | B35: 2020-05-19 | D35: ACC | E35: Buy | F35: 1140 | G35: 1070 | H35: 1192.5 | I35: 1250-1260 | J35: Profit of Rs.52.5/- | K35: =H35-F35 -> 52.5 | L35: 4.61% | M35: Successful | N35: 2020-05-21 | R35: N
A36: 27 | B36: 2020-05-19 | D36: ICICIBANK | E36: Buy{} | F36: 302 | G36: 279 | H36: 302.25 | I36: 335-345 | J36: Profit of Rs.0.25/- | K36: 0.25 | L36: 0.08% | M36: Neutral | N36: 2020-05-22 | R36: H
A37: 28 | B37: 2020-05-19 | D37: ASIANPAINT | E37: Buy | F37: 1495 | G37: 1377 | H37: 1572.5 | I37: 1750-1800 | J37: Profit of Rs.77.5/- | K37: 77.5 | L37: 5.18% | M37: Successful | N37: 2020-05-21 | R37: H
A38: 29 | B38: 2020-05-19 | D38: HDFCBANK | E38: Buy{} | F38: 847.5 | G38: 795 | H38: =(875+867.5)/2 -> 871.25 | I38: 930-950 | J38: Profit of Rs.27.5/- | K38: =H38-F38 -> 23.75 | L38: =K38/F38 -> 2.80% | M38: Successful | N38: 2020-05-21 | R38: N
A39: 30 | B39: 2020-05-22 | D39: HDFC | E39: Buy | F39: 1520-1530 | G39: 1440 | I39: 1650-1700 | J39: Open | R39: H
A40: 31 | B40: 2020-05-26 | D40: SBILIFE | E40: Buy | F40: 734-739 | G40: 690 | I40: 800-830 | J40: Open | R40: N
A43: CLBS = Closing Basis ***
A44: Dividend adjusted <> | F44: Reinitiated $
A45: Part book {} | F45: Revised stoploss #
B47: Momentum Call
A48: Sr.no | B48: Date | D48: Company | E48: Rec | F48: Rec Price | G48: Stop Loss | H48: Call Closed At | I48: Target | J48: Remark | K48: Profit / Loss per Share/Lot | L48: Gain / Loss % | M48: Gain / Loss per Lot | N48: Lot | O48: Status | P48: Closed Date
A49: 1 | B49: 2020-04-28 | D49: COLPAL | E49: Buy | F49: 1487.5 | G49: 1440 | H49: 1435 | I49: 1580-1600 | J49: Loss of Rs.52.50/- | K49: =H49-F49 -> -52.5 | L49: =K49/F49 -> -3.53% | O49: Unsuccessful | P49: 2020-05-04 | R49: N
A50: 2 | B50: 2020-04-28 | D50: CADILAHC | E50: Buy | F50: 327 | G50: 315 | H50: 334 | I50: 350 | J50: Profit of Rs.7/- | K50: =H50-F50 -> 7 | L50: 2.14% | O50: Successful | P50: 2020-05-04 | R50: N
A51: 3 | B51: 2020-04-30 | D51: BERGEPAINT | E51: Buy | F51: 510.5 | G51: 493 | H51: 491 | I51: 540-550 | J51: Loss of Rs.19.5/- | K51: =H51-F51 -> -19.5 | L51: =K51/F51 -> -3.82% | O51: Unsuccessful | P51: 2020-05-04 | R51: H
A52: 4 | B52: 2020-04-30 | D52: HDFCLIFE | E52: Buy | F52: 499.5 | G52: 482 | H52: 480.5 | I52: 530 | J52: Loss of Rs.19/- | K52: =H52-F52 -> -19 | L52: =K52/F52 -> -3.80% | O52: Unsuccessful | P52: 2020-05-04 | R52: N
A53: 5 | B53: 2020-05-04 | D53: DABUR | E53: Buy | F53: 473 | G53: 454 | H53: 454 | I53: 500-510 | J53: Loss of Rs.19/- | K53: =H53-F53 -> -19 | L53: =K53/F53 -> -4.02% | O53: Unsuccessful | P53: 2020-05-05 | R53: H
A54: 6 | B54: 2020-05-05 | D54: SUNPHARMA | E54: Sell | F54: 471.5 | G54: 492 | H54: 463 | I54: 440-435 | J54: Profit of Rs.8.5/- | K54: =F54-H54 -> 8.5 | L54: =K54/F54 -> 1.80% | O54: Successful | P54: 2020-05-05 | R54: H
A55: 7 | B55: 2020-05-05 | D55: HINDZINC | E55: Buy | F55: 170 | G55: 164 | H55: 173.5 | I55: 185 | J55: Profit of Rs.3.5/- | K55: =H55-F55 -> 3.5 | L55: 2.06% | O55: Successful | P55: 2020-05-07 | R55: N
A56: 8 | B56: 2020-05-06 | D56: AUROPHARMA | E56: Buy | F56: 647 | G56: 625 | H56: 660 | I56: 690 | J56: Profit of Rs.13/- | K56: =H56-F56 -> 13 | L56: =K56/F56 -> 2.01% | O56: Successful | P56: 2020-05-06 | R56: N
A57: 9 | B57: 2020-05-07 | D57: APOLLOHOSP | E57: Buy | F57: 1320 | G57: 1270 | H57: 1275 | I57: 1380-1385 | J57: Loss of Rs.45/- | K57: =H57-F57 -> -45 | L57: -3.41% | O57: Unsuccessful | P57: 2020-05-07 | R57: N
A58: 10 | B58: 2020-05-07 | D58: KOTAKBANK | E58: Buy | F58: 1200 | G58: 1165 | H58: 1228.5 | I58: 1260-1270 | J58: Profit of Rs.28.5/- | K58: =H58-F58 -> 28.5 | L58: 2.38% | O58: Successful | P58: 2020-05-08 | R58: H
A59: 11 | B59: 2020-05-07 | D59: TATACONSUM | E59: Buy | F59: 340.5 | G59: 327 | H59: 349 | I59: 360-363 | J59: Profit of Rs.8.5/- | K59: =H59-F59 -> 8.5 | L59: =K59/F59 -> 2.50% | O59: Successful | P59: 2020-05-08 | R59: N
A60: 12 | B60: 2020-05-08 | D60: M&M | E60: Buy | F60: 390 | G60: 377 | H60: 390 | I60: 415-420 | J60: Neutral | K60: =H60-F60 -> 0 | L60: =K60/F60 -> 0.00% | O60: Neutral | P60: 2020-05-11 | R60: H
A61: 13 | B61: 2020-05-11 | D61: ADANIPORTS | E61: Sell | F61: 289 | G61: 301 | H61: 300.5 | I61: 270-265 | J61: Loss of Rs.11.5/- | K61: =F61-H61 -> -11.5 | L61: -3.98% | O61: Unsuccessful | P61: 2020-05-13 | R61: H
A62: 14 | B62: 2020-05-11 | D62: SUNTV | E62: Sell | F62: 387 | G62: 403 | H62: 382 | I62: 365-355 | J62: Profit of Rs.5/- | K62: =F62-H62 -> 5 | L62: =K62/F62 -> 1.29% | O62: Successful | P62: 2020-05-12 | R62: H
A63: 15 | B63: 2020-05-11 | D63: BALKRISIND | E63: Buy | F63: 920 | G63: 890 | H63: 945 | I63: 960-970 | J63: Profit of Rs.25/- | K63: =H63-F63 -> 25 | L63: 2.72% | O63: Successful | P63: 2020-05-13 | R63: N
A64: 16 | B64: 2020-05-11 | D64: HDFCBANK | E64: Buy | F64: 932.5 | G64: 898 | H64: 895 | I64: 970-980 | J64: Loss of Rs.37.5/- | K64: =H64-F64 -> -37.5 | L64: =K64/F64 -> -4.02% | O64: Unsuccessful | P64: 2020-05-12 | R64: N
A65: 17 | B65: 2020-05-11 | D65: HINDUNILVR | E65: Buy | F65: 2027.5 | G65: 1970 | H65: 2075 | I65: 2100-2130 | J65: Profit of Rs.47.5/- | K65: =H65-F65 -> 47.5 | L65: 2.34% | O65: Successful | P65: 2020-05-13 | R65: H
A66: 18 | B66: 2020-05-12 | D66: HDFCLIFE | E66: Buy | F66: 520 | G66: 500 | H66: 531.5 | I66: 550-560 | J66: Profit of Rs.11.5/- | K66: =H66-F66 -> 11.5 | L66: =K66/F66 -> 2.21% | O66: Successful | P66: 2020-05-12 | R66: N
A67: 19 | B67: 2020-05-12 | D67: CIPLA | E67: Buy | F67: 570 | G67: 548 | H67: 600 | I67: 600-610 | J67: Profit of Rs.30/- | K67: =H67-F67 -> 30 | L67: 5.26% | O67: Successful | P67: 2020-05-13 | R67: H
A68: 20 | B68: 2020-05-13 | D68: CIPLA | E68: Buy | F68: 572 | G68: 549 | H68: 573.5 | I68: 600-610 | J68: Profit of 1.5 Rs/- | K68: =H68-F68 -> 1.5 | L68: 0.26% | O68: Neutral | P68: 2020-05-15 | R68: H
A69: 21 | B69: 2020-05-13 | D69: HDFCLIFE | E69: Buy | F69: 519 | G69: 498 | H69: 497.5 | I69: 550-560 | J69: Loss of Rs.21.5/- | K69: =H69-F69 -> -21.5 | L69: =K69/F69 -> -4.14% | O69: Unsuccessful | P69: 2020-05-14 | R69: N
A70: 22 | B70: 2020-05-13 | D70: HINDUNILVR | E70: Buy | F70: 2010-2020 | G70: 1945 | I70: 2120-2150 | J70: Open | R70: H
A71: 23 | B71: 2020-05-13 | D71: HDFCBANK | E71: Buy | F71: 926 | G71: 895 | H71: 896 | I71: 980-990 | J71: Loss of Rs.30/- | K71: =H71-F71 -> -30 | L71: =K71/F71 -> -3.24% | O71: Unsuccessful | P71: 2020-05-14 | R71: H
A72: 24 | B72: 2020-05-13 | D72: HEXAWARE | E72: Buy | F72: 262.5 | G72: 253 | H72: 253 | I72: 280-285 | J72: Loss of Rs.9.5/- | K72: =H72-F72 -> -9.5 | L72: =K72/F72 -> -3.62% | O72: Unsuccessful | P72: 2020-05-14 | R72: N
A73: 25 | B73: 2020-05-18 | D73: AMARAJABAT | E73: Sell | F73: 576.5 | G73: 595 | H73: 563 | I73: 540-530 | J73: Profit of Rs.13.5/- | K73: =F73-H73 -> 13.5 | L73: 2.34% | O73: Successful | P73: 2020-05-18 | R73: H
A74: 26 | B74: 2020-05-20 | D74: AMARAJABAT | E74: Sell | F74: 570 | G74: 586 | H74: 589.5 | I74: 540-530 | J74: Loss of Rs.19.5/- | K74: =F74-H74 -> -19.5 | L74: -3.42% | O74: Unsuccessful | P74: 2020-05-21 | R74: H
A75: 27 | B75: 2020-05-21 | D75: SUNPHARMA | E75: Buy | F75: 461 | G75: 447 | H75: 469 | I75: 480-485 | J75: Profit of Rs.8/- | K75: =H75-F75 -> 8 | L75: 1.74% | O75: Successful | P75: 2020-05-21 | R75: N
A76: 28 | B76: 2020-05-21 | D76: GSPL | E76: Buy | F76: 188-190 | G76: 182 | I76: 200-205 | J76: Open | R76: N
A77: 29 | B77: 2020-05-22 | D77: DRREDDY | E77: Buy | F77: 3815 | G77: 3680 | H77: 3890 | I77: 4000-4050 | J77: Profit of Rs.75/- | K77: =H77-F77 -> 75 | L77: =K77/F77 -> 1.97% | O77: Successful | P77: 2020-05-22 | R77: H
A78: 30 | B78: 2020-05-22 | D78: SUNPHARMA | E78: Buy | F78: 465 | G78: 448 | H78: 474.5 | I78: 485-490 | J78: Profit of Rs.9.5/- | K78: =H78-F78 -> 9.5 | L78: =K78/F78 -> 2.04% | O78: Successful | P78: 2020-05-26 | R78: N
A79: 31 | B79: 2020-05-26 | D79: BHARTIARTL | E79: Buy | F79: 566-570 | G79: 548 | I79: 590-600 | J79: Open | R79: H
A80: 32 | B80: 2020-05-26 | D80: GRASIM | E80: Buy | F80: 533-535 | G80: 515 | I80: 570-589 | J80: Open | R80: N
A83: CLBS = Closing Basis ***
A84: Dividend adjusted <> | F84: Reinitiated $
F85: Revised stoploss #
A87: Master Trade High Risk
A88: Sr.no | B88: Date | D88: Company | E88: Rec | F88: Rec Price | G88: Stop Loss | H88: Call Closed At | I88: Target | J88: Remark | K88: Profit / Loss per share | L88: Gain / Loss per Lot | M88: Lot | N88: Status | O88: Closed Date
A98: Master Trade Medium Risk
A99: Sr.no | B99: Date | D99: Company | E99: Rec | F99: Rec Price | G99: Stop Loss | H99: Call Closed At | I99: Target | J99: Remark | K99: Profit/ Loss per lot | L99: Gain / Loss per Lot | M99: Lot | N99: Status | O99: Closed Date
A100: 1 | B100: 2020-04-30 | D100: SBIN 210 CE MAY | E100: Buy | F100: 6.75 | G100: 4.9 | H100: 4.9 | I100: 11-12.0 | J100: Loss of Rs.1.85/- | K100: =L100*M100 -> -5550 | L100: =H100-F100 -> -1.85 | M100: 3000 | N100: Unsuccessful | O100: 2020-05-04 | R100: H
A101: 2 | B101: 2020-05-08 | D101: PVR 1000 CE MAY | E101: Buy | F101: 32 | G101: 18 | H101: 39 | I101: 50-60 | J101: Profit of Rs.7/- | K101: 2800 | L101: 7 | M101: 400 | N101: Successful | O101: 2020-05-13 | R101: H
A102: 3 | B102: 2020-05-08 | D102: DLF 120 PE MAY | E102: Buy | F102: 4.5 | G102: 2 | H102: 2.9 | I102: 7.0-8.0 | J102: Loss of Rs.1.6/- | K102: =L102*M102 -> -5280 | L102: =H102-F102 -> -1.6 | M102: 3300 | N102: Unsuccessful | O102: 2020-05-11 | R102: N
A103: 4 | B103: 2020-05-11 | D103: HDFCBANK 1000 CE MAY | E103: Buy | F103: 13 | G103: 4.8 | H103: 18.5 | I103: 25-30 | J103: Profit of Rs.5.5/- | K103: 2750 | L103: 5.5 | M103: 500 | N103: Successful | O103: 2020-05-13 | R103: H
A104: 5 | B104: 2020-05-13 | D104: HEROMOTOCO 2050 PE MAY | E104: Buy | F104: 45 | G104: 24 | H104: 56.5 | I104: 80-90 | J104: Profit of Rs.11.5/- | K104: =L104*M104 -> 2300 | L104: =H104-F104 -> 11.5 | M104: 200 | N104: Successful | O104: 2020-05-13 | R104: H
A105: 6 | B105: 2020-05-13 | D105: BAJAJ-AUTO 2500 PE MAY | E105: Buy | F105: 37 | G105: 18 | H105: 46 | I105: 70-80 | J105: Profit of Rs.9/- | K105: =L105*M105 -> 2250 | L105: =H105-F105 -> 9 | M105: 250 | N105: Successful | O105: 2020-05-13 | R105: N
A106: 7 | B106: 2020-05-13 | D106: HEROMOTOCO 2000 PE MAY | E106: Buy | F106: 41 | G106: 18 | H106: 53 | I106: 80-90 | J106: Profit of Rs.12/- | K106: 2400 | L106: 12 | M106: 200 | N106: Successful | O106: 2020-05-14 | R106: H
A107: 8 | B107: 2020-05-13 | D107: BAJAJ-AUTO 2500 PE MAY | E107: Buy | F107: 34.5 | G107: 14 | H107: 44 | I107: 60-70 | J107: Profit of Rs.9.5/- | K107: =L107*M107 -> 2375 | L107: =H107-F107 -> 9.5 | M107: 250 | N107: Successful | O107: 2020-05-13 | R107: N
A108: 9 | B108: 2020-05-13 | D108: LT 880 CE MAY | E108: Buy | F108: 29 | G108: 15 | H108: 37.5 | I108: 45-50 | J108: Profit of Rs.8.5/- | K108: 3187.5 | L108: 8.5 | M108: 375 | N108: Successful | O108: 2020-05-15 | R108: H
A109: 10 | B109: 2020-05-14 | D109: HEROMOTOCO 2050 PE MAY | E109: Buy | F109: 51.5 | G109: 28 | H109: 60 | I109: 80-90 | J109: Profit of Rs.8.5/- | K109: 1700 | L109: 8.5 | M109: 200 | N109: Successful | O109: 2020-05-18 | R109: H
A110: 11 | B110: 2020-05-15 | D110: LT 880 CE MAY | E110: Buy | F110: 27.5 | G110: 15 | H110: 34 | I110: 45-50 | J110: Profit of Rs.6.5/- | K110: =L110*M110 -> 2437.5 | L110: =H110-F110 -> 6.5 | M110: 375 | N110: Successful | O110: 2020-05-15 | R110: H
A111: 12 | B111: 2020-05-19 | D111: HDFC 1650 CE MAY | E111: Buy | F111: 27 | G111: 8 | H111: 33 | I111: 60-70 | J111: Profit of Rs.6/- | K111: =L111*M111 -> 1500 | L111: =H111-F111 -> 6 | M111: 250 | N111: Successful | O111: 2020-05-20 | R111: H
A112: 13 | B112: 2020-05-20 | D112: HEROMOTOCO 2000 PE | E112: Buy | F112: 45 | G112: 25 | H112: 25 | I112: 80-90 | J112: Loss of Rs.20/- | K112: -4000 | L112: -20 | M112: 200 | N112: Unsuccessful | O112: 2020-05-21 | R112: N
A113: 14 | B113: 2020-05-20 | D113: SBIN 160 CE MAY | E113: Buy | F113: 3.4 | G113: 1.4 | H113: 2.15 | I113: 5-6.0 | J113: Loss of Rs.1.25/- | K113: =L113*M113 -> -3750 | L113: -1.25 | M113: 3000 | N113: Unsuccessful | O113: 2020-05-21 | R113: H
A114: 15 | B114: 2020-05-21 | D114: LT 840 CE MAY | E114: Buy | F114: 13-15 | G114: 3.5 | I114: 30-35 | J114: Open | R114: H
A115: 16 | B115: 2020-05-21 | D115: LUPIN 900 CE MAY | E115: Buy | F115: 15 | G115: 7 | H115: 18.5 | I115: 30-35 | J115: Profit of Rs.3.5/- | K115: =L115*M115 -> 2450 | L115: =H115-F115 -> 3.5 | M115: 700 | N115: Successful | O115: 2020-05-21 | R115: H
A116: 17 | B116: 2020-05-26 | D116: BAJAJ-AUTO 2550 PE MAY | E116: Buy | F116: 19 | G116: 0 | H116: 27 | I116: 40-45 | J116: Profit of Rs.8/- | K116: 2000 | L116: 8 | M116: 250 | N116: Successful | O116: 2020-05-26 | R116: N
A117: 18 | B117: 2020-05-26 | D117: NIFTY 8900 PE MAY | E117: Buy | F117: 35-38 | I117: 80-90 | J117: Open | R117: A
A118: 19 | B118: 2020-05-26 | D118: BAJAJ-AUTO 2550 PE MAY | E118: Buy | F118: 20-22 | G118: 4 | I118: 40-45 | J118: Open | R118: H
A119: 20 | B119: 2020-05-26 | D119: DRREDDY 3950 CE MAY | E119: Buy | F119: 17-19 | I119: 40-45 | J119: Open | R119: N
A123: Techno -Funda (positional)
A124: Sr.no | B124: Date | D124: Company | E124: Rec | F124: Rec Price | G124: Stop Loss*** | H124: Call Closed At | I124: Target | J124: Remark | K124: Profit / Loss per Share | L124: Gain / Loss % | M124: Status | N124: Closed Date | O124: NSE Closed Price
A126: CLBS = Closing Basis *** | F126: Reinitiated $
A127: Dividend adjusted <> | F127: Revised stoploss #
B132: Investment Idea
A133: Sr.no | B133: Date | D133: Company | E133: Rec | F133: Rec Price | G133: Point of Review | H133: Close Rate | I133: Target | J133: Remark | K133: Profit / Loss per Share | L133: Gain / Loss % | M133: Status | N133: Closed Date
A134: 1 | B134: 2013-11-01 | D134: L&T Finance Holding | E134: Accu | F134: 82.00 | G134: - | H134: 100 | I134: 100.00 | J134: Target Achieved | K134: =H134-F134 -> 18.00 | L134: =K134/F134 -> 21.95% | M134: Successful | N134: 2016-10-14
A135: 2 | B135: 2014-06-04 | D135: Finolex Inds | E135: Buy | F135: 257.00 | G135: - | H135: 300 | I135: 300.00 | J135: Target Achieved | K135: 43.00 | L135: 16.73% | M135: Successful | N135: 2014-07-02
A136: 3 | B136: 2014-07-08 | D136: JK Cement | E136: Buy | F136: 393.00 | G136: - | H136: 468 | I136: 468.00 | J136: Target Achieved | K136: 75.00 | L136: 19.08% | M136: Successful | N136: 2014-08-12
A137: 4 | B137: 2014-08-06 | D137: Finolex Cables | E137: Buy | F137: 205.00 | G137: - | H137: 275 | I137: 250.00 | J137: Target Achieved | K137: 70.00 | L137: 34.15% | M137: Successful | N137: 2014-11-19
A138: 5 | B138: 2014-09-04 | D138: Exide Inds | E138: Buy | F138: 162.00 | G138: - | H138: 190 | I138: 190.00 | J138: Target Achieved | K138: 28.00 | L138: 17.28% | M138: Successful | N138: 2015-01-02
A139: 6 | B139: 2014-09-04 | D139: Deepak Nitrite | E139: Buy | F139: 75.00 | G139: - | H139: 91.5 | I139: 95-100 | J139: Profit of Rs.16.50/- | K139: 16.50 | L139: 22.00% | M139: Successful | N139: 2014-11-11
A140: 7 | B140: 2014-10-01 | D140: Mercks | E140: Buy | F140: 850.00 | G140: - | H140: 982.5 | I140: 1050.00 | J140: Profit of Rs.132.50/- | K140: 132.50 | L140: 15.59% | M140: Successful | N140: 2015-02-04
A141: 8 | B141: 2014-10-01 | D141: Grindwell Norton | E141: Buy | F141: 475.00 | G141: - | H141: 515 | I141: 600.00 | J141: Profit of Rs.40/- | K141: 40.00 | L141: 8.42% | M141: Successful | N141: 2014-10-27
A142: 9 | B142: 2014-10-01 | D142: Snowman Logistics | E142: Buy | F142: 86.00 | G142: - | H142: 99 | I142: 140.00 | J142: Profit of Rs.13.00/- | K142: 13.00 | L142: 15.12% | M142: Successful | N142: 2014-10-27
A143: 10 | B143: 2014-10-14 | D143: Birla Corp | E143: Buy | F143: 496.60 | G143: - | H143: 621 | I143: 580.00 | J143: Target Achieved | K143: 124.40 | L143: 25.05% | M143: Successful | N143: 2016-08-23
A144: 11 | B144: 2014-10-14 | D144: Ultratech Cem | E144: Buy | F144: 2481.90 | G144: - | H144: 2840 | I144: 2870.00 | J144: Profit of Rs.358.10/- | K144: 358.10 | L144: 14.43% | M144: Successful | N144: 2015-01-13
A145: 12 | B145: 2014-10-16 | D145: Sintex Inds | E145: Buy | F145: 84.50 | G145: - | H145: 93 | I145: 110.00 | J145: Profit of Rs.8.50/- | K145: 8.50 | L145: 10.06% | M145: Successful | N145: 2014-10-27
A146: 13 | B146: 2014-10-16 | D146: HSIL | E146: Buy | F146: 401.00 | G146: - | H146: 428 | I146: 450.00 | J146: Profit of Rs.27.00/- | K146: 27.00 | L146: 6.73% | M146: Successful | N146: 2015-01-16
A147: 14 | B147: 2014-10-16 | D147: Eveready Inds | E147: Buy | F147: 101.00 | G147: - | H147: 112 | I147: 120.00 | J147: Profit of Rs.11.00/- | K147: 11.00 | L147: 10.89% | M147: Successful | N147: 2014-10-27
A148: 15 | B148: 2014-11-11 | D148: Pennar Inds | E148: Buy | F148: 59.00 | G148: - | H148: 76 | I148: 76.00 | J148: Target Achieved | K148: 17.00 | L148: 28.81% | M148: Successful | N148: 2017-10-24
A149: 16 | B149: 2014-11-11 | D149: Snowman Logistics | E149: Buy | F149: 99.00 | G149: - | H149: 120 | I149: 120.00 | J149: Profit of Rs.21/- | K149: 21.00 | L149: 21.21% | M149: Successful | N149: 2014-11-17
A150: 17 | B150: 2014-11-13 | D150: Dharamsi Morarji Chem | E150: Buy | F150: 22.00 | G150: - | H150: 33.55 | I150: 32.00 | J150: Profit of Rs 11.55/- | K150: 11.55 | L150: 52.50% | M150: Successful | N150: 2015-07-03
A151: 18 | B151: 2014-12-03 | D151: Tatachem | E151: Buy | F151: 440.00 | G151: - | H151: 520 | I151: 520.00 | J151: Profit of Rs 80.00/- | K151: 80.00 | L151: 18.18% | M151: Successful | N151: 2015-07-23
A152: 19 | B152: 2014-12-03 | D152: Advanta | E152: Buy | F152: 360.00 | G152: - | H152: 427 | I152: 425.00 | J152: Profit of Rs.67.00/- | K152: 67.00 | L152: 18.61% | M152: Successful | N152: 2015-02-23
A153: 20 | B153: 2015-01-08 | D153: GDL | E153: Buy | F153: 360.00 | G153: - | H153: 455 | I153: 420.00 | J153: Profit of Rs.95.00/- | K153: 95.00 | L153: 26.39% | M153: Successful | N153: 2015-01-20
A154: 21 | B154: 2015-01-08 | D154: NRB Bearing | E154: Buy | F154: 130.00 | H154: 175.5 | I154: 165.00 | J154: Profit of Rs 45.50/- | K154: 45.50 | L154: 35.00% | M154: Successful | N154: 2017-12-19
A155: 22 | B155: 2015-02-05 | D155: GSFC | E155: Accu | F155: 98.00 | H155: 120 | I155: 120.00 | J155: Target Achieved | K155: 22.00 | L155: 22.45% | M155: Successful | N155: 2017-01-18
A156: 23 | B156: 2015-02-05 | D156: Sundrmfast | E156: Accu | F156: 196.00 | H156: 262 | I156: 255.00 | J156: Target Achieved | K156: 66.00 | L156: 33.67% | M156: Successful | N156: 2016-08-17
A157: 24 | B157: 2015-03-04 | D157: GPPL | E157: Accu | F157: 235 | H157: 77.00 | I157: 280-285 | J157: Loss of Rs.158/- | K157: -158.00 | L157: -67.23% | M157: Unsuccessful | N157: 2019-02-26
A158: 25 | B158: 2015-03-04 | D158: ORIENTCEM | E158: Accu | F158: 185.00 | H158: 224 | I158: 220-225 | J158: Target Achieved | K158: 39.00 | L158: 21.08% | M158: Successful | N158: 2016-10-04
A159: 26 | B159: 2015-03-27 | D159: PFS | E159: Accu | F159: 49.5 | H159: 15.85 | I159: 67.00 | J159: Loss of Rs.33.65/- | K159: -33.65 | L159: -68% | M159: Unsuccessful | N159: 2019-06-11
A160: 27 | B160: 2015-03-30 | D160: Walchandnagar Ind Ltd | E160: Accu | F160: 183.50 | H160: 219 | I160: 218.00 | J160: Profit of Rs.35.50/- | K160: 35.50 | L160: 19.35% | M160: Successful | N160: 2015-04-09
A161: 28 | B161: 2015-04-20 | D161: Kalpataru Power Transmission Ltd | E161: Accu | F161: =(227+237)/2 -> 232.00 | H161: 298 | I161: 298.00 | J161: Target Achieved | K161: 66.00 | L161: 28.45% | M161: Successful | N161: 2017-03-29
A162: 29 | B162: 2015-05-04 | D162: Mastek Ltd | E162: Buy | F162: 385.00 | H162: =212.5+331 -> 543.5 | I162: 510.00 | J162: Profit of Rs 158.50/- | K162: 158.50 | L162: 41.17% | M162: Successful | N162: 2015-08-19
A163: 30 | B163: 2015-05-04 | D163: Suprajit Eng | E163: Buy | F163: 115.50 | H163: 146 | I163: 142.00 | J163: Profit of Rs 30.50/- | K163: 30.50 | L163: 26.41% | M163: Successful | N163: 2015-07-17
A164: 31 | B164: 2015-05-27 | D164: TCI | E164: Buy | F164: 237.50 | H164: 279.5 | I164: 278.00 | J164: Target Achieved | K164: 42.00 | L164: 17.68% | M164: Successful | N164: 2015-08-06
A165: 32 | B165: 2015-06-19 | D165: HSIL | E165: Accu | F165: 340.00 | H165: 448 | I165: 448.00 | J165: Target Achieved | K165: 108.00 | L165: 31.76% | M165: Successful | N165: 2017-10-10
A166: 33 | B166: 2015-07-06 | D166: Capital First | E166: Accu | F166: 390.00 | H166: 460 | I166: 460.00 | J166: Target Achieved | K166: =H166-F166 -> 70.00 | L166: =K166/F166 -> 17.95% | M166: Successful | N166: 2016-04-18
A167: 34 | B167: 2015-07-10 | D167: Dolphin OffShore | E167: Accu | F167: 122.5 | H167: 61.00 | I167: 172.00 | J167: Loss of Rs.61.50/- | K167: -61.50 | L167: -50.20% | M167: Unsuccessful | N167: 2018-08-21
A168: 35 | B168: 2015-08-03 | D168: Allcargo logistics | E168: Accu | F168: 297.50 | H168: 350 | I168: 360.00 | J168: Profit of Rs 52.50/- | K168: 52.50 | L168: 17.65% | M168: Successful | N168: 2015-08-16
A169: 36 | B169: 2015-08-03 | D169: Camline Fine | E169: Accu | F169: 115.50 | H169: 149 | I169: 140.00 | J169: Profit of Rs 33.50/- | K169: 33.50 | L169: 29.00% | M169: Successful | N169: 2017-01-05
A170: 37 | B170: 2015-09-04 | D170: TCI | E170: Accu | F170: 226.00 | H170: 292 | I170: 292.00 | J170: Target Achieved | K170: 66.00 | L170: 29.20% | M170: Successful | N170: 2015-10-09
A171: 38 | B171: 2015-09-07 | D171: Kalpataru Power Transmission Ltd | E171: Accu | F171: 232.50 | H171: 312.5 | I171: 310.00 | J171: Target Achieved | K171: 80.00 | L171: 34.41% | M171: Successful | N171: 2017-03-29
A172: 39 | B172: 2015-09-21 | D172: LLOYD ELECTRIC & ENG LTD | E172: Accu | F172: 196.50 | H172: 238 | I172: 238.00 | J172: Target Achieved | K172: 41.50 | L172: 21.12% | M172: Successful | N172: 2015-10-14
A173: 40 | B173: 2015-09-24 | D173: L&T Finance Holding | E173: Accu | F173: 65.00 | H173: 82 | I173: 82.00 | J173: Target Achieved | K173: 17.00 | L173: 26.15% | M173: Successful | N173: 2016-07-27
A174: 41 | B174: 2015-10-14 | D174: KEC International ltd | E174: Accu | F174: 144.00 | H174: 182.5 | I174: 181.00 | J174: Target Achieved | K174: 38.50 | L174: 26.74% | M174: Successful | N174: 2017-03-23
A175: 42 | B175: 2015-10-14 | D175: Gruh Finance | E175: Accu | F175: 264.00 | H175: 311 | I175: 311.00 | J175: Target Achieved | K175: 47.00 | L175: 17.80% | M175: Successful | N175: 2016-08-22
A176: 43 | B176: 2015-11-10 | D176: Pidilitind | E176: Buy | F176: 549.50 | H176: 630 | I176: 630.00 | J176: Target Achieved | K176: 80.50 | L176: 14.65% | M176: Successful | N176: 2016-02-19
A177: 44 | B177: 2015-12-04 | D177: Zensar Technology | E177: Accu | F177: 1027.50 | H177: 1315 | I177: 1250.00 | J177: Target Achieved | K177: 287.50 | L177: 27.98% | M177: Successful | N177: 2018-05-24
A178: 45 | B178: 2015-12-29 | D178: Vinati Organics Ltd | E178: Accu | F178: 465.00 | H178: 540 | I178: 540.00 | J178: Target Achieved | K178: 75.00 | L178: 16.13% | M178: Successful | N178: 2016-06-09
A179: 46 | B179: 2016-01-11 | D179: GSFC | E179: Buy | F179: 81.00 | H179: 110 | I179: 110.00 | J179: Target Achieved | K179: 29.00 | L179: 35.80% | M179: Successful | N179: 2017-01-10
A180: 47 | B180: 2016-01-13 | D180: SSWL | E180: Buy | F180: 417.50 | H180: 547 | I180: 535.00 | J180: Target Achieved | K180: 129.50 | L180: 31.02% | M180: Successful | N180: 2016-07-27
A181: 48 | B181: 2016-02-08 | D181: Persistent System Ltd | E181: Accu | F181: 650.00 | H181: 800 | I181: 800.00 | J181: Target Achieved | K181: 150.00 | L181: 23.08% | M181: Successful | N181: 2018-02-23
A182: 49 | B182: 2016-03-04 | D182: UPL | E182: Accu | F182: 437.50 | H182: 504.5 | I182: 522.00 | J182: Profit of Rs.67/- | K182: 67.00 | L182: 15.31% | M182: Successful | N182: 2016-04-20
A183: 50 | B183: 2016-03-09 | D183: Ashoka Buildcon Ltd | E183: Accu | F183: 189.50 | H183: 218 | I183: 218.00 | J183: Target Achieved | K183: 28.50 | L183: 15.04% | M183: Successful | N183: 2017-10-26
A184: 51 | B184: 2016-04-11 | D184: PTC INDIA FIN SERV LTD | E184: Accu | F184: 36.5 | H184: 15.85 | I184: 60.00 | J184: Loss of Rs.20.65/- | K184: -20.65 | L184: -56.58% | M184: Unsuccessful | N184: 2019-06-11
A185: 52 | B185: 2016-04-12 | D185: CAMLINFINE $ | E185: Accu | F185: 93.00 | H185: 149 | I185: 140.00 | J185: Profit of Rs 56/- | K185: 56.00 | L185: 60.22% | M185: Successful | N185: 2017-01-05
A186: 53 | B186: 2016-04-12 | D186: Greaves Cotton Ltd. | E186: Accu | F186: 130.00 | H186: 150 | I186: 150-155 | J186: Target Achieved | K186: 20.00 | L186: 15.38% | M186: Successful | N186: 2016-07-13
A187: 54 | B187: 2016-04-13 | D187: DHFL | E187: Accu | F187: 196.00 | H187: 299 | I187: 299.00 | J187: Target Achieved | K187: 103.00 | L187: 52.55% | M187: Successful | N187: 2016-09-07
A188: 55 | B188: 2016-04-13 | D188: Magma | E188: Accu | F188: 88.00 | H188: 103 | I188: 103.00 | J188: Target Achieved | K188: 15.00 | L188: 17.05% | M188: Successful | N188: 2016-06-09
A189: 56 | B189: 2016-05-02 | D189: KEC International ltd $ | E189: Accu | F189: 127.50 | H189: 148 | I189: 148-150 | J189: Target Achieved | K189: =H189-F189 -> 20.50 | L189: =K189/F189 -> 16.08% | M189: Successful | N189: 2016-07-13
A190: 57 | B190: 2016-05-03 | D190: Mindtree | E190: Accu | F190: 675.00 | H190: 815 | I190: 790-800 | J190: Target Achieved | K190: =H190-F190 -> 140.00 | L190: =K190/F190 -> 20.74% | M190: Successful | N190: 2018-02-23
A191: 58 | B191: 2016-06-01 | D191: Atulauto | E191: Accu | F191: 500 | H191: 232.50 | I191: 565-570 | J191: Loss of Rs.267.50 /- | K191: =H191-F191 -> -267.50 | L191: =K191/F191 -> -53.50% | M191: Unsuccessful | N191: 2019-09-27
A192: 59 | B192: 2016-06-06 | D192: TRITURBINE | E192: Accu | F192: 110.00 | H192: 126.5 | I192: 125.00 | J192: Profit of Rs.16.50/- | K192: =H192-F192 -> 16.50 | L192: =K192/F192 -> 15.00% | M192: Successful | N192: 2016-07-01
A193: 60 | B193: 2016-06-17 | D193: Pennar Industries Ltd | E193: Accu | F193: 44.00 | H193: 69.5 | I193: 69.50 | J193: Profit of Rs.25.50/- | K193: =H193-F193 -> 25.50 | L193: =K193/F193 -> 57.95% | M193: Successful | N193: 2017-08-30
A194: 61 | B194: 2016-06-28 | D194: EVEREADY | E194: Accu | F194: 262.50 | H194: 340 | I194: 333.00 | J194: Profit of Rs.77.50/- | K194: 77.50 | L194: 29.52% | M194: Successful | N194: 2017-10-09
A195: 62 | B195: 2016-06-28 | D195: FIEMIND | E195: Accu | F195: 840.00 | H195: 1230 | I195: 1230.00 | J195: Target Achieved | K195: 390.00 | L195: 46.43% | M195: Successful | N195: 2016-10-06
A196: 63 | B196: 2016-07-05 | D196: Bajaj Corp Ltd | E196: Accu | F196: 395 | H196: =(468.5+342.5)/2 -> 405.50 | I196: 510.00 | J196: Profit of Rs.10.50/- | K196: =H196-F196 -> 10.50 | L196: =K196/F196 -> 3% | M196: Neutral | N196: 2019-05-21
A197: 64 | B197: 2016-08-02 | D197: GPPL $ | E197: Buy | F197: =169.5-12.8 -> 156.7 | H197: 77.00 | I197: 198-200 | J197: Loss of Rs.79.7/- | K197: -79.70 | L197: -50.86% | M197: Unsuccessful | N197: 2019-02-26
A198: 65 | B198: 2016-08-04 | D198: WONDERLA HOLIDAYS LTD | E198: Accu | F198: 400 | H198: 305.00 | I198: 475.00 | J198: Loss of Rs.95/- | K198: -95.00 | L198: -23.75% | M198: Unsuccessful | N198: 2019-05-21
A199: 66 | B199: 2016-08-11 | D199: CAMLINFINE | E199: Accu | F199: 86.50 | H199: 130 | I199: 130.00 | J199: Profit of Rs.43.50/- | K199: 43.50 | L199: 50.29% | M199: Successful | N199: 2017-12-22
A200: 67 | B200: 2016-08-18 | D200: GRANULES | E200: Accu | F200: 133.5 | H200: 126.50 | I200: 178.00 | J200: Exit | K200: -7.00 | L200: -5.24% | M200: Unsuccessful | N200: 2016-09-02
A201: 68 | B201: 2016-08-31 | D201: VA TECH WABAG | E201: Accu | F201: 560.00 | H201: 725 | I201: 725.00 | J201: Target Achieved | K201: 165.00 | L201: 29.46% | M201: Successful | N201: 2016-03-27
A202: 69 | B202: 2016-09-01 | D202: SKIPPER LIMITED | E202: Accu | F202: 160.50 | H202: 210 | I202: 210.00 | J202: Target Achieved | K202: 49.50 | L202: 30.84% | M202: Successful | N202: 2017-05-16
A203: 70 | B203: 2016-10-03 | D203: IFBIND | E203: Accu | F203: 430.00 | H203: 596 | I203: 575.00 | J203: Profit of Rs.166/- | K203: 166.00 | L203: 38.60% | M203: Successful | N203: 2017-02-03
A204: 71 | B204: 2016-10-14 | D204: ASIANTILES | E204: Accu | F204: 280.00 | H204: 345 | I204: 345.00 | J204: Target Achieved | K204: =H204-F204 -> 65.00 | L204: =K204/F204 -> 23.21% | M204: Successful | N204: 2017-03-20
A205: 72 | B205: 2016-10-14 | D205: DEEPIND | E205: Accu | F205: 245.00 | H205: 325.5 | I205: 330.00 | J205: Profit of Rs.80.5/- | K205: 80.50 | L205: =K205/F205 -> 32.86% | M205: Successful | N205: 2017-02-03
A206: 73 | B206: 2016-10-17 | D206: DCBBANK | E206: Accu | F206: 125.00 | H206: 160 | I206: 160.00 | J206: Target Achieved | K206: 35.00 | L206: 28.00% | M206: Successful | N206: 2017-03-09
A207: 74 | B207: 2016-10-17 | D207: ORIENTREF | E207: Accu | F207: 114.00 | H207: 145 | I207: 145.00 | J207: Target Achieved | K207: 31.00 | L207: =K207/F207 -> 27.19% | M207: Successful | N207: 2017-05-04
A208: 75 | B208: 2016-10-17 | D208: GANECOS | E208: Accu | F208: 212.00 | H208: 280 | I208: 276.00 | J208: Profit of Rs.68/- | K208: 68.00 | L208: =K208/F208 -> 32.08% | M208: Successful | N208: 2017-05-03
A209: 76 | B209: 2016-11-04 | D209: NBCC | E209: Accu | F209: 155.00 | H209: 210 | I209: 210.00 | J209: Profit of Rs.55/- | K209: 55.00 | L209: =K209/F209 -> 35.48% | M209: Successful | N209: 2017-07-28
A210: 77 | B210: 2016-12-06 | D210: PRECAM | E210: Accu | F210: 150.5 | H210: 72.50 | I210: 174.00 | J210: Loss of Rs.78/- | K210: -78.00 | L210: -51.83% | M210: Unsuccessful | N210: 2018-08-21
A211: 78 | B211: 2016-12-08 | D211: INFRATEL | E211: Accu | F211: 380.00 | H211: 478 | I211: 468.00 | J211: Target Achieved | K211: =H211-F211 -> 98.00 | L211: =K211/F211 -> 25.79% | M211: Successful | N211: 2017-10-17
A212: 79 | B212: 2016-12-30 | D212: GODREJPROP | E212: Accu | F212: 305.00 | H212: 375 | I212: 375.00 | J212: Target Achieved | K212: =H212-F212 -> 70.00 | L212: =K212/F212 -> 22.95% | M212: Successful | N212: 2017-02-02
A213: 80 | B213: 2017-01-04 | D213: DEEPAKNTR | E213: Accu | F213: 99.50 | H213: 158 | I213: 158.00 | J213: Target Achieved | K213: =H213-F213 -> 58.50 | L213: =K213/F213 -> 58.79% | M213: Successful | N213: 2017-06-12
A214: 81 | B214: 2017-01-04 | D214: DEEPAKNTR | E214: Accu | F214: 99.50 | H214: 158 | I214: 158.00 | J214: Target Achieved | K214: 58.50 | L214: 58.79% | M214: Successful | N214: 2017-06-12
A215: 82 | B215: 2017-02-20 | D215: RECLTD | E215: Accu | F215: 140.50 | H215: 220 | I215: 220.00 | J215: Target Achieved | K215: =H215-F215 -> 79.50 | L215: =K215/F215 -> 56.58% | M215: Successful | N215: 2017-05-09
A216: 83 | B216: 2017-02-20 | D216: SUBROS | E216: Accu | F216: 202.50 | H216: 234 | I216: 234.00 | J216: Target Achieved | K216: 31.50 | L216: 15.56% | M216: Successful | N216: 2017-04-11
A217: 84 | B217: 2017-03-24 | D217: VRLLOG | E217: Accu | F217: 300.50 | H217: 417.5 | I217: 420.00 | J217: Profit of Rs.117/- | K217: =H217-F217 -> 117.00 | L217: =K217/F217 -> 38.94% | M217: Successful | N217: 2017-12-01
A218: 85 | B218: 2017-03-24 | D218: FIEMIND | E218: Accu | F218: 850.00 | H218: 1042.5 | I218: 1023.00 | J218: Profit of Rs 192.50/- | K218: 192.50 | L218: 22.65% | M218: Successful | N218: 2017-04-05
A219: 86 | B219: 2017-04-05 | D219: RATNAMANI | E219: Accu | F219: 785.00 | H219: 930 | I219: 920.00 | J219: Profit of Rs.145/- | K219: =H219-F219 -> 145.00 | L219: =K219/F219 -> 18.47% | M219: Successful | N219: 2017-08-29
A220: 87 | B220: 2017-04-06 | D220: ZEEMEDIA | E220: Accu | F220: 40 | H220: 13.10 | I220: 60.00 | J220: Loss of Rs.26.9/- | K220: -26.90 | L220: -67.25% | M220: Unsuccessful | N220: 2018-02-07
A221: 88 | B221: 2017-04-12 | D221: DABUR | E221: Accu | F221: 289.50 | H221: 354 | I221: 360.00 | J221: Profit of Rs.64.5/- | K221: =H221-F221 -> 64.50 | L221: =K221/F221 -> 22.28% | M221: Successful | N221: 2017-11-01
A222: 89 | B222: 2017-04-20 | D222: KPRMILL | E222: Accu | F222: 700.00 | H222: 840 | I222: 840.00 | J222: Profit of Rs.140/- | K222: 140.00 | L222: 20.00% | M222: Successful | N222: 2017-06-07
A223: 90 | B223: 2017-06-01 | D223: ESSELPACK | E223: Accu | F223: 130.00 | H223: 144.25 | I223: 170.00 | J223: Profit of Rs.14.25/- | K223: 14.25 | L223: 10.96% | M223: Successful | N223: 2019-07-29
A224: 91 | B224: 2017-06-15 | D224: KEI | E224: Accu | F224: 214.50 | H224: 262 | I224: 262.00 | J224: Profit of Rs.47.5/- | K224: 47.50 | L224: 22.14% | M224: Successful | N224: 2017-08-30
A225: 92 | B225: 2017-07-17 | D225: MAYURUNIQ | E225: Accu | F225: 370.00 | H225: 447.5 | I225: 450.00 | J225: Target Achieved | K225: 77.50 | L225: 20.95% | M225: Successful | N225: 2017-10-27
A226: 93 | B226: 2017-07-27 | D226: RAMCOCEM | E226: Accu | F226: 657.50 | H226: 825 | I226: 820.00 | J226: Target Achieved | K226: 167.50 | L226: 25.48% | M226: Successful | N226: 2017-12-21
A227: 94 | B227: 2017-08-17 | D227: FINPIPE | E227: Accu | F227: 605.00 | H227: 750 | I227: 750.00 | J227: Profit of Rs.145/- | K227: 145.00 | L227: 23.97% | M227: Successful | N227: 2017-10-19
... 60 more rows

Sheet Sheet2 (hidden)
A1: SYMBOL | B1: SERIES | C1: OPEN | D1: HIGH | E1: LOW | F1: CLOSE | G1: LAST | H1: PREVCLOSE | I1: TOTTRDQTY | J1: TOTTRDVAL | K1: TIMESTAMP | L1: TOTALTRADES | M1: ISIN | N1: ISIN
A2: 20MICRONS | B2: EQ | C2: 27.9 | D2: 29 | E2: 25.9 | F2: 26.2 | G2: 25.9 | H2: 27.5 | I2: 80527 | J2: 2193820.55 | K2: 2020-04-08 | L2: 1099 | M2: INE144J01027
A3: 21STCENMGM | B3: EQ | C3: 10.15 | D3: 10.5 | E3: 10.1 | F3: 10.4 | G3: 10.5 | H3: 10.3 | I3: 3205 | J3: 32728.25 | K3: 2020-04-08 | L3: 28 | M3: INE253B01015
A4: 3IINFOTECH | B4: EQ | C4: 1.35 | D4: 1.35 | E4: 1.2 | F4: 1.25 | G4: 1.25 | H4: 1.35 | I4: 2793301 | J4: 3578364.95 | K4: 2020-04-08 | L4: 46535 | M4: INE748C01020
A5: 3MINDIA | B5: EQ | C5: 18950 | D5: 19170 | E5: 18155.05 | F5: 18318.2 | G5: 18270 | H5: 18755.7 | I5: 9926 | J5: 183605811.2 | K5: 2020-04-08 | L5: 4453 | M5: INE470A01017
A6: 3PLAND | B6: EQ | C6: 3.7 | D6: 3.85 | E6: 3.7 | F6: 3.85 | G6: 3.85 | H6: 3.7 | I6: 406 | J6: 1557.85 | K6: 2020-04-08 | L6: 9 | M6: INE105C01023
A7: 5PAISA | B7: EQ | C7: 119.95 | D7: 134 | E7: 115 | F7: 123.35 | G7: 120.5 | H7: 116.4 | I7: 6500 | J7: 793277.05 | K7: 2020-04-08 | L7: 265 | M7: INE618L01018
A8: 63MOONS | B8: EQ | C8: 50.7 | D8: 55.45 | E8: 50.7 | F8: 53.7 | G8: 53.55 | H8: 50.7 | I8: 72221 | J8: 3890984.7 | K8: 2020-04-08 | L8: 3078 | M8: INE111B01023
A9: A2ZINFRA | B9: EQ | C9: 3.15 | D9: 3.25 | E9: 3.1 | F9: 3.15 | G9: 3.15 | H9: 3.15 | I9: 116011 | J9: 367778.85 | K9: 2020-04-08 | L9: 227 | M9: INE619I01012
A10: AARTIDRUGS | B10: EQ | C10: 627 | D10: 669.3 | E10: 605 | F10: 631.6 | G10: 625 | H10: 607.85 | I10: 75970 | J10: 48223549.15 | K10: 2020-04-08 | L10: 5720 | M10: INE767A01016
A11: AARTIIND | B11: EQ | C11: 839.95 | D11: 909.8 | E11: 818 | F11: 854.9 | G11: 864 | H11: 830.7 | I11: 477805 | J11: 419092386.9 | K11: 2020-04-08 | L11: 50045 | M11: INE769A01020
A12: AARVEEDEN | B12: EQ | C12: 8.95 | D12: 9.25 | E12: 7.85 | F12: 8.35 | G12: 8.45 | H12: 8.1 | I12: 9251 | J12: 77100.1 | K12: 2020-04-08 | L12: 94 | M12: INE273D01019
A13: AAVAS | B13: EQ | C13: 1101 | D13: 1183 | E13: 1101 | F13: 1135.2 | G13: 1137 | H13: 1142.35 | I13: 24179 | J13: 28073100.85 | K13: 2020-04-08 | L13: 3631 | M13: INE216P01012
A14: ABAN | B14: EQ | C14: 15.7 | D14: 16.2 | E14: 15.7 | F14: 16.2 | G14: 16.2 | H14: 15.45 | I14: 37609 | J14: 608439.6 | K14: 2020-04-08 | L14: 288 | M14: INE421A01028
A15: ABB | B15: EQ | C15: 935 | D15: 965 | E15: 910 | F15: 930.7 | G15: 928 | H15: 931.35 | I15: 87757 | J15: 82358527.9 | K15: 2020-04-08 | L15: 4699 | M15: INE117A01022
A16: ABBOTINDIA | B16: EQ | C16: 16799.45 | D16: 18250 | E16: 16750 | F16: 17481.1 | G16: 17488 | H16: 16699.7 | I16: 57991 | J16: 1023745502 | K16: 2020-04-08 | L16: 21022 | M16: INE358A01014
A17: ABCAPITAL | B17: EQ | C17: 45 | D17: 47.9 | E17: 44.25 | F17: 45.6 | G17: 45.7 | H17: 45.1 | I17: 1253267 | J17: 57952493.6 | K17: 2020-04-08 | L17: 7317 | M17: INE674K01013
A18: ABFRL | B18: EQ | C18: 148 | D18: 152.8 | E18: 146.75 | F18: 149 | G18: 148 | H18: 149.85 | I18: 416099 | J18: 62371769.1 | K18: 2020-04-08 | L18: 10148 | M18: INE647O01011
A19: ABSLNN50ET | B19: EQ | C19: 244 | D19: 248 | E19: 210 | F19: 235 | G19: 235 | H19: 244 | I19: 56 | J19: 12779.4 | K19: 2020-04-08 | L19: 13 | M19: INF209KB1B87
A20: ACC | B20: EQ | C20: 1000 | D20: 1029.9 | E20: 941.25 | F20: 956.05 | G20: 958 | H20: 1009.95 | I20: 2153627 | J20: 2101320389 | K20: 2020-04-08 | L20: 79728 | M20: INE012A01025
A21: ACCELYA | B21: EQ | C21: 874.3 | D21: 886 | E21: 862 | F21: 880.45 | G21: 879.95 | H21: 874.3 | I21: 10865 | J21: 9557704.55 | K21: 2020-04-08 | L21: 923 | M21: INE793A01012
A22: ACE | B22: EQ | C22: 32.75 | D22: 35.2 | E22: 32.55 | F22: 33.25 | G22: 33.35 | H22: 32.95 | I22: 244708 | J22: 8296578.4 | K22: 2020-04-08 | L22: 2925 | M22: INE731H01025
A23: ADANIENT | B23: EQ | C23: 136.85 | D23: 147.15 | E23: 134.9 | F23: 138.1 | G23: 137.5 | H23: 138.15 | I23: 3237290 | J23: 456492273.1 | K23: 2020-04-08 | L23: 23696 | M23: INE423A01024
A24: ADANIGAS | B24: EQ | C24: 93.9 | D24: 96.35 | E24: 90.5 | F24: 90.8 | G24: 90.65 | H24: 94 | I24: 1888606 | J24: 176837924.4 | K24: 2020-04-08 | L24: 14517 | M24: INE399L01023
A25: ADANIGREEN | B25: EQ | C25: 166.85 | D25: 166.85 | E25: 162 | F25: 166.45 | G25: 166.85 | H25: 158.95 | I25: 702014 | J25: 116248737 | K25: 2020-04-08 | L25: 10187 | M25: INE364U01010
A26: ADANIPORTS | B26: EQ | C26: 248 | D26: 255.85 | E26: 242.75 | F26: 250.85 | G26: 249.7 | H26: 248.1 | I26: 6897883 | J26: 1724830525 | K26: 2020-04-08 | L26: 81499 | M26: INE742F01042
A27: ADANIPOWER | B27: EQ | C27: 28.65 | D27: 31.15 | E27: 27.5 | F27: 28.95 | G27: 28.85 | H27: 28.8 | I27: 12308064 | J27: 361987996.9 | K27: 2020-04-08 | L27: 23153 | M27: INE814H01011
A28: ADANITRANS | B28: EQ | C28: 196.65 | D28: 202 | E28: 190 | F28: 193.65 | G28: 193.5 | H28: 198.3 | I28: 306320 | J28: 59783940.3 | K28: 2020-04-08 | L28: 4236 | M28: INE931S01010
A29: ADFFOODS | B29: EQ | C29: 187.85 | D29: 192.25 | E29: 184 | F29: 187.7 | G29: 187.3 | H29: 183.1 | I29: 22107 | J29: 4185556.05 | K29: 2020-04-08 | L29: 773 | M29: INE982B01019
A30: ADHUNIKIND | B30: EQ | C30: 13.3 | D30: 13.3 | E30: 13.3 | F30: 13.3 | G30: 13.3 | H30: 12.7 | I30: 5518 | J30: 73389.4 | K30: 2020-04-08 | L30: 21 | M30: INE452L01012
A31: ADLABS | B31: EQ | C31: 2.75 | D31: 2.85 | E31: 2.75 | F31: 2.85 | G31: 2.85 | H31: 2.75 | I31: 19360 | J31: 54965.35 | K31: 2020-04-08 | L31: 72 | M31: INE172N01012
A32: ADORWELD | B32: EQ | C32: 195.7 | D32: 201.9 | E32: 193.95 | F32: 195.1 | G32: 194.45 | H32: 196.75 | I32: 1438 | J32: 283768.75 | K32: 2020-04-08 | L32: 94 | M32: INE045A01017
A33: ADROITINFO | B33: EQ | C33: 5.5 | D33: 5.7 | E33: 5.45 | F33: 5.7 | G33: 5.7 | H33: 5.7 | I33: 691 | J33: 3857 | K33: 2020-04-08 | L33: 25 | M33: INE737B01033
A34: ADSL | B34: EQ | C34: 13.05 | D34: 13.2 | E34: 12.4 | F34: 12.5 | G34: 12.45 | H34: 12.7 | I34: 16203 | J34: 205559.25 | K34: 2020-04-08 | L34: 143 | M34: INE102I01027
A35: ADVANIHOTR | B35: EQ | C35: 30.1 | D35: 33 | E35: 30.1 | F35: 31.8 | G35: 31.5 | H35: 30.65 | I35: 5340 | J35: 169948.95 | K35: 2020-04-08 | L35: 193 | M35: INE199C01026
A36: ADVENZYMES | B36: EQ | C36: 140.2 | D36: 146.55 | E36: 137.95 | F36: 139.2 | G36: 139.75 | H36: 136.55 | I36: 77441 | J36: 11046136.15 | K36: 2020-04-08 | L36: 1990 | M36: INE837H01020
A37: AEGISCHEM | B37: EQ | C37: 150 | D37: 158.5 | E37: 147.1 | F37: 156.35 | G37: 156.05 | H37: 144.1 | I37: 175470 | J37: 27041093.9 | K37: 2020-04-08 | L37: 4268 | M37: INE208C01025
A38: AFFLE | B38: BE | C38: 1050 | D38: 1053.45 | E38: 1030 | F38: 1053.45 | G38: 1053.45 | H38: 1003.3 | I38: 8191 | J38: 8619737.5 | K38: 2020-04-08 | L38: 470 | M38: INE00WC01019
A39: AGARIND | B39: EQ | C39: 49.8 | D39: 52.85 | E39: 49.05 | F39: 52.25 | G39: 52.5 | H39: 49.95 | I39: 7826 | J39: 404450.25 | K39: 2020-04-08 | L39: 207 | M39: INE204E01012
A40: AGCNET | B40: BE | C40: 224.35 | D40: 235.55 | E40: 213.25 | F40: 234.7 | G40: 235.55 | H40: 224.35 | I40: 2524 | J40: 573063 | K40: 2020-04-08 | L40: 70 | M40: INE676A01019
A41: AGRITECH | B41: EQ | C41: 23.95 | D41: 23.95 | E41: 23.95 | F41: 23.95 | G41: 23.95 | H41: 22.85 | I41: 504 | J41: 12070.8 | K41: 2020-04-08 | L41: 18 | M41: INE449G01018
A42: AGROPHOS | B42: EQ | C42: 5.7 | D42: 5.7 | E42: 5.2 | F42: 5.7 | G42: 5.7 | H42: 5.45 | I42: 40596 | J42: 227201.55 | K42: 2020-04-08 | L42: 340 | M42: INE740V01019
A43: AHLEAST | B43: EQ | C43: 133.15 | D43: 141.85 | E43: 128.15 | F43: 131.55 | G43: 128.35 | H43: 131.5 | I43: 3303 | J43: 439718.1 | K43: 2020-04-08 | L43: 350 | M43: INE926K01017
A44: AHLUCONT | B44: EQ | C44: 145.95 | D44: 148 | E44: 136 | F44: 146.3 | G44: 148 | H44: 144.1 | I44: 153910 | J44: 21077811.2 | K44: 2020-04-08 | L44: 995 | M44: INE758C01029
A45: AHLWEST | B45: EQ | C45: 289.9 | D45: 289.9 | E45: 270.95 | F45: 275 | G45: 275 | H45: 277 | I45: 238 | J45: 67030 | K45: 2020-04-08 | L45: 91 | M45: INE915K01010
A46: AIAENG | B46: EQ | C46: 1259.45 | D46: 1291 | E46: 1229 | F46: 1255.85 | G46: 1268 | H46: 1249.9 | I46: 73842 | J46: 92756824.05 | K46: 2020-04-08 | L46: 10503 | M46: INE212H01026
A47: AIONJSW | B47: EQ | C47: 10.9 | D47: 11.1 | E47: 10.2 | F47: 11.1 | G47: 11.1 | H47: 10.6 | I47: 90347 | J47: 996144.95 | K47: 2020-04-08 | L47: 180 | M47: INE743C01021
A48: AIRAN | B48: EQ | C48: 9.8 | D48: 10.3 | E48: 9.75 | F48: 9.8 | G48: 9.75 | H48: 9.85 | I48: 1826 | J48: 18127.1 | K48: 2020-04-08 | L48: 25 | M48: INE645W01026
A49: AJANTPHARM | B49: EQ | C49: 1325.75 | D49: 1450 | E49: 1325 | F49: 1367.5 | G49: 1363 | H49: 1340.2 | I49: 166582 | J49: 233126032.5 | K49: 2020-04-08 | L49: 8748 | M49: INE031B01049
A50: AJMERA | B50: EQ | C50: 64.95 | D50: 70.5 | E50: 64.6 | F50: 68.4 | G50: 69.9 | H50: 64.65 | I50: 31766 | J50: 2167947.5 | K50: 2020-04-08 | L50: 909 | M50: INE298G01027
A51: AKASH | B51: BE | C51: 90 | D51: 90 | E51: 90 | F51: 90 | G51: 90 | H51: 90.95 | I51: 500 | J51: 45000 | K51: 2020-04-08 | L51: 1 | M51: INE737W01013
A52: AKSHARCHEM | B52: EQ | C52: 174.75 | D52: 177.6 | E52: 165.3 | F52: 169.7 | G52: 167.15 | H52: 165.25 | I52: 3130 | J52: 531878.25 | K52: 2020-04-08 | L52: 293 | M52: INE542B01011
A53: AKSHOPTFBR | B53: EQ | C53: 3.6 | D53: 3.6 | E53: 3.6 | F53: 3.6 | G53: 3.6 | H53: 3.45 | I53: 27750 | J53: 99900 | K53: 2020-04-08 | L53: 45 | M53: INE523B01011
A54: AKZOINDIA | B54: EQ | C54: 2084.95 | D54: 2133 | E54: 2030 | F54: 2047.9 | G54: 2040 | H54: 2086.75 | I54: 12835 | J54: 26789836.95 | K54: 2020-04-08 | L54: 2242 | M54: INE133A01011
A55: ALANKIT | B55: EQ | C55: 12.9 | D55: 12.9 | E55: 12.9 | F55: 12.9 | G55: 12.9 | H55: 12.3 | I55: 14247 | J55: 183786.3 | K55: 2020-04-08 | L55: 75 | M55: INE914E01040
A56: ALBERTDAVD | B56: EQ | C56: 338.8 | D56: 364.75 | E56: 338.8 | F56: 353.15 | G56: 352 | H56: 341.15 | I56: 24334 | J56: 8579416.55 | K56: 2020-04-08 | L56: 1220 | M56: INE155C01010
A57: ALCHEM | B57: BE | C57: 1.4 | D57: 1.4 | E57: 1.4 | F57: 1.4 | G57: 1.4 | H57: 1.35 | I57: 8608 | J57: 12051.2 | K57: 2020-04-08 | L57: 18 | M57: INE964B01033
A58: ALEMBICLTD | B58: EQ | C58: 43.7 | D58: 48.05 | E58: 39.7 | F58: 45.05 | G58: 45.5 | H58: 42.15 | I58: 695128 | J58: 31779132.75 | K58: 2020-04-08 | L58: 6991 | M58: INE426A01027
A59: ALICON | B59: EQ | C59: 195.95 | D59: 196 | E59: 181.05 | F59: 184.75 | G59: 184 | H59: 189.25 | I59: 3909 | J59: 722322.5 | K59: 2020-04-08 | L59: 123 | M59: INE062D01024
A60: ALKALI | B60: EQ | C60: 29.95 | D60: 31.75 | E60: 29.65 | F60: 31.75 | G60: 31.75 | H60: 28.9 | I60: 9346 | J60: 289594.95 | K60: 2020-04-08 | L60: 349 | M60: INE773I01017
A61: ALKEM | B61: EQ | C61: 2360 | D61: 2736.5 | E61: 2326.2 | F61: 2671.15 | G61: 2639 | H61: 2324.05 | I61: 371259 | J61: 967330461.6 | K61: 2020-04-08 | L61: 44106 | M61: INE540L01014
A62: ALKYLAMINE | B62: EQ | C62: 1236.6 | D62: 1398 | E62: 1222.2 | F62: 1334.05 | G62: 1334 | H62: 1232.45 | I62: 41501 | J62: 55061848.25 | K62: 2020-04-08 | L62: 3832 | M62: INE150B01021
A63: ALLCARGO | B63: EQ | C63: 63.05 | D63: 65.85 | E63: 63 | F63: 65.7 | G63: 65.85 | H63: 59.9 | I63: 300794 | J63: 19569467.05 | K63: 2020-04-08 | L63: 3098 | M63: INE418H01029
A64: ALLSEC | B64: EQ | C64: 131.7 | D64: 131.9 | E64: 129.35 | F64: 131.9 | G64: 131.9 | H64: 125.65 | I64: 1335 | J64: 175836.2 | K64: 2020-04-08 | L64: 37 | M64: INE835G01018
A65: ALOKINDS | B65: EQ | C65: 4.7 | D65: 4.7 | E65: 4.7 | F65: 4.7 | G65: 4.7 | H65: 4.5 | I65: 1698707 | J65: 7983922.9 | K65: 2020-04-08 | L65: 397 | M65: INE270A01029
A66: ALPA | B66: EQ | C66: 18.55 | D66: 20.15 | E66: 17.8 | F66: 20.15 | G66: 20.15 | H66: 16.8 | I66: 131233 | J66: 2593665.9 | K66: 2020-04-08 | L66: 858 | M66: INE385I01010
A67: ALPHAGEO | B67: EQ | C67: 126 | D67: 137.5 | E67: 126 | F67: 134.45 | G67: 133.3 | H67: 129.7 | I67: 22258 | J67: 2986986.5 | K67: 2020-04-08 | L67: 783 | M67: INE137C01018
A68: ALPSINDUS | B68: EQ | C68: 0.65 | D68: 0.75 | E68: 0.65 | F68: 0.75 | G68: 0.7 | H68: 0.7 | I68: 25369 | J68: 18108.8 | K68: 2020-04-08 | L68: 33 | M68: INE093B01015
A69: AMARAJABAT | B69: EQ | C69: 501.1 | D69: 513.65 | E69: 488.45 | F69: 502.05 | G69: 504.9 | H69: 501.1 | I69: 755312 | J69: 378881689.9 | K69: 2020-04-08 | L69: 18162 | M69: INE885A01032
A70: AMBER | B70: EQ | C70: 1189.9 | D70: 1199 | E70: 1072 | F70: 1108.05 | G70: 1109.25 | H70: 1189.9 | I70: 93512 | J70: 105805912.2 | K70: 2020-04-08 | L70: 14252 | M70: INE371P01015
A71: AMBIKCO | B71: EQ | C71: 539.25 | D71: 559 | E71: 531.05 | F71: 545.2 | G71: 536.4 | H71: 537.25 | I71: 3988 | J71: 2168349.4 | K71: 2020-04-08 | L71: 406 | M71: INE540G01014
A72: AMBUJACEM | B72: EQ | C72: 158.5 | D72: 159.5 | E72: 148.2 | F72: 149.7 | G72: 149.55 | H72: 159 | I72: 10421438 | J72: 1597618498 | K72: 2020-04-08 | L72: 84074 | M72: INE079A01024
A73: AMDIND | B73: EQ | C73: 9.9 | D73: 10.5 | E73: 9.5 | F73: 9.8 | G73: 9.55 | H73: 10 | I73: 17757 | J73: 177659.15 | K73: 2020-04-08 | L73: 707 | M73: INE005I01014
A74: AMJLAND | B74: EQ | C74: 14.3 | D74: 14.95 | E74: 13.7 | F74: 14 | G74: 14 | H74: 14.25 | I74: 12523 | J74: 176065.3 | K74: 2020-04-08 | L74: 106 | M74: INE606A01024
A75: AMRUTANJAN | B75: EQ | C75: 326 | D75: 352 | E75: 320.1 | F75: 345.45 | G75: 344.3 | H75: 324 | I75: 278725 | J75: 95586275.35 | K75: 2020-04-08 | L75: 9075 | M75: INE098F01031
A76: ANANTRAJ | B76: EQ | C76: 19.55 | D76: 20.15 | E76: 18.6 | F76: 18.75 | G76: 18.8 | H76: 19.55 | I76: 184694 | J76: 3509270.8 | K76: 2020-04-08 | L76: 1012 | M76: INE242C01024
A77: ANDHRACEMT | B77: EQ | C77: 1.8 | D77: 1.9 | E77: 1.7 | F77: 1.85 | G77: 1.9 | H77: 1.75 | I77: 105618 | J77: 196578.05 | K77: 2020-04-08 | L77: 227 | M77: INE666E01012
A78: ANDHRAPAP | B78: EQ | C78: 148.55 | D78: 148.55 | E78: 147 | F78: 148.55 | G78: 148.55 | H78: 141.5 | I78: 2622 | J78: 389210.05 | K78: 2020-04-08 | L78: 70 | M78: INE435A01028
A79: ANDHRSUGAR | B79: EQ | C79: 206.95 | D79: 212 | E79: 195 | F79: 206.05 | G79: 205.85 | H79: 203.55 | I79: 35494 | J79: 7286675.25 | K79: 2020-04-08 | L79: 1328 | M79: INE715B01013
A80: ANIKINDS | B80: EQ | C80: 7.25 | D80: 7.25 | E80: 6.65 | F80: 6.8 | G80: 6.8 | H80: 6.95 | I80: 4994 | J80: 34701.65 | K80: 2020-04-08 | L80: 35 | M80: INE087B01017
A81: ANKITMETAL | B81: EQ | C81: 0.4 | D81: 0.45 | E81: 0.35 | F81: 0.45 | G81: 0.45 | H81: 0.4 | I81: 64810 | J81: 27213.05 | K81: 2020-04-08 | L81: 29 | M81: INE106I01010
A82: ANSALAPI | B82: EQ | C82: 3.65 | D82: 3.8 | E82: 3.65 | F82: 3.8 | G82: 3.8 | H82: 3.65 | I82: 3974 | J82: 15023.75 | K82: 2020-04-08 | L82: 28 | M82: INE436A01026
A83: ANSALHSG | B83: EQ | C83: 3 | D83: 3 | E83: 2.8 | F83: 2.9 | G83: 2.9 | H83: 2.9 | I83: 31510 | J83: 91846.6 | K83: 2020-04-08 | L83: 64 | M83: INE880B01015
A84: ANUP | B84: EQ | C84: 304.75 | D84: 323.7 | E84: 303.1 | F84: 313.2 | G84: 313.05 | H84: 312.75 | I84: 11786 | J84: 3732090.6 | K84: 2020-04-08 | L84: 460 | M84: INE294Z01018
A85: APARINDS | B85: EQ | C85: 296.95 | D85: 300.35 | E85: 290.6 | F85: 295.85 | G85: 295.5 | H85: 296.05 | I85: 6051 | J85: 1806443.45 | K85: 2020-04-08 | L85: 427 | M85: INE372A01015
A86: APCL | B86: EQ | C86: 102.4 | D86: 102.4 | E86: 95.2 | F86: 97.35 | G86: 97 | H86: 98.5 | I86: 3739 | J86: 362867.6 | K86: 2020-04-08 | L86: 79 | M86: INE071F01012
A87: APCOTEXIND | B87: EQ | C87: 87.55 | D87: 94.85 | E87: 86 | F87: 87.5 | G87: 86.1 | H87: 87.45 | I87: 13115 | J87: 1175575.25 | K87: 2020-04-08 | L87: 323 | M87: INE116A01032
A88: APEX | B88: EQ | C88: 190 | D88: 201.65 | E88: 185.1 | F88: 201.65 | G88: 201.65 | H88: 183.35 | I88: 141806 | J88: 27768799.35 | K88: 2020-04-08 | L88: 3293 | M88: INE346W01013
A89: APLAPOLLO | B89: EQ | C89: 1245 | D89: 1274 | E89: 1220 | F89: 1259.5 | G89: 1258 | H89: 1231.75 | I89: 21152 | J89: 26442272.1 | K89: 2020-04-08 | L89: 3032 | M89: INE702C01019
A90: APLLTD | B90: EQ | C90: 630 | D90: 702.65 | E90: 615.5 | F90: 640.85 | G90: 626 | H90: 610.2 | I90: 540272 | J90: 353935242.1 | K90: 2020-04-08 | L90: 30323 | M90: INE901L01018
A91: APOLLO | B91: EQ | C91: 45.5 | D91: 56 | E91: 45.25 | F91: 54.3 | G91: 53.55 | H91: 46.7 | I91: 68951 | J91: 3631629.4 | K91: 2020-04-08 | L91: 1694 | M91: INE713T01010
A92: APOLLOHOSP | B92: EQ | C92: 1225.9 | D92: 1338.4 | E92: 1211 | F92: 1263.95 | G92: 1261 | H92: 1225.95 | I92: 2070270 | J92: 2654141027 | K92: 2020-04-08 | L92: 156926 | M92: INE437A01024
A93: APOLLOPIPE | B93: EQ | C93: 279.5 | D93: 304 | E93: 262.95 | F93: 281.3 | G93: 281 | H93: 280.1 | I93: 12940 | J93: 3607793.25 | K93: 2020-04-08 | L93: 543 | M93: INE126J01016
A94: APOLLOTYRE | B94: EQ | C94: 83.5 | D94: 87.15 | E94: 82 | F94: 83.4 | G94: 83.15 | H94: 83.5 | I94: 2950752 | J94: 248872037.1 | K94: 2020-04-08 | L94: 19408 | M94: INE438A01022
A95: APOLSINHOT | B95: EQ | C95: 460.35 | D95: 460.4 | E95: 421.1 | F95: 439.8 | G95: 436 | H95: 438.6 | I95: 694 | J95: 306874.65 | K95: 2020-04-08 | L95: 84 | M95: INE451F01024
A96: APTECHT | B96: EQ | C96: 85.3 | D96: 87.7 | E96: 83.55 | F96: 84.6 | G96: 84.3 | H96: 85.3 | I96: 106721 | J96: 9133416.7 | K96: 2020-04-08 | L96: 2385 | M96: INE266F01018
A97: ARCHIDPLY | B97: EQ | C97: 16.55 | D97: 17 | E97: 16.45 | F97: 16.85 | G97: 16.95 | H97: 16.75 | I97: 4083 | J97: 68300.2 | K97: 2020-04-08 | L97: 63 | M97: INE877I01016
A98: ARCHIES | B98: EQ | C98: 9.4 | D98: 9.5 | E98: 9 | F98: 9.05 | G98: 9.15 | H98: 9.45 | I98: 24343 | J98: 224667.6 | K98: 2020-04-08 | L98: 150 | M98: INE731A01020
A99: ARCOTECH | B99: EQ | C99: 0.9 | D99: 0.95 | E99: 0.85 | F99: 0.9 | G99: 0.9 | H99: 0.9 | I99: 51482 | J99: 47500.05 | K99: 2020-04-08 | L99: 77 | M99: INE574I01035
A100: ARENTERP | B100: EQ | C100: 12.65 | D100: 12.65 | E100: 12.05 | F100: 12.05 | G100: 12.05 | H100: 12.65 | I100: 63 | J100: 765.15 | K100: 2020-04-08 | L100: 4 | M100: INE610C01014
A101: ARIES | B101: EQ | C101: 44.4 | D101: 47.6 | E101: 42.65 | F101: 43.6 | G101: 44 | H101: 44.4 | I101: 50875 | J101: 2250478.25 | K101: 2020-04-08 | L101: 1080 | M101: INE298I01015
A102: ARIHANT | B102: EQ | C102: 12.05 | D102: 12.55 | E102: 11.6 | F102: 12.15 | G102: 12.5 | H102: 12.05 | I102: 964 | J102: 11418.15 | K102: 2020-04-08 | L102: 27 | M102: INE413D01011
A103: ARIHANTSUP | B103: EQ | C103: 21.4 | D103: 21.45 | E103: 19.45 | F103: 19.5 | G103: 21 | H103: 20.45 | I103: 4362 | J103: 85414.05 | K103: 2020-04-08 | L103: 80 | M103: INE643K01018
A104: ARMANFIN | B104: EQ | C104: 340 | D104: 373.2 | E104: 337.7 | F104: 373.05 | G104: 373.2 | H104: 355.45 | I104: 50867 | J104: 18465582.65 | K104: 2020-04-08 | L104: 911 | M104: INE109C01017
A105: AROGRANITE | B105: EQ | C105: 21.95 | D105: 24.5 | E105: 20.85 | F105: 24.2 | G105: 24.5 | H105: 22.35 | I105: 26052 | J105: 602565.3 | K105: 2020-04-08 | L105: 183 | M105: INE210C01013
A106: ARROWGREEN | B106: BE | C106: 33.55 | D106: 35 | E106: 33.45 | F106: 33.45 | G106: 33.45 | H106: 33.85 | I106: 5735 | J106: 195198.5 | K106: 2020-04-08 | L106: 32 | M106: INE570D01018
A107: ARSHIYA | B107: EQ | C107: 7.1 | D107: 7.6 | E107: 7.1 | F107: 7.6 | G107: 7.6 | H107: 7.25 | I107: 23178 | J107: 175819.45 | K107: 2020-04-08 | L107: 63 | M107: INE968D01022
A108: ARSSINFRA | B108: EQ | C108: 11.25 | D108: 12.3 | E108: 10.9 | F108: 11.8 | G108: 11.85 | H108: 11.15 | I108: 16388 | J108: 189874.85 | K108: 2020-04-08 | L108: 107 | M108: INE267I01010
A109: ARTEMISMED | B109: EQ | C109: 140 | D109: 147 | E109: 136.3 | F109: 138 | G109: 137 | H109: 139.15 | I109: 1729 | J109: 245138.4 | K109: 2020-04-08 | L109: 31 | M109: INE025R01013
A110: ARVIND | B110: EQ | C110: 23.5 | D110: 24.4 | E110: 22.45 | F110: 23.75 | G110: 23.75 | H110: 22.2 | I110: 2137547 | J110: 50521243.45 | K110: 2020-04-08 | L110: 7057 | M110: INE034A01011
A111: ARVINDFASN | B111: EQ | C111: 139.8 | D111: 141.9 | E111: 132.2 | F111: 133.8 | G111: 134.75 | H111: 139.85 | I111: 46445 | J111: 6387304.5 | K111: 2020-04-08 | L111: 1243 | M111: INE955V01021
A112: ARVSMART | B112: EQ | C112: 64.05 | D112: 67 | E112: 64 | F112: 65.4 | G112: 65.5 | H112: 65 | I112: 10000 | J112: 656036.65 | K112: 2020-04-08 | L112: 320 | M112: INE034S01021
A113: ASAHIINDIA | B113: EQ | C113: 152 | D113: 158 | E113: 147.05 | F113: 155.5 | G113: 152.35 | H113: 153.2 | I113: 5605 | J113: 858978.65 | K113: 2020-04-08 | L113: 218 | M113: INE439A01020
A114: ASAHISONG | B114: EQ | C114: 80.8 | D114: 88.95 | E114: 80.05 | F114: 85.25 | G114: 86 | H114: 80.9 | I114: 8055 | J114: 692533.2 | K114: 2020-04-08 | L114: 314 | M114: INE228I01012
A115: ASAL | B115: EQ | C115: 14.8 | D115: 14.9 | E115: 14.5 | F115: 14.5 | G115: 14.5 | H115: 14.25 | I115: 8037 | J115: 118819.3 | K115: 2020-04-08 | L115: 36 | M115: INE900C01027
A116: ASALCBR | B116: EQ | C116: 164.9 | D116: 175 | E116: 158 | F116: 165.7 | G116: 165 | H116: 162.9 | I116: 31033 | J116: 5116102.05 | K116: 2020-04-08 | L116: 970 | M116: INE073G01016
A117: ASHAPURMIN | B117: EQ | C117: 22.1 | D117: 22.1 | E117: 22.05 | F117: 22.1 | G117: 22.1 | H117: 21.05 | I117: 8770 | J117: 193792 | K117: 2020-04-08 | L117: 43 | M117: INE348A01023
A118: ASHIANA | B118: EQ | C118: 52.9 | D118: 52.9 | E118: 49.1 | F118: 49.95 | G118: 50 | H118: 50 | I118: 69042 | J118: 3480534.3 | K118: 2020-04-08 | L118: 621 | M118: INE365D01021
A119: ASHIMASYN | B119: EQ | C119: 3.9 | D119: 3.9 | E119: 3.9 | F119: 3.9 | G119: 3.9 | H119: 3.55 | I119: 28914 | J119: 112764.6 | K119: 2020-04-08 | L119: 46 | M119: INE440A01010
A120: ASHOKA | B120: EQ | C120: 38.35 | D120: 42.7 | E120: 37.8 | F120: 42.7 | G120: 42.7 | H120: 38.85 | I120: 1577514 | J120: 65134101.3 | K120: 2020-04-08 | L120: 8475 | M120: INE442H01029
A121: ASHOKLEY | B121: EQ | C121: 39.85 | D121: 47.8 | E121: 38.75 | F121: 43.85 | G121: 43.6 | H121: 39.85 | I121: 76817768 | J121: 3355417806 | K121: 2020-04-08 | L121: 169889 | M121: INE208A01029
A122: ASIANHOTNR | B122: EQ | C122: 70 | D122: 71.8 | E122: 66 | F122: 71.55 | G122: 71.5 | H122: 65.4 | I122: 4982 | J122: 349215.55 | K122: 2020-04-08 | L122: 198 | M122: INE363A01022
A123: ASIANPAINT | B123: EQ | C123: 1623.8 | D123: 1687.8 | E123: 1600 | F123: 1608.95 | G123: 1608 | H123: 1623.8 | I123: 2382216 | J123: 3911658954 | K123: 2020-04-08 | L123: 101146 | M123: INE021A01026
A124: ASIANTILES | B124: EQ | C124: 156 | D124: 162.9 | E124: 155 | F124: 157.6 | G124: 156.5 | H124: 157.65 | I124: 19917 | J124: 3151924.4 | K124: 2020-04-08 | L124: 431 | M124: INE022I01019
A125: ASPINWALL | B125: EQ | C125: 93 | D125: 98.7 | E125: 83.55 | F125: 93 | G125: 93 | H125: 90 | I125: 413 | J125: 38837.15 | K125: 2020-04-08 | L125: 20 | M125: INE991I01015
A126: ASTEC | B126: EQ | C126: 450.65 | D126: 465.05 | E126: 440 | F126: 460.05 | G126: 460.3 | H126: 443.9 | I126: 5283 | J126: 2392645.5 | K126: 2020-04-08 | L126: 494 | M126: INE563J01010
A127: ASTERDM | B127: EQ | C127: 96 | D127: 103.5 | E127: 93.8 | F127: 99.25 | G127: 99 | H127: 94.55 | I127: 996205 | J127: 98978623.7 | K127: 2020-04-08 | L127: 4570 | M127: INE914M01019
A128: ASTRAL | B128: EQ | C128: 962 | D128: 986 | E128: 952 | F128: 955.45 | G128: 954 | H128: 973.85 | I128: 59212 | J128: 57381672.65 | K128: 2020-04-08 | L128: 7623 | M128: INE006I01046
A129: ASTRAMICRO | B129: EQ | C129: 56.9 | D129: 62.55 | E129: 55.85 | F129: 61.7 | G129: 62.55 | H129: 56.9 | I129: 253097 | J129: 15146656.55 | K129: 2020-04-08 | L129: 1961 | M129: INE386C01029
A130: ASTRAZEN | B130: EQ | C130: 2700 | D130: 2830 | E130: 2544 | F130: 2561.6 | G130: 2549 | H130: 2693.65 | I130: 38510 | J130: 104113109 | K130: 2020-04-08 | L130: 6647 | M130: INE203A01020
A131: ASTRON | B131: EQ | C131: 26.15 | D131: 29.9 | E131: 25.3 | F131: 27.5 | G131: 27.8 | H131: 27.65 | I131: 61618 | J131: 1693449.45 | K131: 2020-04-08 | L131: 1743 | M131: INE646X01014
A132: ATFL | B132: EQ | C132: 479.65 | D132: 499 | E132: 475 | F132: 481.55 | G132: 475 | H132: 479.65 | I132: 6104 | J132: 2975754.9 | K132: 2020-04-08 | L132: 411 | M132: INE209A01019
A133: ATLANTA | B133: EQ | C133: 3 | D133: 3.15 | E133: 3 | F133: 3.15 | G133: 3.15 | H133: 3 | I133: 8624 | J133: 26936.35 | K133: 2020-04-08 | L133: 28 | M133: INE285H01022
A134: ATLASCYCLE | B134: BE | C134: 30 | D134: 31.5 | E134: 29.5 | F134: 30.7 | G134: 30.7 | H134: 30 | I134: 2000 | J134: 60118.65 | K134: 2020-04-08 | L134: 42 | M134: INE446A01025
A135: ATNINTER | B135: BE | C135: 0.1 | D135: 0.1 | E135: 0.1 | F135: 0.1 | G135: 0.1 | H135: 0.1 | I135: 12716 | J135: 1271.6 | K135: 2020-04-08 | L135: 5 | M135: INE803A01027
A136: ATUL | B136: EQ | C136: 3930 | D136: 4005 | E136: 3908.35 | F136: 3951.85 | G136: 3954.95 | H136: 3927.1 | I136: 76768 | J136: 304824820.4 | K136: 2020-04-08 | L136: 11635 | M136: INE100A01010
A137: ATULAUTO | B137: EQ | C137: 151.35 | D137: 154.05 | E137: 146.8 | F137: 153.45 | G137: 153.95 | H137: 146.75 | I137: 13699 | J137: 2093863.3 | K137: 2020-04-08 | L137: 810 | M137: INE951D01028
A138: AUBANK | B138: EQ | C138: 461.2 | D138: 490 | E138: 457 | F138: 480.3 | G138: 473 | H138: 478.4 | I138: 1791057 | J138: 837589012.6 | K138: 2020-04-08 | L138: 59410 | M138: INE949L01017
A139: AURIONPRO | B139: EQ | C139: 41.75 | D139: 43.7 | E139: 40 | F139: 42.9 | G139: 42.9 | H139: 40.95 | I139: 8828 | J139: 376649.05 | K139: 2020-04-08 | L139: 213 | M139: INE132H01018
A140: AUROPHARMA | B140: EQ | C140: 432.5 | D140: 476.3 | E140: 426.3 | F140: 438.15 | G140: 438.9 | H140: 445.7 | I140: 13186213 | J140: 5925576015 | K140: 2020-04-08 | L140: 205238 | M140: INE406A01037
A141: AUSOMENT | B141: EQ | C141: 26.1 | D141: 26.1 | E141: 26.1 | F141: 26.1 | G141: 26.1 | H141: 25 | I141: 100 | J141: 2610 | K141: 2020-04-08 | L141: 1 | M141: INE218C01016
A142: AUTOAXLES | B142: EQ | C142: 413 | D142: 423.5 | E142: 398.05 | F142: 413.45 | G142: 416 | H142: 399.3 | I142: 5448 | J142: 2244823.45 | K142: 2020-04-08 | L142: 638 | M142: INE449A01011
A143: AUTOIND | B143: EQ | C143: 11.3 | D143: 11.35 | E143: 11.1 | F143: 11.35 | G143: 11.35 | H143: 10.85 | I143: 9358 | J143: 105383.05 | K143: 2020-04-08 | L143: 68 | M143: INE718H01014
A144: AUTOLITIND | B144: EQ | C144: 13.2 | D144: 14.4 | E144: 13.2 | F144: 13.8 | G144: 13.9 | H144: 13.75 | I144: 4699 | J144: 65525.8 | K144: 2020-04-08 | L144: 68 | M144: INE448A01013
A145: AVADHSUGAR | B145: EQ | C145: 143.55 | D145: 143.55 | E145: 143.55 | F145: 143.55 | G145: 143.55 | H145: 136.75 | I145: 13174 | J145: 1891127.7 | K145: 2020-04-08 | L145: 157 | M145: INE349W01017
A146: AVANTIFEED | B146: EQ | C146: 311 | D146: 341.55 | E146: 310.5 | F146: 341.35 | G146: 341.55 | H146: 310.5 | I146: 748404 | J146: 246839085.1 | K146: 2020-04-08 | L146: 23272 | M146: INE871C01038
A147: AVTNPL | B147: EQ | C147: 25.45 | D147: 27.8 | E147: 24.25 | F147: 27.25 | G147: 27 | H147: 25.05 | I147: 213540 | J147: 5643644.4 | K147: 2020-04-08 | L147: 1601 | M147: INE488D01021
A148: AXISBANK | B148: EQ | C148: 383.75 | D148: 427.7 | E148: 373.5 | F148: 391.35 | G148: 391.4 | H148: 388.85 | I148: 64930772 | J148: 2.575974593e+10 | K148: 2020-04-08 | L148: 769506 | M148: INE238A01034
A149: AXISCADES | B149: EQ | C149: 30.9 | D149: 31.5 | E149: 28.65 | F149: 31.4 | G149: 31.5 | H149: 30 | I149: 39670 | J149: 1232336.75 | K149: 2020-04-08 | L149: 621 | M149: INE555B01013
A150: AXISGOLD | B150: EQ | C150: 3969.9 | D150: 3989 | E150: 3925 | F150: 3973.3 | G150: 3983 | H150: 3919.55 | I150: 701 | J150: 2769851.6 | K150: 2020-04-08 | L150: 206 | M150: INF846K01347
A151: AXISNIFTY | B151: EQ | C151: 1000.01 | D151: 1000.01 | E151: 1000.01 | F151: 1000.01 | G151: 1000.01 | H151: 1007 | I151: 2 | J151: 2000.02 | K151: 2020-04-08 | L151: 1 | M151: INF846K01ZL0
A152: AYMSYNTEX | B152: EQ | C152: 15.5 | D152: 16.8 | E152: 15.5 | F152: 16.5 | G152: 16.5 | H152: 16.1 | I152: 2637 | J152: 43548.55 | K152: 2020-04-08 | L152: 26 | M152: INE193B01039
A153: BAFNAPH | B153: EQ | C153: 16.05 | D153: 16.05 | E153: 16.05 | F153: 16.05 | G153: 16.05 | H153: 15.3 | I153: 272 | J153: 4365.6 | K153: 2020-04-08 | L153: 8 | M153: INE878I01022
A154: BAGFILMS | B154: BE | C154: 1.75 | D154: 1.8 | E154: 1.75 | F154: 1.8 | G154: 1.8 | H154: 1.75 | I154: 3861 | J154: 6912.3 | K154: 2020-04-08 | L154: 20 | M154: INE116D01028
A155: BAJAJ-AUTO | B155: EQ | C155: 2180 | D155: 2383.45 | E155: 2168.55 | F155: 2241.7 | G155: 2260 | H155: 2280.05 | I155: 840875 | J155: 1933266167 | K155: 2020-04-08 | L155: 59866 | M155: INE917I01010
A156: BAJAJCON | B156: EQ | C156: 136 | D156: 148.65 | E156: 135.1 | F156: 137.95 | G156: 138 | H156: 138.15 | I156: 1031633 | J156: 145711259.1 | K156: 2020-04-08 | L156: 26102 | M156: INE933K01021
A157: BAJAJELEC | B157: EQ | C157: 277.3 | D157: 294.5 | E157: 277.3 | F157: 287.8 | G157: 289 | H157: 277.3 | I157: 58251 | J157: 16797537.55 | K157: 2020-04-08 | L157: 3821 | M157: INE193E01025
A158: BAJAJFINSV | B158: EQ | C158: 4575 | D158: 4950 | E158: 4537.8 | F158: 4608.5 | G158: 4604 | H158: 4724.9 | I158: 1113057 | J158: 5259493342 | K158: 2020-04-08 | L158: 158158 | M158: INE918I01018
A159: BAJAJHIND | B159: EQ | C159: 3.05 | D159: 3.05 | E159: 3.05 | F159: 3.05 | G159: 3.05 | H159: 2.95 | I159: 80900 | J159: 246745 | K159: 2020-04-08 | L159: 110 | M159: INE306A01021
A160: BAJAJHLDNG | B160: EQ | C160: 2027.95 | D160: 2073.85 | E160: 1925 | F160: 2024.75 | G160: 2025 | H160: 1978.9 | I160: 25453 | J160: 51363834.45 | K160: 2020-04-08 | L160: 6198 | M160: INE118A01012
A161: BAJFINANCE | B161: EQ | C161: 2184 | D161: 2374 | E161: 2144.15 | F161: 2332.9 | G161: 2329 | H161: 2253.35 | I161: 9109346 | J161: 2.088826331e+10 | K161: 2020-04-08 | L161: 516967 | M161: INE296A01024
A162: BALAJITELE | B162: EQ | C162: 43 | D162: 45 | E162: 40.8 | F162: 41.9 | G162: 42.15 | H162: 43.75 | I162: 194912 | J162: 8414452.4 | K162: 2020-04-08 | L162: 1677 | M162: INE794B01026
A163: BALAMINES | B163: EQ | C163: 277 | D163: 296 | E163: 260.4 | F163: 283.65 | G163: 284.45 | H163: 271.2 | I163: 70594 | J163: 20058887.5 | K163: 2020-04-08 | L163: 2337 | M163: INE050E01027
A164: BALAXI | B164: BE | C164: 82.7 | D164: 82.7 | E164: 75.05 | F164: 79.9 | G164: 79.9 | H164: 79 | I164: 1047 | J164: 78761.9 | K164: 2020-04-08 | L164: 24 | M164: INE618N01014
A165: BALKRISHNA | B165: EQ | C165: 8.6 | D165: 8.8 | E165: 8.35 | F165: 8.8 | G165: 8.8 | H165: 8.4 | I165: 7860 | J165: 67624.35 | K165: 2020-04-08 | L165: 49 | M165: INE875R01011
A166: BALKRISIND | B166: EQ | C166: 822 | D166: 862 | E166: 815 | F166: 821.35 | G166: 818.3 | H166: 823.55 | I166: 444079 | J166: 371870250.3 | K166: 2020-04-08 | L166: 24462 | M166: INE787D01026
A167: BALLARPUR | B167: EQ | C167: 0.4 | D167: 0.4 | E167: 0.3 | F167: 0.35 | G167: 0.35 | H167: 0.35 | I167: 9769871 | J167: 3419941.15 | K167: 2020-04-08 | L167: 514 | M167: INE294A01037
A168: BALMLAWRIE | B168: EQ | C168: 84 | D168: 87.9 | E168: 81 | F168: 84.75 | G168: 85.65 | H168: 85.5 | I168: 202053 | J168: 17357055.25 | K168: 2020-04-08 | L168: 3105 | M168: INE164A01016
A169: BALPHARMA | B169: EQ | C169: 38.9 | D169: 41.7 | E169: 38.9 | F169: 41.7 | G169: 41.7 | H169: 37.95 | I169: 40933 | J169: 1688199.5 | K169: 2020-04-08 | L169: 518 | M169: INE083D01012
A170: BALRAMCHIN | B170: EQ | C170: 123.85 | D170: 126.4 | E170: 123 | F170: 126.4 | G170: 126.4 | H170: 120.4 | I170: 642515 | J170: 80884980.2 | K170: 2020-04-08 | L170: 7125 | M170: INE119A01028
A171: BANARBEADS | B171: EQ | C171: 30.25 | D171: 32.5 | E171: 29.6 | F171: 29.75 | G171: 29.75 | H171: 31.5 | I171: 160 | J171: 4873.85 | K171: 2020-04-08 | L171: 26 | M171: INE655B01011
A172: BANARISUG | B172: EQ | C172: 900 | D172: 925 | E172: 880 | F172: 886.1 | G172: 880 | H172: 893.1 | I172: 410 | J172: 368979.1 | K172: 2020-04-08 | L172: 94 | M172: INE459A01010
A173: BANCOINDIA | B173: EQ | C173: 65.45 | D173: 67.5 | E173: 64.1 | F173: 65.95 | G173: 66 | H173: 65.45 | I173: 40062 | J173: 2654130.6 | K173: 2020-04-08 | L173: 1013 | M173: INE213C01025
A174: BANDHANBNK | B174: EQ | C174: 167.95 | D174: 209.05 | E174: 167.5 | F174: 193.75 | G174: 195.25 | H174: 167.25 | I174: 30692919 | J174: 5833285762 | K174: 2020-04-08 | L174: 332020 | M174: INE545U01014
A175: BANG | B175: EQ | C175: 12.05 | D175: 13.1 | E175: 11.9 | F175: 13.1 | G175: 13.1 | H175: 12.5 | I175: 1590 | J175: 20489 | K175: 2020-04-08 | L175: 31 | M175: INE863I01016
A176: BANKBARODA | B176: EQ | C176: 48 | D176: 51.5 | E176: 47.3 | F176: 48.35 | G176: 48.45 | H176: 48.15 | I176: 27159204 | J176: 1340103716 | K176: 2020-04-08 | L176: 77070 | M176: INE028A01039
A177: BANKBEES | B177: EQ | C177: 190 | D177: 205.4 | E177: 186.06 | F177: 191.28 | G177: 191.4 | H177: 192.12 | I177: 676832 | J177: 131368353.2 | K177: 2020-04-08 | L177: 10023 | M177: INF204KB15I9
A178: BANKINDIA | B178: EQ | C178: 32.7 | D178: 34.75 | E178: 32.5 | F178: 33.35 | G178: 33.25 | H178: 32.95 | I178: 1236627 | J178: 41574499.75 | K178: 2020-04-08 | L178: 6257 | M178: INE084A01016
A179: BANSWRAS | B179: EQ | C179: 77.4 | D179: 77.4 | E179: 70.2 | F179: 71.15 | G179: 70.2 | H179: 73.75 | I179: 22922 | J179: 1667255.55 | K179: 2020-04-08 | L179: 137 | M179: INE629D01012
A180: BASF | B180: EQ | C180: 1154 | D180: 1154 | E180: 1105 | F180: 1119.95 | G180: 1120.5 | H180: 1138.25 | I180: 26139 | J180: 29425244.35 | K180: 2020-04-08 | L180: 2640 | M180: INE373A01013
A181: BASML | B181: EQ | C181: 74.05 | D181: 84 | E181: 74.05 | F181: 80 | G181: 80 | H181: 78.7 | I181: 1648 | J181: 135366.45 | K181: 2020-04-08 | L181: 154 | M181: INE186H01014
A182: BATAINDIA | B182: EQ | C182: 1246.5 | D182: 1339 | E182: 1228 | F182: 1240.05 | G182: 1238.95 | H182: 1246.4 | I182: 1346088 | J182: 1726485633 | K182: 2020-04-08 | L182: 66274 | M182: INE176A01028
A183: BAYERCROP | B183: EQ | C183: 3500 | D183: 3946.6 | E183: 3499.3 | F183: 3818.15 | G183: 3772.15 | H183: 3510 | I183: 32833 | J183: 125437264 | K183: 2020-04-08 | L183: 6737 | M183: INE462A01022
A184: BBL | B184: EQ | C184: 590 | D184: 621.25 | E184: 590 | F184: 613.05 | G184: 621.25 | H184: 589.55 | I184: 9335 | J184: 5684085.45 | K184: 2020-04-08 | L184: 804 | M184: INE464A01028
A185: BBTC | B185: EQ | C185: 810 | D185: 854.3 | E185: 774 | F185: 784.2 | G185: 787.95 | H185: 788.4 | I185: 76612 | J185: 62014517.65 | K185: 2020-04-08 | L185: 5281 | M185: INE050A01025
A186: BCG | B186: EQ | C186: 3.6 | D186: 3.65 | E186: 3.55 | F186: 3.65 | G186: 3.65 | H186: 3.5 | I186: 305718 | J186: 1113234.95 | K186: 2020-04-08 | L186: 149 | M186: INE425B01027
A187: BCP | B187: EQ | C187: 10.75 | D187: 10.75 | E187: 10.5 | F187: 10.75 | G187: 10.75 | H187: 10.25 | I187: 8192 | J187: 87934.6 | K187: 2020-04-08 | L187: 28 | M187: INE905P01028
A188: BDL | B188: EQ | C188: 191 | D188: 229 | E188: 188.2 | F188: 218.2 | G188: 216.4 | H188: 191.4 | I188: 448405 | J188: 97968192.25 | K188: 2020-04-08 | L188: 13672 | M188: INE171Z01018
A189: BEARDSELL | B189: EQ | C189: 6.7 | D189: 7.3 | E189: 6.7 | F189: 7.3 | G189: 7.3 | H189: 7.05 | I189: 1250 | J189: 8417 | K189: 2020-04-08 | L189: 4 | M189: INE520H01022
A190: BEDMUTHA | B190: EQ | C190: 12.8 | D190: 13.05 | E190: 12.45 | F190: 12.45 | G190: 12.45 | H190: 13.1 | I190: 19584 | J190: 245429.15 | K190: 2020-04-08 | L190: 32 | M190: INE844K01012
A191: BEL | B191: EQ | C191: 69 | D191: 71.3 | E191: 65.1 | F191: 66.4 | G191: 66.5 | H191: 69 | I191: 16699885 | J191: 1138705070 | K191: 2020-04-08 | L191: 69587 | M191: INE263A01024
A192: BEML | B192: EQ | C192: 492 | D192: 523.5 | E192: 492 | F192: 503.6 | G192: 503 | H192: 475.95 | I192: 890527 | J192: 458689246.6 | K192: 2020-04-08 | L192: 23670 | M192: INE258A01016
A193: BEPL | B193: EQ | C193: 31 | D193: 32.75 | E193: 30.3 | F193: 31.25 | G193: 31.6 | H193: 30.25 | I193: 333595 | J193: 10578641.1 | K193: 2020-04-08 | L193: 3321 | M193: INE922A01025
A194: BERGEPAINT | B194: EQ | C194: 479.9 | D194: 487.65 | E194: 460 | F194: 463.5 | G194: 462 | H194: 479.2 | I194: 1729062 | J194: 817908730.6 | K194: 2020-04-08 | L194: 32950 | M194: INE463A01038
A195: BFINVEST | B195: EQ | C195: 258 | D195: 268.8 | E195: 244.6 | F195: 246.3 | G195: 248.95 | H195: 257.45 | I195: 4938 | J195: 1236639.95 | K195: 2020-04-08 | L195: 244 | M195: INE878K01010
A196: BFUTILITIE | B196: EQ | C196: 158.35 | D196: 158.35 | E196: 151.05 | F196: 154.05 | G196: 153.7 | H196: 150.85 | I196: 138134 | J196: 21700813.75 | K196: 2020-04-08 | L196: 1649 | M196: INE243D01012
A197: BGRENERGY | B197: EQ | C197: 22.1 | D197: 22.85 | E197: 20.95 | F197: 21.1 | G197: 21.15 | H197: 22.2 | I197: 172282 | J197: 3763089.75 | K197: 2020-04-08 | L197: 1108 | M197: INE661I01014
A198: BHAGERIA | B198: EQ | C198: 85 | D198: 91.05 | E198: 80.65 | F198: 81.6 | G198: 82.3 | H198: 84.2 | I198: 34795 | J198: 2944870.7 | K198: 2020-04-08 | L198: 925 | M198: INE354C01027
A199: BHAGYANGR | B199: EQ | C199: 14.05 | D199: 15.2 | E199: 14 | F199: 14.4 | G199: 14.4 | H199: 14.4 | I199: 1338 | J199: 19622.25 | K199: 2020-04-08 | L199: 50 | M199: INE458B01036
A200: BHAGYAPROP | B200: EQ | C200: 18 | D200: 20 | E200: 18 | F200: 20 | G200: 20 | H200: 19 | I200: 999 | J200: 19011 | K200: 2020-04-08 | L200: 5 | M200: INE363W01018
... 1470 more rows

Sheet Sheet1 (hidden)

Sheet Sheet3 (hidden)

Sheet Sheet4 (hidden)

Sheet Sheet5 (hidden)
